Publisher Label,Publisher URI,"Directorate code","Directorate","Service code","Service","Revenue or capital code","Revenue capital","Cost centre","Cost centre description","Bvsub Category","Bvsub description","Bvsum code","Bvsum description","Account code","Account description","Transaction No","Period","Transaction Date","Amount","Classification code","Classification description","Supplier ID","Supplier description","Company registration number","Company registration number Uri","VAT registration number"
"London Borough of Redbridge","http://opendatacommunities.org/doc/london-borough-council/redbridge","4BTRANSPORT","Transport Planning, Policy & Strategy","4CMANGT&SUPP","Management & Support Services","REV","Revenue","R7000","Business Support Civic Pride","04-SUPPLIES","Supplies And Services","04F","Communications and computing","5858","Phones","3550029","202002",03/05/2019 00:00:00,12.5,"51500","Mobile Phones - Personal Numbers","REDACTED DATA","EE LTD (AIRTIME PAYMENTS)","2382161","http://opencorporates.com/companies/gb/2382161","771592016"
"London Borough of Redbridge","http://opendatacommunities.org/doc/london-borough-council/redbridge","4BTRANSPORT","Transport Planning, Policy & Strategy","4CMANGT&SUPP","Management & Support Services","REV","Revenue","R7000","Business Support Civic Pride","04-SUPPLIES","Supplies And Services","04F","Communications and computing","5858","Phones","3550029","202002",03/05/2019 00:00:00,12.5,"51500","Mobile Phones - Personal Numbers","REDACTED DATA","EE LTD (AIRTIME PAYMENTS)","2382161","http://opencorporates.com/companies/gb/2382161","771592016"
"London Borough of Redbridge","http://opendatacommunities.org/doc/london-borough-council/redbridge","4BTRANSPORT","Transport Planning, Policy & Strategy","4CMANGT&SUPP","Management & Support Services","REV","Revenue","R7000","Business Support Civic Pride","04-SUPPLIES","Supplies And Services","04F","Communications and computing","5858","Phones","3550029","202002",03/05/2019 00:00:00,12.5,"51500","Mobile Phones - Personal Numbers","REDACTED DATA","EE LTD (AIRTIME PAYMENTS)","2382161","http://opencorporates.com/companies/gb/2382161","771592016"
"London Borough of Redbridge","http://opendatacommunities.org/doc/london-borough-council/redbridge","4BTRANSPORT","Transport Planning, Policy & Strategy","4CMANGT&SUPP","Management & Support Services","REV","Revenue","R7000","Business Support Civic Pride","04-SUPPLIES","Supplies And Services","04F","Communications and computing","5858","Phones","3550029","202002",03/05/2019 00:00:00,12.5,"51500","Mobile Phones - Personal Numbers","REDACTED DATA","EE LTD (AIRTIME PAYMENTS)","2382161","http://opencorporates.com/companies/gb/2382161","771592016"
"London Borough of Redbridge","http://opendatacommunities.org/doc/london-borough-council/redbridge","4BTRANSPORT","Transport Planning, Policy & Strategy","4CMANGT&SUPP","Management & Support Services","REV","Revenue","R7000","Business Support Civic Pride","04-SUPPLIES","Supplies And Services","04F","Communications and computing","5858","Phones","3550029","202002",03/05/2019 00:00:00,12.5,"51500","Mobile Phones - Personal Numbers","REDACTED DATA","EE LTD (AIRTIME PAYMENTS)","2382161","http://opencorporates.com/companies/gb/2382161","771592016"
"London Borough of Redbridge","http://opendatacommunities.org/doc/london-borough-council/redbridge","4BTRANSPORT","Transport Planning, Policy & Strategy","4CMANGT&SUPP","Management & Support Services","REV","Revenue","R7000","Business Support Civic Pride","04-SUPPLIES","Supplies And Services","04F","Communications and computing","5858","Phones","3550029","202002",03/05/2019 00:00:00,12.5,"51500","Mobile Phones - Personal Numbers","REDACTED DATA","EE LTD (AIRTIME PAYMENTS)","2382161","http://opencorporates.com/companies/gb/2382161","771592016"
"London Borough of Redbridge","http://opendatacommunities.org/doc/london-borough-council/redbridge","4BTRANSPORT","Transport Planning, Policy & Strategy","4CMANGT&SUPP","Management & Support Services","REV","Revenue","R7000","Business Support Civic Pride","04-SUPPLIES","Supplies And Services","04F","Communications and computing","5858","Phones","3550029","202002",03/05/2019 00:00:00,12.5,"51500","Mobile Phones - Personal Numbers","REDACTED DATA","EE LTD (AIRTIME PAYMENTS)","2382161","http://opencorporates.com/companies/gb/2382161","771592016"
"London Borough of Redbridge","http://opendatacommunities.org/doc/london-borough-council/redbridge","4BTRANSPORT","Transport Planning, Policy & Strategy","4CMANGT&SUPP","Management & Support Services","REV","Revenue","R7000","Business Support Civic Pride","04-SUPPLIES","Supplies And Services","04F","Communications and computing","5858","Phones","3550029","202002",03/05/2019 00:00:00,12.5,"51500","Mobile Phones - Personal Numbers","REDACTED DATA","EE LTD (AIRTIME PAYMENTS)","2382161","http://opencorporates.com/companies/gb/2382161","771592016"
"London Borough of Redbridge","http://opendatacommunities.org/doc/london-borough-council/redbridge","4BTRANSPORT","Transport Planning, Policy & Strategy","4CMANGT&SUPP","Management & Support Services","REV","Revenue","R7000","Business Support Civic Pride","04-SUPPLIES","Supplies And Services","04F","Communications and computing","5858","Phones","3550029","202002",03/05/2019 00:00:00,12.5,"51500","Mobile Phones - Personal Numbers","REDACTED DATA","EE LTD (AIRTIME PAYMENTS)","2382161","http://opencorporates.com/companies/gb/2382161","771592016"
"London Borough of Redbridge","http://opendatacommunities.org/doc/london-borough-council/redbridge","4BTRANSPORT","Transport Planning, Policy & Strategy","4CMANGT&SUPP","Management & Support Services","REV","Revenue","R7000","Business Support Civic Pride","04-SUPPLIES","Supplies And Services","04F","Communications and computing","5858","Phones","3550029","202002",03/05/2019 00:00:00,12.5,"51500","Mobile Phones - Personal Numbers","REDACTED DATA","EE LTD (AIRTIME PAYMENTS)","2382161","http://opencorporates.com/companies/gb/2382161","771592016"
"London Borough of Redbridge","http://opendatacommunities.org/doc/london-borough-council/redbridge","4BTRANSPORT","Transport Planning, Policy & Strategy","4CMANGT&SUPP","Management & Support Services","REV","Revenue","R7000","Business Support Civic Pride","04-SUPPLIES","Supplies And Services","04F","Communications and computing","5858","Phones","3550029","202002",03/05/2019 00:00:00,12.5,"51500","Mobile Phones - Personal Numbers","REDACTED DATA","EE LTD (AIRTIME PAYMENTS)","2382161","http://opencorporates.com/companies/gb/2382161","771592016"
"London Borough of Redbridge","http://opendatacommunities.org/doc/london-borough-council/redbridge","4BTRANSPORT","Transport Planning, Policy & Strategy","4CMANGT&SUPP","Management & Support Services","REV","Revenue","R7000","Business Support Civic Pride","04-SUPPLIES","Supplies And Services","04F","Communications and computing","5858","Phones","3550029","202002",03/05/2019 00:00:00,12.5,"51500","Mobile Phones - Personal Numbers","REDACTED DATA","EE LTD (AIRTIME PAYMENTS)","2382161","http://opencorporates.com/companies/gb/2382161","771592016"
"London Borough of Redbridge","http://opendatacommunities.org/doc/london-borough-council/redbridge","4BTRANSPORT","Transport Planning, Policy & Strategy","4CMANGT&SUPP","Management & Support Services","REV","Revenue","R7000","Business Support Civic Pride","04-SUPPLIES","Supplies And Services","04F","Communications and computing","5858","Phones","3550029","202002",03/05/2019 00:00:00,12.5,"51500","Mobile Phones - Personal Numbers","REDACTED DATA","EE LTD (AIRTIME PAYMENTS)","2382161","http://opencorporates.com/companies/gb/2382161","771592016"
"London Borough of Redbridge","http://opendatacommunities.org/doc/london-borough-council/redbridge","4BTRANSPORT","Transport Planning, Policy & Strategy","4CMANGT&SUPP","Management & Support Services","REV","Revenue","R7000","Business Support Civic Pride","04-SUPPLIES","Supplies And Services","04F","Communications and computing","5858","Phones","3550029","202002",03/05/2019 00:00:00,12.5,"51500","Mobile Phones - Personal Numbers","REDACTED DATA","EE LTD (AIRTIME PAYMENTS)","2382161","http://opencorporates.com/companies/gb/2382161","771592016"
"London Borough of Redbridge","http://opendatacommunities.org/doc/london-borough-council/redbridge","4BTRANSPORT","Transport Planning, Policy & Strategy","4CMANGT&SUPP","Management & Support Services","REV","Revenue","R7000","Business Support Civic Pride","04-SUPPLIES","Supplies And Services","04F","Communications and computing","5858","Phones","3550029","202002",03/05/2019 00:00:00,12.5,"51500","Mobile Phones - Personal Numbers","REDACTED DATA","EE LTD (AIRTIME PAYMENTS)","2382161","http://opencorporates.com/companies/gb/2382161","771592016"
"London Borough of Redbridge","http://opendatacommunities.org/doc/london-borough-council/redbridge","4BTRANSPORT","Transport Planning, Policy & Strategy","4CMANGT&SUPP","Management & Support Services","REV","Revenue","R7000","Business Support Civic Pride","04-SUPPLIES","Supplies And Services","04F","Communications and computing","5858","Phones","3550029","202002",03/05/2019 00:00:00,12.5,"51500","Mobile Phones - Personal Numbers","REDACTED DATA","EE LTD (AIRTIME PAYMENTS)","2382161","http://opencorporates.com/companies/gb/2382161","771592016"
"London Borough of Redbridge","http://opendatacommunities.org/doc/london-borough-council/redbridge","4BTRANSPORT","Transport Planning, Policy & Strategy","4CMANGT&SUPP","Management & Support Services","REV","Revenue","R7000","Business Support Civic Pride","04-SUPPLIES","Supplies And Services","04F","Communications and computing","5858","Phones","3550029","202002",03/05/2019 00:00:00,12.5,"51500","Mobile Phones - Personal Numbers","REDACTED DATA","EE LTD (AIRTIME PAYMENTS)","2382161","http://opencorporates.com/companies/gb/2382161","771592016"
"London Borough of Redbridge","http://opendatacommunities.org/doc/london-borough-council/redbridge","4BTRANSPORT","Transport Planning, Policy & Strategy","4CMANGT&SUPP","Management & Support Services","REV","Revenue","R7000","Business Support Civic Pride","04-SUPPLIES","Supplies And Services","04F","Communications and computing","5858","Phones","3550029","202002",03/05/2019 00:00:00,12.5,"51500","Mobile Phones - Personal Numbers","REDACTED DATA","EE LTD (AIRTIME PAYMENTS)","2382161","http://opencorporates.com/companies/gb/2382161","771592016"
"London Borough of Redbridge","http://opendatacommunities.org/doc/london-borough-council/redbridge","4BTRANSPORT","Transport Planning, Policy & Strategy","4CMANGT&SUPP","Management & Support Services","REV","Revenue","R7000","Business Support Civic Pride","04-SUPPLIES","Supplies And Services","04F","Communications and computing","5858","Phones","3550029","202002",03/05/2019 00:00:00,12.5,"51500","Mobile Phones - Personal Numbers","REDACTED DATA","EE LTD (AIRTIME PAYMENTS)","2382161","http://opencorporates.com/companies/gb/2382161","771592016"
"London Borough of Redbridge","http://opendatacommunities.org/doc/london-borough-council/redbridge","4BTRANSPORT","Transport Planning, Policy & Strategy","4CMANGT&SUPP","Management & Support Services","REV","Revenue","R7000","Business Support Civic Pride","04-SUPPLIES","Supplies And Services","04F","Communications and computing","5858","Phones","3550029","202002",03/05/2019 00:00:00,12.5,"51500","Mobile Phones - Personal Numbers","REDACTED DATA","EE LTD (AIRTIME PAYMENTS)","2382161","http://opencorporates.com/companies/gb/2382161","771592016"
"London Borough of Redbridge","http://opendatacommunities.org/doc/london-borough-council/redbridge","4BTRANSPORT","Transport Planning, Policy & Strategy","4CMANGT&SUPP","Management & Support Services","REV","Revenue","R7000","Business Support Civic Pride","04-SUPPLIES","Supplies And Services","04F","Communications and computing","5858","Phones","3550029","202002",03/05/2019 00:00:00,12.5,"51500","Mobile Phones - Personal Numbers","REDACTED DATA","EE LTD (AIRTIME PAYMENTS)","2382161","http://opencorporates.com/companies/gb/2382161","771592016"
"London Borough of Redbridge","http://opendatacommunities.org/doc/london-borough-council/redbridge","4BTRANSPORT","Transport Planning, Policy & Strategy","4CMANGT&SUPP","Management & Support Services","REV","Revenue","R7000","Business Support Civic Pride","04-SUPPLIES","Supplies And Services","04F","Communications and computing","5858","Phones","3550029","202002",03/05/2019 00:00:00,12.5,"51500","Mobile Phones - Personal Numbers","REDACTED DATA","EE LTD (AIRTIME PAYMENTS)","2382161","http://opencorporates.com/companies/gb/2382161","771592016"
"London Borough of Redbridge","http://opendatacommunities.org/doc/london-borough-council/redbridge","4BTRANSPORT","Transport Planning, Policy & Strategy","4CMANGT&SUPP","Management & Support Services","REV","Revenue","R7000","Business Support Civic Pride","04-SUPPLIES","Supplies And Services","04F","Communications and computing","5858","Phones","3550029","202002",03/05/2019 00:00:00,12.5,"51500","Mobile Phones - Personal Numbers","REDACTED DATA","EE LTD (AIRTIME PAYMENTS)","2382161","http://opencorporates.com/companies/gb/2382161","771592016"
"London Borough of Redbridge","http://opendatacommunities.org/doc/london-borough-council/redbridge","4BTRANSPORT","Transport Planning, Policy & Strategy","4CMANGT&SUPP","Management & Support Services","REV","Revenue","R7000","Business Support Civic Pride","04-SUPPLIES","Supplies And Services","04F","Communications and computing","5858","Phones","3550029","202002",03/05/2019 00:00:00,12.5,"51500","Mobile Phones - Personal Numbers","REDACTED DATA","EE LTD (AIRTIME PAYMENTS)","2382161","http://opencorporates.com/companies/gb/2382161","771592016"
"London Borough of Redbridge","http://opendatacommunities.org/doc/london-borough-council/redbridge","4BTRANSPORT","Transport Planning, Policy & Strategy","4CMANGT&SUPP","Management & Support Services","REV","Revenue","R7000","Business Support Civic Pride","04-SUPPLIES","Supplies And Services","04F","Communications and computing","5858","Phones","3550029","202002",03/05/2019 00:00:00,12.5,"51500","Mobile Phones - Personal Numbers","REDACTED DATA","EE LTD (AIRTIME PAYMENTS)","2382161","http://opencorporates.com/companies/gb/2382161","771592016"
"London Borough of Redbridge","http://opendatacommunities.org/doc/london-borough-council/redbridge","5BGFHOUSING","General Fund Housing","5CHOUMGTSUPP","Housing Management & Support Services","REV","Revenue","R5601","Housing Service Administration","04-SUPPLIES","Supplies And Services","04F","Communications and computing","5858","Phones","3550029","202002",03/05/2019 00:00:00,12.5,"51500","Mobile Phones - Personal Numbers","REDACTED DATA","EE LTD (AIRTIME PAYMENTS)","2382161","http://opencorporates.com/companies/gb/2382161","771592016"
"London Borough of Redbridge","http://opendatacommunities.org/doc/london-borough-council/redbridge","5BGFHOUSING","General Fund Housing","5CHOUMGTSUPP","Housing Management & Support Services","REV","Revenue","R5601","Housing Service Administration","04-SUPPLIES","Supplies And Services","04F","Communications and computing","5858","Phones","3550029","202002",03/05/2019 00:00:00,12.5,"51500","Mobile Phones - Personal Numbers","REDACTED DATA","EE LTD (AIRTIME PAYMENTS)","2382161","http://opencorporates.com/companies/gb/2382161","771592016"
"London Borough of Redbridge","http://opendatacommunities.org/doc/london-borough-council/redbridge","5BGFHOUSING","General Fund Housing","5CHOUMGTSUPP","Housing Management & Support Services","REV","Revenue","R5601","Housing Service Administration","04-SUPPLIES","Supplies And Services","04F","Communications and computing","5858","Phones","3550029","202002",03/05/2019 00:00:00,12.5,"51500","Mobile Phones - Personal Numbers","REDACTED DATA","EE LTD (AIRTIME PAYMENTS)","2382161","http://opencorporates.com/companies/gb/2382161","771592016"
"London Borough of Redbridge","http://opendatacommunities.org/doc/london-borough-council/redbridge","5BGFHOUSING","General Fund Housing","5CHOUMGTSUPP","Housing Management & Support Services","REV","Revenue","R5601","Housing Service Administration","04-SUPPLIES","Supplies And Services","04F","Communications and computing","5858","Phones","3550029","202002",03/05/2019 00:00:00,12.5,"51500","Mobile Phones - Personal Numbers","REDACTED DATA","EE LTD (AIRTIME PAYMENTS)","2382161","http://opencorporates.com/companies/gb/2382161","771592016"
"London Borough of Redbridge","http://opendatacommunities.org/doc/london-borough-council/redbridge","5BHRAEXPEND","HRA Expenditure","5CHOUMGTSUPP","Housing Management & Support Services","REV","Revenue","R5044","Housing IT System","04-SUPPLIES","Supplies And Services","04F","Communications and computing","5858","Phones","3550029","202002",03/05/2019 00:00:00,15.5,"51500","Mobile Phones - Personal Numbers","REDACTED DATA","EE LTD (AIRTIME PAYMENTS)","2382161","http://opencorporates.com/companies/gb/2382161","771592016"
"London Borough of Redbridge","http://opendatacommunities.org/doc/london-borough-council/redbridge","5BHRAEXPEND","HRA Expenditure","5CHOUMGTSUPP","Housing Management & Support Services","REV","Revenue","R5044","Housing IT System","04-SUPPLIES","Supplies And Services","04F","Communications and computing","5858","Phones","3550029","202002",03/05/2019 00:00:00,15.5,"51500","Mobile Phones - Personal Numbers","REDACTED DATA","EE LTD (AIRTIME PAYMENTS)","2382161","http://opencorporates.com/companies/gb/2382161","771592016"
"London Borough of Redbridge","http://opendatacommunities.org/doc/london-borough-council/redbridge","5BHRAEXPEND","HRA Expenditure","5CHOUMGTSUPP","Housing Management & Support Services","REV","Revenue","R5044","Housing IT System","04-SUPPLIES","Supplies And Services","04F","Communications and computing","5858","Phones","3550029","202002",03/05/2019 00:00:00,12.5,"51500","Mobile Phones - Personal Numbers","REDACTED DATA","EE LTD (AIRTIME PAYMENTS)","2382161","http://opencorporates.com/companies/gb/2382161","771592016"
"London Borough of Redbridge","http://opendatacommunities.org/doc/london-borough-council/redbridge","5BHRAEXPEND","HRA Expenditure","5CHOUMGTSUPP","Housing Management & Support Services","REV","Revenue","R5044","Housing IT System","04-SUPPLIES","Supplies And Services","04F","Communications and computing","5858","Phones","3550029","202002",03/05/2019 00:00:00,12.5,"51500","Mobile Phones - Personal Numbers","REDACTED DATA","EE LTD (AIRTIME PAYMENTS)","2382161","http://opencorporates.com/companies/gb/2382161","771592016"
"London Borough of Redbridge","http://opendatacommunities.org/doc/london-borough-council/redbridge","5BHRAINCOME","HRA Income","5CWELFARE","Welfare Services","REV","Revenue","R6754","Lifelines","04-SUPPLIES","Supplies And Services","04F","Communications and computing","5858","Phones","3550029","202002",03/05/2019 00:00:00,12,"51500","Mobile Phones - Personal Numbers","REDACTED DATA","EE LTD (AIRTIME PAYMENTS)","2382161","http://opencorporates.com/companies/gb/2382161","771592016"
"London Borough of Redbridge","http://opendatacommunities.org/doc/london-borough-council/redbridge","5BHRAINCOME","HRA Income","5CWELFARE","Welfare Services","REV","Revenue","R6754","Lifelines","04-SUPPLIES","Supplies And Services","04F","Communications and computing","5858","Phones","3550029","202002",03/05/2019 00:00:00,12,"51500","Mobile Phones - Personal Numbers","REDACTED DATA","EE LTD (AIRTIME PAYMENTS)","2382161","http://opencorporates.com/companies/gb/2382161","771592016"
"London Borough of Redbridge","http://opendatacommunities.org/doc/london-borough-council/redbridge","6BADULTSOCIA","Adult Social Care","6CADMENHLTH","Adults Under 65 with Mental Health Needs","REV","Revenue","R4484","Multi- Disciplinary Team (Fairlop)","04-SUPPLIES","Supplies And Services","04F","Communications and computing","5858","Phones","3550029","202002",03/05/2019 00:00:00,15,"51500","Mobile Phones - Personal Numbers","REDACTED DATA","EE LTD (AIRTIME PAYMENTS)","2382161","http://opencorporates.com/companies/gb/2382161","771592016"
"London Borough of Redbridge","http://opendatacommunities.org/doc/london-borough-council/redbridge","6BADULTSOCIA","Adult Social Care","6CADMENHLTH","Adults Under 65 with Mental Health Needs","REV","Revenue","R4484","Multi- Disciplinary Team (Fairlop)","04-SUPPLIES","Supplies And Services","04F","Communications and computing","5858","Phones","3550029","202002",03/05/2019 00:00:00,15,"51500","Mobile Phones - Personal Numbers","REDACTED DATA","EE LTD (AIRTIME PAYMENTS)","2382161","http://opencorporates.com/companies/gb/2382161","771592016"
"London Borough of Redbridge","http://opendatacommunities.org/doc/london-borough-council/redbridge","6BADULTSOCIA","Adult Social Care","6CADMENHLTH","Adults Under 65 with Mental Health Needs","REV","Revenue","R4484","Multi- Disciplinary Team (Fairlop)","04-SUPPLIES","Supplies And Services","04F","Communications and computing","5858","Phones","3550029","202002",03/05/2019 00:00:00,15,"51500","Mobile Phones - Personal Numbers","REDACTED DATA","EE LTD (AIRTIME PAYMENTS)","2382161","http://opencorporates.com/companies/gb/2382161","771592016"
"London Borough of Redbridge","http://opendatacommunities.org/doc/london-borough-council/redbridge","6BADULTSOCIA","Adult Social Care","6CADMENHLTH","Adults Under 65 with Mental Health Needs","REV","Revenue","R4484","Multi- Disciplinary Team (Fairlop)","04-SUPPLIES","Supplies And Services","04F","Communications and computing","5858","Phones","3550029","202002",03/05/2019 00:00:00,15,"51500","Mobile Phones - Personal Numbers","REDACTED DATA","EE LTD (AIRTIME PAYMENTS)","2382161","http://opencorporates.com/companies/gb/2382161","771592016"
"London Borough of Redbridge","http://opendatacommunities.org/doc/london-borough-council/redbridge","6BADULTSOCIA","Adult Social Care","6CADMENHLTH","Adults Under 65 with Mental Health Needs","REV","Revenue","R4484","Multi- Disciplinary Team (Fairlop)","04-SUPPLIES","Supplies And Services","04F","Communications and computing","5858","Phones","3550029","202002",03/05/2019 00:00:00,15,"51500","Mobile Phones - Personal Numbers","REDACTED DATA","EE LTD (AIRTIME PAYMENTS)","2382161","http://opencorporates.com/companies/gb/2382161","771592016"
"London Borough of Redbridge","http://opendatacommunities.org/doc/london-borough-council/redbridge","6BADULTSOCIA","Adult Social Care","6CADMENHLTH","Adults Under 65 with Mental Health Needs","REV","Revenue","R4484","Multi- Disciplinary Team (Fairlop)","04-SUPPLIES","Supplies And Services","04F","Communications and computing","5858","Phones","3550029","202002",03/05/2019 00:00:00,15,"51500","Mobile Phones - Personal Numbers","REDACTED DATA","EE LTD (AIRTIME PAYMENTS)","2382161","http://opencorporates.com/companies/gb/2382161","771592016"
"London Borough of Redbridge","http://opendatacommunities.org/doc/london-borough-council/redbridge","6BADULTSOCIA","Adult Social Care","6CADMENHLTH","Adults Under 65 with Mental Health Needs","REV","Revenue","R4484","Multi- Disciplinary Team (Fairlop)","04-SUPPLIES","Supplies And Services","04F","Communications and computing","5858","Phones","3550029","202002",03/05/2019 00:00:00,15,"51500","Mobile Phones - Personal Numbers","REDACTED DATA","EE LTD (AIRTIME PAYMENTS)","2382161","http://opencorporates.com/companies/gb/2382161","771592016"
"London Borough of Redbridge","http://opendatacommunities.org/doc/london-borough-council/redbridge","9BNONBVO","Outside the BVACOP Objective Structure","9CNONBVO","Outside the BVACOP Objective Structure","REV","Revenue","R0026","Collection Fund","05-THIRD","Third Party Payments","05E","Government departments","6752","GLA Council Tax � Precepts","60403002","202002",01/05/2019 00:00:00,3027809.81,"48583","Local Government","REDACTED DATA","GREATER LONDON AUTHORITY","",,""
"London Borough of Redbridge","http://opendatacommunities.org/doc/london-borough-council/redbridge","5BGFHOUSING","General Fund Housing","5CHOMELESS","Homelessness","REV","Revenue","R5630","HAC Temporary Accomodation","05-THIRD","Third Party Payments","05H","Private contractors","6900","Nightly Let Plus Charges","3550385","202002",05/05/2019 00:00:00,870,"31230","Employment and Recruitment Agencies","REDACTED DATA","ADAM HTT LIMITED T/A ADAM","7718565","http://opencorporates.com/companies/gb/7718565","198573349"
"London Borough of Redbridge","http://opendatacommunities.org/doc/london-borough-council/redbridge","5BGFHOUSING","General Fund Housing","5CHOMELESS","Homelessness","REV","Revenue","R5630","HAC Temporary Accomodation","05-THIRD","Third Party Payments","05H","Private contractors","6900","Nightly Let Plus Charges","3550385","202002",05/05/2019 00:00:00,1650,"31230","Employment and Recruitment Agencies","REDACTED DATA","ADAM HTT LIMITED T/A ADAM","7718565","http://opencorporates.com/companies/gb/7718565","198573349"
"London Borough of Redbridge","http://opendatacommunities.org/doc/london-borough-council/redbridge","5BGFHOUSING","General Fund Housing","5CHOMELESS","Homelessness","REV","Revenue","R5630","HAC Temporary Accomodation","05-THIRD","Third Party Payments","05H","Private contractors","6900","Nightly Let Plus Charges","3550385","202002",05/05/2019 00:00:00,772.2,"31230","Employment and Recruitment Agencies","REDACTED DATA","ADAM HTT LIMITED T/A ADAM","7718565","http://opencorporates.com/companies/gb/7718565","198573349"
"London Borough of Redbridge","http://opendatacommunities.org/doc/london-borough-council/redbridge","5BGFHOUSING","General Fund Housing","5CHOMELESS","Homelessness","REV","Revenue","R5630","HAC Temporary Accomodation","05-THIRD","Third Party Payments","05H","Private contractors","6900","Nightly Let Plus Charges","3550385","202002",05/05/2019 00:00:00,90,"31230","Employment and Recruitment Agencies","REDACTED DATA","ADAM HTT LIMITED T/A ADAM","7718565","http://opencorporates.com/companies/gb/7718565","198573349"
"London Borough of Redbridge","http://opendatacommunities.org/doc/london-borough-council/redbridge","5BGFHOUSING","General Fund Housing","5CHOMELESS","Homelessness","REV","Revenue","R5630","HAC Temporary Accomodation","05-THIRD","Third Party Payments","05H","Private contractors","6900","Nightly Let Plus Charges","3550385","202002",05/05/2019 00:00:00,1080,"31230","Employment and Recruitment Agencies","REDACTED DATA","ADAM HTT LIMITED T/A ADAM","7718565","http://opencorporates.com/companies/gb/7718565","198573349"
"London Borough of Redbridge","http://opendatacommunities.org/doc/london-borough-council/redbridge","5BGFHOUSING","General Fund Housing","5CHOMELESS","Homelessness","REV","Revenue","R5630","HAC Temporary Accomodation","05-THIRD","Third Party Payments","05H","Private contractors","6900","Nightly Let Plus Charges","3550385","202002",05/05/2019 00:00:00,900,"31230","Employment and Recruitment Agencies","REDACTED DATA","ADAM HTT LIMITED T/A ADAM","7718565","http://opencorporates.com/companies/gb/7718565","198573349"
"London Borough of Redbridge","http://opendatacommunities.org/doc/london-borough-council/redbridge","5BGFHOUSING","General Fund Housing","5CHOMELESS","Homelessness","REV","Revenue","R5630","HAC Temporary Accomodation","05-THIRD","Third Party Payments","05H","Private contractors","6900","Nightly Let Plus Charges","3550385","202002",05/05/2019 00:00:00,1140,"31230","Employment and Recruitment Agencies","REDACTED DATA","ADAM HTT LIMITED T/A ADAM","7718565","http://opencorporates.com/companies/gb/7718565","198573349"
"London Borough of Redbridge","http://opendatacommunities.org/doc/london-borough-council/redbridge","5BGFHOUSING","General Fund Housing","5CHOMELESS","Homelessness","REV","Revenue","R5630","HAC Temporary Accomodation","05-THIRD","Third Party Payments","05H","Private contractors","6900","Nightly Let Plus Charges","3550385","202002",05/05/2019 00:00:00,1140,"31230","Employment and Recruitment Agencies","REDACTED DATA","ADAM HTT LIMITED T/A ADAM","7718565","http://opencorporates.com/companies/gb/7718565","198573349"
"London Borough of Redbridge","http://opendatacommunities.org/doc/london-borough-council/redbridge","5BGFHOUSING","General Fund Housing","5CHOMELESS","Homelessness","REV","Revenue","R5630","HAC Temporary Accomodation","05-THIRD","Third Party Payments","05H","Private contractors","6900","Nightly Let Plus Charges","3550385","202002",05/05/2019 00:00:00,1350,"31230","Employment and Recruitment Agencies","REDACTED DATA","ADAM HTT LIMITED T/A ADAM","7718565","http://opencorporates.com/companies/gb/7718565","198573349"
"London Borough of Redbridge","http://opendatacommunities.org/doc/london-borough-council/redbridge","5BGFHOUSING","General Fund Housing","5CHOMELESS","Homelessness","REV","Revenue","R5630","HAC Temporary Accomodation","05-THIRD","Third Party Payments","05H","Private contractors","6900","Nightly Let Plus Charges","3550385","202002",05/05/2019 00:00:00,1650,"31230","Employment and Recruitment Agencies","REDACTED DATA","ADAM HTT LIMITED T/A ADAM","7718565","http://opencorporates.com/companies/gb/7718565","198573349"
"London Borough of Redbridge","http://opendatacommunities.org/doc/london-borough-council/redbridge","6BADULTSOCIA","Adult Social Care","6CADMENHLTH","Adults Under 65 with Mental Health Needs","REV","Revenue","R4484","Multi- Disciplinary Team (Fairlop)","04-SUPPLIES","Supplies And Services","04F","Communications and computing","5858","Phones","3550029","202002",03/05/2019 00:00:00,15,"51500","Mobile Phones - Personal Numbers","REDACTED DATA","EE LTD (AIRTIME PAYMENTS)","2382161","http://opencorporates.com/companies/gb/2382161","771592016"
"London Borough of Redbridge","http://opendatacommunities.org/doc/london-borough-council/redbridge","6BADULTSOCIA","Adult Social Care","6CADMENHLTH","Adults Under 65 with Mental Health Needs","REV","Revenue","R4484","Multi- Disciplinary Team (Fairlop)","04-SUPPLIES","Supplies And Services","04F","Communications and computing","5858","Phones","3550029","202002",03/05/2019 00:00:00,15,"51500","Mobile Phones - Personal Numbers","REDACTED DATA","EE LTD (AIRTIME PAYMENTS)","2382161","http://opencorporates.com/companies/gb/2382161","771592016"
"London Borough of Redbridge","http://opendatacommunities.org/doc/london-borough-council/redbridge","6BADULTSOCIA","Adult Social Care","6CADMENHLTH","Adults Under 65 with Mental Health Needs","REV","Revenue","R4484","Multi- Disciplinary Team (Fairlop)","04-SUPPLIES","Supplies And Services","04F","Communications and computing","5858","Phones","3550029","202002",03/05/2019 00:00:00,15,"51500","Mobile Phones - Personal Numbers","REDACTED DATA","EE LTD (AIRTIME PAYMENTS)","2382161","http://opencorporates.com/companies/gb/2382161","771592016"
"London Borough of Redbridge","http://opendatacommunities.org/doc/london-borough-council/redbridge","6BADULTSOCIA","Adult Social Care","6CADMENHLTH","Adults Under 65 with Mental Health Needs","REV","Revenue","R4484","Multi- Disciplinary Team (Fairlop)","04-SUPPLIES","Supplies And Services","04F","Communications and computing","5858","Phones","3550029","202002",03/05/2019 00:00:00,66.6,"51500","Mobile Phones - Personal Numbers","REDACTED DATA","EE LTD (AIRTIME PAYMENTS)","2382161","http://opencorporates.com/companies/gb/2382161","771592016"
"London Borough of Redbridge","http://opendatacommunities.org/doc/london-borough-council/redbridge","6BADULTSOCIA","Adult Social Care","6CADMENHLTH","Adults Under 65 with Mental Health Needs","REV","Revenue","R4484","Multi- Disciplinary Team (Fairlop)","04-SUPPLIES","Supplies And Services","04F","Communications and computing","5858","Phones","3550029","202002",03/05/2019 00:00:00,15,"51500","Mobile Phones - Personal Numbers","REDACTED DATA","EE LTD (AIRTIME PAYMENTS)","2382161","http://opencorporates.com/companies/gb/2382161","771592016"
"London Borough of Redbridge","http://opendatacommunities.org/doc/london-borough-council/redbridge","6BADULTSOCIA","Adult Social Care","6CADMENHLTH","Adults Under 65 with Mental Health Needs","REV","Revenue","R4484","Multi- Disciplinary Team (Fairlop)","04-SUPPLIES","Supplies And Services","04F","Communications and computing","5858","Phones","3550029","202002",03/05/2019 00:00:00,15,"51500","Mobile Phones - Personal Numbers","REDACTED DATA","EE LTD (AIRTIME PAYMENTS)","2382161","http://opencorporates.com/companies/gb/2382161","771592016"
"London Borough of Redbridge","http://opendatacommunities.org/doc/london-borough-council/redbridge","6BADULTSOCIA","Adult Social Care","6CADMENHLTH","Adults Under 65 with Mental Health Needs","REV","Revenue","R4484","Multi- Disciplinary Team (Fairlop)","04-SUPPLIES","Supplies And Services","04F","Communications and computing","5858","Phones","3550029","202002",03/05/2019 00:00:00,15,"51500","Mobile Phones - Personal Numbers","REDACTED DATA","EE LTD (AIRTIME PAYMENTS)","2382161","http://opencorporates.com/companies/gb/2382161","771592016"
"London Borough of Redbridge","http://opendatacommunities.org/doc/london-borough-council/redbridge","6BADULTSOCIA","Adult Social Care","6CADMENHLTH","Adults Under 65 with Mental Health Needs","REV","Revenue","R4484","Multi- Disciplinary Team (Fairlop)","04-SUPPLIES","Supplies And Services","04F","Communications and computing","5858","Phones","3550029","202002",03/05/2019 00:00:00,15,"51500","Mobile Phones - Personal Numbers","REDACTED DATA","EE LTD (AIRTIME PAYMENTS)","2382161","http://opencorporates.com/companies/gb/2382161","771592016"
"London Borough of Redbridge","http://opendatacommunities.org/doc/london-borough-council/redbridge","6BADULTSOCIA","Adult Social Care","6CADMENHLTH","Adults Under 65 with Mental Health Needs","REV","Revenue","R4484","Multi- Disciplinary Team (Fairlop)","04-SUPPLIES","Supplies And Services","04F","Communications and computing","5858","Phones","3550029","202002",03/05/2019 00:00:00,15,"51500","Mobile Phones - Personal Numbers","REDACTED DATA","EE LTD (AIRTIME PAYMENTS)","2382161","http://opencorporates.com/companies/gb/2382161","771592016"
"London Borough of Redbridge","http://opendatacommunities.org/doc/london-borough-council/redbridge","6BADULTSOCIA","Adult Social Care","6COLDINCMENT","Older People (65 or over) incl. Older Mentally Ill","REV","Revenue","R4360","Hospital and Health Team","04-SUPPLIES","Supplies And Services","04F","Communications and computing","5858","Phones","3550029","202002",03/05/2019 00:00:00,12.5,"51500","Mobile Phones - Personal Numbers","REDACTED DATA","EE LTD (AIRTIME PAYMENTS)","2382161","http://opencorporates.com/companies/gb/2382161","771592016"
"London Borough of Redbridge","http://opendatacommunities.org/doc/london-borough-council/redbridge","6BADULTSOCIA","Adult Social Care","6COLDINCMENT","Older People (65 or over) incl. Older Mentally Ill","REV","Revenue","R4360","Hospital and Health Team","04-SUPPLIES","Supplies And Services","04F","Communications and computing","5858","Phones","3550029","202002",03/05/2019 00:00:00,12.5,"51500","Mobile Phones - Personal Numbers","REDACTED DATA","EE LTD (AIRTIME PAYMENTS)","2382161","http://opencorporates.com/companies/gb/2382161","771592016"
"London Borough of Redbridge","http://opendatacommunities.org/doc/london-borough-council/redbridge","6BADULTSOCIA","Adult Social Care","6COLDINCMENT","Older People (65 or over) incl. Older Mentally Ill","REV","Revenue","R4467","HUB Business Costs","04-SUPPLIES","Supplies And Services","04F","Communications and computing","5858","Phones","3550029","202002",03/05/2019 00:00:00,12.5,"51500","Mobile Phones - Personal Numbers","REDACTED DATA","EE LTD (AIRTIME PAYMENTS)","2382161","http://opencorporates.com/companies/gb/2382161","771592016"
"London Borough of Redbridge","http://opendatacommunities.org/doc/london-borough-council/redbridge","6BADULTSOCIA","Adult Social Care","6COLDINCMENT","Older People (65 or over) incl. Older Mentally Ill","REV","Revenue","R4467","HUB Business Costs","04-SUPPLIES","Supplies And Services","04F","Communications and computing","5858","Phones","3550029","202002",03/05/2019 00:00:00,12.5,"51500","Mobile Phones - Personal Numbers","REDACTED DATA","EE LTD (AIRTIME PAYMENTS)","2382161","http://opencorporates.com/companies/gb/2382161","771592016"
"London Borough of Redbridge","http://opendatacommunities.org/doc/london-borough-council/redbridge","6BADULTSOCIA","Adult Social Care","6COLDINCMENT","Older People (65 or over) incl. Older Mentally Ill","REV","Revenue","R4467","HUB Business Costs","04-SUPPLIES","Supplies And Services","04F","Communications and computing","5858","Phones","3550029","202002",03/05/2019 00:00:00,12.5,"51500","Mobile Phones - Personal Numbers","REDACTED DATA","EE LTD (AIRTIME PAYMENTS)","2382161","http://opencorporates.com/companies/gb/2382161","771592016"
"London Borough of Redbridge","http://opendatacommunities.org/doc/london-borough-council/redbridge","6BADULTSOCIA","Adult Social Care","6COLDINCMENT","Older People (65 or over) incl. Older Mentally Ill","REV","Revenue","R4483","Multi-Disciplinary Team (Wanstead and Woodford)","04-SUPPLIES","Supplies And Services","04F","Communications and computing","5858","Phones","3550029","202002",03/05/2019 00:00:00,15,"51500","Mobile Phones - Personal Numbers","REDACTED DATA","EE LTD (AIRTIME PAYMENTS)","2382161","http://opencorporates.com/companies/gb/2382161","771592016"
"London Borough of Redbridge","http://opendatacommunities.org/doc/london-borough-council/redbridge","6BADULTSOCIA","Adult Social Care","6COLDINCMENT","Older People (65 or over) incl. Older Mentally Ill","REV","Revenue","R4483","Multi-Disciplinary Team (Wanstead and Woodford)","04-SUPPLIES","Supplies And Services","04F","Communications and computing","5858","Phones","3550029","202002",03/05/2019 00:00:00,15,"51500","Mobile Phones - Personal Numbers","REDACTED DATA","EE LTD (AIRTIME PAYMENTS)","2382161","http://opencorporates.com/companies/gb/2382161","771592016"
"London Borough of Redbridge","http://opendatacommunities.org/doc/london-borough-council/redbridge","6BADULTSOCIA","Adult Social Care","6COLDINCMENT","Older People (65 or over) incl. Older Mentally Ill","REV","Revenue","R4483","Multi-Disciplinary Team (Wanstead and Woodford)","04-SUPPLIES","Supplies And Services","04F","Communications and computing","5858","Phones","3550029","202002",03/05/2019 00:00:00,15,"51500","Mobile Phones - Personal Numbers","REDACTED DATA","EE LTD (AIRTIME PAYMENTS)","2382161","http://opencorporates.com/companies/gb/2382161","771592016"
"London Borough of Redbridge","http://opendatacommunities.org/doc/london-borough-council/redbridge","6BADULTSOCIA","Adult Social Care","6COLDINCMENT","Older People (65 or over) incl. Older Mentally Ill","REV","Revenue","R4483","Multi-Disciplinary Team (Wanstead and Woodford)","04-SUPPLIES","Supplies And Services","04F","Communications and computing","5858","Phones","3550029","202002",03/05/2019 00:00:00,15,"51500","Mobile Phones - Personal Numbers","REDACTED DATA","EE LTD (AIRTIME PAYMENTS)","2382161","http://opencorporates.com/companies/gb/2382161","771592016"
"London Borough of Redbridge","http://opendatacommunities.org/doc/london-borough-council/redbridge","6BADULTSOCIA","Adult Social Care","6COLDINCMENT","Older People (65 or over) incl. Older Mentally Ill","REV","Revenue","R4483","Multi-Disciplinary Team (Wanstead and Woodford)","04-SUPPLIES","Supplies And Services","04F","Communications and computing","5858","Phones","3550029","202002",03/05/2019 00:00:00,15,"51500","Mobile Phones - Personal Numbers","REDACTED DATA","EE LTD (AIRTIME PAYMENTS)","2382161","http://opencorporates.com/companies/gb/2382161","771592016"
"London Borough of Redbridge","http://opendatacommunities.org/doc/london-borough-council/redbridge","6BADULTSOCIA","Adult Social Care","6COLDINCMENT","Older People (65 or over) incl. Older Mentally Ill","REV","Revenue","R4483","Multi-Disciplinary Team (Wanstead and Woodford)","04-SUPPLIES","Supplies And Services","04F","Communications and computing","5858","Phones","3550029","202002",03/05/2019 00:00:00,15,"51500","Mobile Phones - Personal Numbers","REDACTED DATA","EE LTD (AIRTIME PAYMENTS)","2382161","http://opencorporates.com/companies/gb/2382161","771592016"
"London Borough of Redbridge","http://opendatacommunities.org/doc/london-borough-council/redbridge","6BADULTSOCIA","Adult Social Care","6COLDINCMENT","Older People (65 or over) incl. Older Mentally Ill","REV","Revenue","R4483","Multi-Disciplinary Team (Wanstead and Woodford)","04-SUPPLIES","Supplies And Services","04F","Communications and computing","5858","Phones","3550029","202002",03/05/2019 00:00:00,15,"51500","Mobile Phones - Personal Numbers","REDACTED DATA","EE LTD (AIRTIME PAYMENTS)","2382161","http://opencorporates.com/companies/gb/2382161","771592016"
"London Borough of Redbridge","http://opendatacommunities.org/doc/london-borough-council/redbridge","6BADULTSOCIA","Adult Social Care","6COLDINCMENT","Older People (65 or over) incl. Older Mentally Ill","REV","Revenue","R4483","Multi-Disciplinary Team (Wanstead and Woodford)","04-SUPPLIES","Supplies And Services","04F","Communications and computing","5858","Phones","3550029","202002",03/05/2019 00:00:00,15,"51500","Mobile Phones - Personal Numbers","REDACTED DATA","EE LTD (AIRTIME PAYMENTS)","2382161","http://opencorporates.com/companies/gb/2382161","771592016"
"London Borough of Redbridge","http://opendatacommunities.org/doc/london-borough-council/redbridge","6BADULTSOCIA","Adult Social Care","6COLDINCMENT","Older People (65 or over) incl. Older Mentally Ill","REV","Revenue","R4483","Multi-Disciplinary Team (Wanstead and Woodford)","04-SUPPLIES","Supplies And Services","04F","Communications and computing","5858","Phones","3550029","202002",03/05/2019 00:00:00,12.5,"51500","Mobile Phones - Personal Numbers","REDACTED DATA","EE LTD (AIRTIME PAYMENTS)","2382161","http://opencorporates.com/companies/gb/2382161","771592016"
"London Borough of Redbridge","http://opendatacommunities.org/doc/london-borough-council/redbridge","6BADULTSOCIA","Adult Social Care","6COLDINCMENT","Older People (65 or over) incl. Older Mentally Ill","REV","Revenue","R4483","Multi-Disciplinary Team (Wanstead and Woodford)","04-SUPPLIES","Supplies And Services","04F","Communications and computing","5858","Phones","3550029","202002",03/05/2019 00:00:00,15,"51500","Mobile Phones - Personal Numbers","REDACTED DATA","EE LTD (AIRTIME PAYMENTS)","2382161","http://opencorporates.com/companies/gb/2382161","771592016"
"London Borough of Redbridge","http://opendatacommunities.org/doc/london-borough-council/redbridge","6BADULTSOCIA","Adult Social Care","6COLDINCMENT","Older People (65 or over) incl. Older Mentally Ill","REV","Revenue","R4483","Multi-Disciplinary Team (Wanstead and Woodford)","04-SUPPLIES","Supplies And Services","04F","Communications and computing","5858","Phones","3550029","202002",03/05/2019 00:00:00,15,"51500","Mobile Phones - Personal Numbers","REDACTED DATA","EE LTD (AIRTIME PAYMENTS)","2382161","http://opencorporates.com/companies/gb/2382161","771592016"
"London Borough of Redbridge","http://opendatacommunities.org/doc/london-borough-council/redbridge","6BADULTSOCIA","Adult Social Care","6COLDINCMENT","Older People (65 or over) incl. Older Mentally Ill","REV","Revenue","R4483","Multi-Disciplinary Team (Wanstead and Woodford)","04-SUPPLIES","Supplies And Services","04F","Communications and computing","5858","Phones","3550029","202002",03/05/2019 00:00:00,15,"51500","Mobile Phones - Personal Numbers","REDACTED DATA","EE LTD (AIRTIME PAYMENTS)","2382161","http://opencorporates.com/companies/gb/2382161","771592016"
"London Borough of Redbridge","http://opendatacommunities.org/doc/london-borough-council/redbridge","6BADULTSOCIA","Adult Social Care","6COLDINCMENT","Older People (65 or over) incl. Older Mentally Ill","REV","Revenue","R4483","Multi-Disciplinary Team (Wanstead and Woodford)","04-SUPPLIES","Supplies And Services","04F","Communications and computing","5858","Phones","3550029","202002",03/05/2019 00:00:00,15,"51500","Mobile Phones - Personal Numbers","REDACTED DATA","EE LTD (AIRTIME PAYMENTS)","2382161","http://opencorporates.com/companies/gb/2382161","771592016"
"London Borough of Redbridge","http://opendatacommunities.org/doc/london-borough-council/redbridge","6BADULTSOCIA","Adult Social Care","6COLDINCMENT","Older People (65 or over) incl. Older Mentally Ill","REV","Revenue","R4483","Multi-Disciplinary Team (Wanstead and Woodford)","04-SUPPLIES","Supplies And Services","04F","Communications and computing","5858","Phones","3550029","202002",03/05/2019 00:00:00,15,"51500","Mobile Phones - Personal Numbers","REDACTED DATA","EE LTD (AIRTIME PAYMENTS)","2382161","http://opencorporates.com/companies/gb/2382161","771592016"
"London Borough of Redbridge","http://opendatacommunities.org/doc/london-borough-council/redbridge","6BADULTSOCIA","Adult Social Care","6COLDINCMENT","Older People (65 or over) incl. Older Mentally Ill","REV","Revenue","R4483","Multi-Disciplinary Team (Wanstead and Woodford)","04-SUPPLIES","Supplies And Services","04F","Communications and computing","5858","Phones","3550029","202002",03/05/2019 00:00:00,15,"51500","Mobile Phones - Personal Numbers","REDACTED DATA","EE LTD (AIRTIME PAYMENTS)","2382161","http://opencorporates.com/companies/gb/2382161","771592016"
"London Borough of Redbridge","http://opendatacommunities.org/doc/london-borough-council/redbridge","6BADULTSOCIA","Adult Social Care","6COLDINCMENT","Older People (65 or over) incl. Older Mentally Ill","REV","Revenue","R4483","Multi-Disciplinary Team (Wanstead and Woodford)","04-SUPPLIES","Supplies And Services","04F","Communications and computing","5858","Phones","3550029","202002",03/05/2019 00:00:00,15,"51500","Mobile Phones - Personal Numbers","REDACTED DATA","EE LTD (AIRTIME PAYMENTS)","2382161","http://opencorporates.com/companies/gb/2382161","771592016"
"London Borough of Redbridge","http://opendatacommunities.org/doc/london-borough-council/redbridge","6BADULTSOCIA","Adult Social Care","6COLDINCMENT","Older People (65 or over) incl. Older Mentally Ill","REV","Revenue","R4483","Multi-Disciplinary Team (Wanstead and Woodford)","04-SUPPLIES","Supplies And Services","04F","Communications and computing","5858","Phones","3550029","202002",03/05/2019 00:00:00,15,"51500","Mobile Phones - Personal Numbers","REDACTED DATA","EE LTD (AIRTIME PAYMENTS)","2382161","http://opencorporates.com/companies/gb/2382161","771592016"
"London Borough of Redbridge","http://opendatacommunities.org/doc/london-borough-council/redbridge","6BADULTSOCIA","Adult Social Care","6COLDINCMENT","Older People (65 or over) incl. Older Mentally Ill","REV","Revenue","R4483","Multi-Disciplinary Team (Wanstead and Woodford)","04-SUPPLIES","Supplies And Services","04F","Communications and computing","5858","Phones","3550029","202002",03/05/2019 00:00:00,15,"51500","Mobile Phones - Personal Numbers","REDACTED DATA","EE LTD (AIRTIME PAYMENTS)","2382161","http://opencorporates.com/companies/gb/2382161","771592016"
"London Borough of Redbridge","http://opendatacommunities.org/doc/london-borough-council/redbridge","6BADULTSOCIA","Adult Social Care","6COLDINCMENT","Older People (65 or over) incl. Older Mentally Ill","REV","Revenue","R4483","Multi-Disciplinary Team (Wanstead and Woodford)","04-SUPPLIES","Supplies And Services","04F","Communications and computing","5858","Phones","3550029","202002",03/05/2019 00:00:00,15,"51500","Mobile Phones - Personal Numbers","REDACTED DATA","EE LTD (AIRTIME PAYMENTS)","2382161","http://opencorporates.com/companies/gb/2382161","771592016"
"London Borough of Redbridge","http://opendatacommunities.org/doc/london-borough-council/redbridge","6BADULTSOCIA","Adult Social Care","6COLDINCMENT","Older People (65 or over) incl. Older Mentally Ill","REV","Revenue","R4485","Multi-Disciplinary Team (Seven Kings)","04-SUPPLIES","Supplies And Services","04F","Communications and computing","5858","Phones","3550029","202002",03/05/2019 00:00:00,15,"51500","Mobile Phones - Personal Numbers","REDACTED DATA","EE LTD (AIRTIME PAYMENTS)","2382161","http://opencorporates.com/companies/gb/2382161","771592016"
"London Borough of Redbridge","http://opendatacommunities.org/doc/london-borough-council/redbridge","6BADULTSOCIA","Adult Social Care","6COLDINCMENT","Older People (65 or over) incl. Older Mentally Ill","REV","Revenue","R4485","Multi-Disciplinary Team (Seven Kings)","04-SUPPLIES","Supplies And Services","04F","Communications and computing","5858","Phones","3550029","202002",03/05/2019 00:00:00,15,"51500","Mobile Phones - Personal Numbers","REDACTED DATA","EE LTD (AIRTIME PAYMENTS)","2382161","http://opencorporates.com/companies/gb/2382161","771592016"
"London Borough of Redbridge","http://opendatacommunities.org/doc/london-borough-council/redbridge","6BADULTSOCIA","Adult Social Care","6COLDINCMENT","Older People (65 or over) incl. Older Mentally Ill","REV","Revenue","R4485","Multi-Disciplinary Team (Seven Kings)","04-SUPPLIES","Supplies And Services","04F","Communications and computing","5858","Phones","3550029","202002",03/05/2019 00:00:00,15,"51500","Mobile Phones - Personal Numbers","REDACTED DATA","EE LTD (AIRTIME PAYMENTS)","2382161","http://opencorporates.com/companies/gb/2382161","771592016"
"London Borough of Redbridge","http://opendatacommunities.org/doc/london-borough-council/redbridge","6BADULTSOCIA","Adult Social Care","6COLDINCMENT","Older People (65 or over) incl. Older Mentally Ill","REV","Revenue","R4485","Multi-Disciplinary Team (Seven Kings)","04-SUPPLIES","Supplies And Services","04F","Communications and computing","5858","Phones","3550029","202002",03/05/2019 00:00:00,15,"51500","Mobile Phones - Personal Numbers","REDACTED DATA","EE LTD (AIRTIME PAYMENTS)","2382161","http://opencorporates.com/companies/gb/2382161","771592016"
"London Borough of Redbridge","http://opendatacommunities.org/doc/london-borough-council/redbridge","6BADULTSOCIA","Adult Social Care","6COLDINCMENT","Older People (65 or over) incl. Older Mentally Ill","REV","Revenue","R4485","Multi-Disciplinary Team (Seven Kings)","04-SUPPLIES","Supplies And Services","04F","Communications and computing","5858","Phones","3550029","202002",03/05/2019 00:00:00,15,"51500","Mobile Phones - Personal Numbers","REDACTED DATA","EE LTD (AIRTIME PAYMENTS)","2382161","http://opencorporates.com/companies/gb/2382161","771592016"
"London Borough of Redbridge","http://opendatacommunities.org/doc/london-borough-council/redbridge","6BADULTSOCIA","Adult Social Care","6COLDINCMENT","Older People (65 or over) incl. Older Mentally Ill","REV","Revenue","R4485","Multi-Disciplinary Team (Seven Kings)","04-SUPPLIES","Supplies And Services","04F","Communications and computing","5858","Phones","3550029","202002",03/05/2019 00:00:00,15,"51500","Mobile Phones - Personal Numbers","REDACTED DATA","EE LTD (AIRTIME PAYMENTS)","2382161","http://opencorporates.com/companies/gb/2382161","771592016"
"London Borough of Redbridge","http://opendatacommunities.org/doc/london-borough-council/redbridge","6BADULTSOCIA","Adult Social Care","6COLDINCMENT","Older People (65 or over) incl. Older Mentally Ill","REV","Revenue","R4485","Multi-Disciplinary Team (Seven Kings)","04-SUPPLIES","Supplies And Services","04F","Communications and computing","5858","Phones","3550029","202002",03/05/2019 00:00:00,12.5,"51500","Mobile Phones - Personal Numbers","REDACTED DATA","EE LTD (AIRTIME PAYMENTS)","2382161","http://opencorporates.com/companies/gb/2382161","771592016"
"London Borough of Redbridge","http://opendatacommunities.org/doc/london-borough-council/redbridge","6BADULTSOCIA","Adult Social Care","6COLDINCMENT","Older People (65 or over) incl. Older Mentally Ill","REV","Revenue","R4485","Multi-Disciplinary Team (Seven Kings)","04-SUPPLIES","Supplies And Services","04F","Communications and computing","5858","Phones","3550029","202002",03/05/2019 00:00:00,15,"51500","Mobile Phones - Personal Numbers","REDACTED DATA","EE LTD (AIRTIME PAYMENTS)","2382161","http://opencorporates.com/companies/gb/2382161","771592016"
"London Borough of Redbridge","http://opendatacommunities.org/doc/london-borough-council/redbridge","6BADULTSOCIA","Adult Social Care","6COLDINCMENT","Older People (65 or over) incl. Older Mentally Ill","REV","Revenue","R4485","Multi-Disciplinary Team (Seven Kings)","04-SUPPLIES","Supplies And Services","04F","Communications and computing","5858","Phones","3550029","202002",03/05/2019 00:00:00,15,"51500","Mobile Phones - Personal Numbers","REDACTED DATA","EE LTD (AIRTIME PAYMENTS)","2382161","http://opencorporates.com/companies/gb/2382161","771592016"
"London Borough of Redbridge","http://opendatacommunities.org/doc/london-borough-council/redbridge","6BADULTSOCIA","Adult Social Care","6COLDINCMENT","Older People (65 or over) incl. Older Mentally Ill","REV","Revenue","R4485","Multi-Disciplinary Team (Seven Kings)","04-SUPPLIES","Supplies And Services","04F","Communications and computing","5858","Phones","3550029","202002",03/05/2019 00:00:00,15,"51500","Mobile Phones - Personal Numbers","REDACTED DATA","EE LTD (AIRTIME PAYMENTS)","2382161","http://opencorporates.com/companies/gb/2382161","771592016"
"London Borough of Redbridge","http://opendatacommunities.org/doc/london-borough-council/redbridge","6BADULTSOCIA","Adult Social Care","6COLDINCMENT","Older People (65 or over) incl. Older Mentally Ill","REV","Revenue","R4485","Multi-Disciplinary Team (Seven Kings)","04-SUPPLIES","Supplies And Services","04F","Communications and computing","5858","Phones","3550029","202002",03/05/2019 00:00:00,15,"51500","Mobile Phones - Personal Numbers","REDACTED DATA","EE LTD (AIRTIME PAYMENTS)","2382161","http://opencorporates.com/companies/gb/2382161","771592016"
"London Borough of Redbridge","http://opendatacommunities.org/doc/london-borough-council/redbridge","6BADULTSOCIA","Adult Social Care","6COLDINCMENT","Older People (65 or over) incl. Older Mentally Ill","REV","Revenue","R4485","Multi-Disciplinary Team (Seven Kings)","04-SUPPLIES","Supplies And Services","04F","Communications and computing","5858","Phones","3550029","202002",03/05/2019 00:00:00,15,"51500","Mobile Phones - Personal Numbers","REDACTED DATA","EE LTD (AIRTIME PAYMENTS)","2382161","http://opencorporates.com/companies/gb/2382161","771592016"
"London Borough of Redbridge","http://opendatacommunities.org/doc/london-borough-council/redbridge","6BADULTSOCIA","Adult Social Care","6COLDINCMENT","Older People (65 or over) incl. Older Mentally Ill","REV","Revenue","R4485","Multi-Disciplinary Team (Seven Kings)","04-SUPPLIES","Supplies And Services","04F","Communications and computing","5858","Phones","3550029","202002",03/05/2019 00:00:00,15,"51500","Mobile Phones - Personal Numbers","REDACTED DATA","EE LTD (AIRTIME PAYMENTS)","2382161","http://opencorporates.com/companies/gb/2382161","771592016"
"London Borough of Redbridge","http://opendatacommunities.org/doc/london-borough-council/redbridge","6BADULTSOCIA","Adult Social Care","6COLDINCMENT","Older People (65 or over) incl. Older Mentally Ill","REV","Revenue","R4485","Multi-Disciplinary Team (Seven Kings)","04-SUPPLIES","Supplies And Services","04F","Communications and computing","5858","Phones","3550029","202002",03/05/2019 00:00:00,15,"51500","Mobile Phones - Personal Numbers","REDACTED DATA","EE LTD (AIRTIME PAYMENTS)","2382161","http://opencorporates.com/companies/gb/2382161","771592016"
"London Borough of Redbridge","http://opendatacommunities.org/doc/london-borough-council/redbridge","6BADULTSOCIA","Adult Social Care","6COLDINCMENT","Older People (65 or over) incl. Older Mentally Ill","REV","Revenue","R4485","Multi-Disciplinary Team (Seven Kings)","04-SUPPLIES","Supplies And Services","04F","Communications and computing","5858","Phones","3550029","202002",03/05/2019 00:00:00,15,"51500","Mobile Phones - Personal Numbers","REDACTED DATA","EE LTD (AIRTIME PAYMENTS)","2382161","http://opencorporates.com/companies/gb/2382161","771592016"
"London Borough of Redbridge","http://opendatacommunities.org/doc/london-borough-council/redbridge","6BADULTSOCIA","Adult Social Care","6CSUPPSERMGT","Support Service & Management Costs","REV","Revenue","R4433","ICT Budgets","04-SUPPLIES","Supplies And Services","04F","Communications and computing","5858","Phones","3550029","202002",03/05/2019 00:00:00,12.5,"51500","Mobile Phones - Personal Numbers","REDACTED DATA","EE LTD (AIRTIME PAYMENTS)","2382161","http://opencorporates.com/companies/gb/2382161","771592016"
"London Borough of Redbridge","http://opendatacommunities.org/doc/london-borough-council/redbridge","6BADULTSOCIA","Adult Social Care","6CSUPPSERMGT","Support Service & Management Costs","REV","Revenue","R4433","ICT Budgets","04-SUPPLIES","Supplies And Services","04F","Communications and computing","5858","Phones","3550029","202002",03/05/2019 00:00:00,12.5,"51500","Mobile Phones - Personal Numbers","REDACTED DATA","EE LTD (AIRTIME PAYMENTS)","2382161","http://opencorporates.com/companies/gb/2382161","771592016"
"London Borough of Redbridge","http://opendatacommunities.org/doc/london-borough-council/redbridge","6BPUBHEALTH","Public Health","6CMISCPHSERV","Miscellaneous Public Health Services","REV","Revenue","R4800","Public Health Support","04-SUPPLIES","Supplies And Services","04F","Communications and computing","5858","Phones","3550029","202002",03/05/2019 00:00:00,12.5,"51500","Mobile Phones - Personal Numbers","REDACTED DATA","EE LTD (AIRTIME PAYMENTS)","2382161","http://opencorporates.com/companies/gb/2382161","771592016"
"London Borough of Redbridge","http://opendatacommunities.org/doc/london-borough-council/redbridge","6BSOCIALSERV","Social Services","4CMANGT&SUPP","Management & Support Services","REV","Revenue","R2151","CQ and F Workforce Development","04-SUPPLIES","Supplies And Services","04F","Communications and computing","5858","Phones","3550029","202002",03/05/2019 00:00:00,12.5,"51500","Mobile Phones - Personal Numbers","REDACTED DATA","EE LTD (AIRTIME PAYMENTS)","2382161","http://opencorporates.com/companies/gb/2382161","771592016"
"London Borough of Redbridge","http://opendatacommunities.org/doc/london-borough-council/redbridge","6BSOCIALSERV","Social Services","6CCHILCOMSNG","Children's Services - Commissioning & Social Work","REV","Revenue","R2121","Core - CSWLAC","04-SUPPLIES","Supplies And Services","04F","Communications and computing","5858","Phones","3550029","202002",03/05/2019 00:00:00,12.5,"51500","Mobile Phones - Personal Numbers","REDACTED DATA","EE LTD (AIRTIME PAYMENTS)","2382161","http://opencorporates.com/companies/gb/2382161","771592016"
"London Borough of Redbridge","http://opendatacommunities.org/doc/london-borough-council/redbridge","6BSOCIALSERV","Social Services","6CCHILLOOKED","Children Looked After","REV","Revenue","R2110","SEN and CD - Business and Finance Social Care","04-SUPPLIES","Supplies And Services","04F","Communications and computing","5858","Phones","3550029","202002",03/05/2019 00:00:00,12.5,"51500","Mobile Phones - Personal Numbers","REDACTED DATA","EE LTD (AIRTIME PAYMENTS)","2382161","http://opencorporates.com/companies/gb/2382161","771592016"
"London Borough of Redbridge","http://opendatacommunities.org/doc/london-borough-council/redbridge","6BSOCIALSERV","Social Services","6CCHILLOOKED","Children Looked After","REV","Revenue","R2110","SEN and CD - Business and Finance Social Care","04-SUPPLIES","Supplies And Services","04F","Communications and computing","5858","Phones","3550029","202002",03/05/2019 00:00:00,12.5,"51500","Mobile Phones - Personal Numbers","REDACTED DATA","EE LTD (AIRTIME PAYMENTS)","2382161","http://opencorporates.com/companies/gb/2382161","771592016"
"London Borough of Redbridge","http://opendatacommunities.org/doc/london-borough-council/redbridge","6BSOCIALSERV","Social Services","6CCHILLOOKED","Children Looked After","REV","Revenue","R2127","Fostering and Adoption","04-SUPPLIES","Supplies And Services","04F","Communications and computing","5858","Phones","3550029","202002",03/05/2019 00:00:00,12.5,"51500","Mobile Phones - Personal Numbers","REDACTED DATA","EE LTD (AIRTIME PAYMENTS)","2382161","http://opencorporates.com/companies/gb/2382161","771592016"
"London Borough of Redbridge","http://opendatacommunities.org/doc/london-borough-council/redbridge","6BSOCIALSERV","Social Services","6CCHILLOOKED","Children Looked After","REV","Revenue","R2127","Fostering and Adoption","04-SUPPLIES","Supplies And Services","04F","Communications and computing","5858","Phones","3550029","202002",03/05/2019 00:00:00,12.5,"51500","Mobile Phones - Personal Numbers","REDACTED DATA","EE LTD (AIRTIME PAYMENTS)","2382161","http://opencorporates.com/companies/gb/2382161","771592016"
"London Borough of Redbridge","http://opendatacommunities.org/doc/london-borough-council/redbridge","6BSOCIALSERV","Social Services","6CCHILLOOKED","Children Looked After","REV","Revenue","R2127","Fostering and Adoption","04-SUPPLIES","Supplies And Services","04F","Communications and computing","5858","Phones","3550029","202002",03/05/2019 00:00:00,12.5,"51500","Mobile Phones - Personal Numbers","REDACTED DATA","EE LTD (AIRTIME PAYMENTS)","2382161","http://opencorporates.com/companies/gb/2382161","771592016"
"London Borough of Redbridge","http://opendatacommunities.org/doc/london-borough-council/redbridge","6BSOCIALSERV","Social Services","6CCHILLOOKED","Children Looked After","REV","Revenue","R2127","Fostering and Adoption","04-SUPPLIES","Supplies And Services","04F","Communications and computing","5858","Phones","3550029","202002",03/05/2019 00:00:00,12.5,"51500","Mobile Phones - Personal Numbers","REDACTED DATA","EE LTD (AIRTIME PAYMENTS)","2382161","http://opencorporates.com/companies/gb/2382161","771592016"
"London Borough of Redbridge","http://opendatacommunities.org/doc/london-borough-council/redbridge","6BSOCIALSERV","Social Services","6CCHILLOOKED","Children Looked After","REV","Revenue","R2127","Fostering and Adoption","04-SUPPLIES","Supplies And Services","04F","Communications and computing","5858","Phones","3550029","202002",03/05/2019 00:00:00,12.5,"51500","Mobile Phones - Personal Numbers","REDACTED DATA","EE LTD (AIRTIME PAYMENTS)","2382161","http://opencorporates.com/companies/gb/2382161","771592016"
"London Borough of Redbridge","http://opendatacommunities.org/doc/london-borough-council/redbridge","6BSOCIALSERV","Social Services","6CCHILLOOKED","Children Looked After","REV","Revenue","R2127","Fostering and Adoption","04-SUPPLIES","Supplies And Services","04F","Communications and computing","5858","Phones","3550029","202002",03/05/2019 00:00:00,12.5,"51500","Mobile Phones - Personal Numbers","REDACTED DATA","EE LTD (AIRTIME PAYMENTS)","2382161","http://opencorporates.com/companies/gb/2382161","771592016"
"London Borough of Redbridge","http://opendatacommunities.org/doc/london-borough-council/redbridge","6BSOCIALSERV","Social Services","6CCHILLOOKED","Children Looked After","REV","Revenue","R2127","Fostering and Adoption","04-SUPPLIES","Supplies And Services","04F","Communications and computing","5858","Phones","3550029","202002",03/05/2019 00:00:00,12.5,"51500","Mobile Phones - Personal Numbers","REDACTED DATA","EE LTD (AIRTIME PAYMENTS)","2382161","http://opencorporates.com/companies/gb/2382161","771592016"
"London Borough of Redbridge","http://opendatacommunities.org/doc/london-borough-council/redbridge","6BSOCIALSERV","Social Services","6CCHILLOOKED","Children Looked After","REV","Revenue","R2127","Fostering and Adoption","04-SUPPLIES","Supplies And Services","04F","Communications and computing","5858","Phones","3550029","202002",03/05/2019 00:00:00,12.5,"51500","Mobile Phones - Personal Numbers","REDACTED DATA","EE LTD (AIRTIME PAYMENTS)","2382161","http://opencorporates.com/companies/gb/2382161","771592016"
"London Borough of Redbridge","http://opendatacommunities.org/doc/london-borough-council/redbridge","6BSOCIALSERV","Social Services","6CCHILLOOKED","Children Looked After","REV","Revenue","R2127","Fostering and Adoption","04-SUPPLIES","Supplies And Services","04F","Communications and computing","5858","Phones","3550029","202002",03/05/2019 00:00:00,12.5,"51500","Mobile Phones - Personal Numbers","REDACTED DATA","EE LTD (AIRTIME PAYMENTS)","2382161","http://opencorporates.com/companies/gb/2382161","771592016"
"London Borough of Redbridge","http://opendatacommunities.org/doc/london-borough-council/redbridge","6BSOCIALSERV","Social Services","6CCHILLOOKED","Children Looked After","REV","Revenue","R2127","Fostering and Adoption","04-SUPPLIES","Supplies And Services","04F","Communications and computing","5858","Phones","3550029","202002",03/05/2019 00:00:00,12.5,"51500","Mobile Phones - Personal Numbers","REDACTED DATA","EE LTD (AIRTIME PAYMENTS)","2382161","http://opencorporates.com/companies/gb/2382161","771592016"
"London Borough of Redbridge","http://opendatacommunities.org/doc/london-borough-council/redbridge","6BSOCIALSERV","Social Services","6CCHILLOOKED","Children Looked After","REV","Revenue","R2127","Fostering and Adoption","04-SUPPLIES","Supplies And Services","04F","Communications and computing","5858","Phones","3550029","202002",03/05/2019 00:00:00,12.5,"51500","Mobile Phones - Personal Numbers","REDACTED DATA","EE LTD (AIRTIME PAYMENTS)","2382161","http://opencorporates.com/companies/gb/2382161","771592016"
"London Borough of Redbridge","http://opendatacommunities.org/doc/london-borough-council/redbridge","6BSOCIALSERV","Social Services","6CCHILLOOKED","Children Looked After","REV","Revenue","R2127","Fostering and Adoption","04-SUPPLIES","Supplies And Services","04F","Communications and computing","5858","Phones","3550029","202002",03/05/2019 00:00:00,12.5,"51500","Mobile Phones - Personal Numbers","REDACTED DATA","EE LTD (AIRTIME PAYMENTS)","2382161","http://opencorporates.com/companies/gb/2382161","771592016"
"London Borough of Redbridge","http://opendatacommunities.org/doc/london-borough-council/redbridge","6BSOCIALSERV","Social Services","6CCHILLOOKED","Children Looked After","REV","Revenue","R2127","Fostering and Adoption","04-SUPPLIES","Supplies And Services","04F","Communications and computing","5858","Phones","3550029","202002",03/05/2019 00:00:00,12.5,"51500","Mobile Phones - Personal Numbers","REDACTED DATA","EE LTD (AIRTIME PAYMENTS)","2382161","http://opencorporates.com/companies/gb/2382161","771592016"
"London Borough of Redbridge","http://opendatacommunities.org/doc/london-borough-council/redbridge","6BSOCIALSERV","Social Services","6CCHILLOOKED","Children Looked After","REV","Revenue","R2127","Fostering and Adoption","04-SUPPLIES","Supplies And Services","04F","Communications and computing","5858","Phones","3550029","202002",03/05/2019 00:00:00,12.5,"51500","Mobile Phones - Personal Numbers","REDACTED DATA","EE LTD (AIRTIME PAYMENTS)","2382161","http://opencorporates.com/companies/gb/2382161","771592016"
"London Borough of Redbridge","http://opendatacommunities.org/doc/london-borough-council/redbridge","6BSOCIALSERV","Social Services","6CCHILLOOKED","Children Looked After","REV","Revenue","R2140","CQ and F - Safeguarding and Care Planning Soc Care","04-SUPPLIES","Supplies And Services","04F","Communications and computing","5858","Phones","3550029","202002",03/05/2019 00:00:00,12.5,"51500","Mobile Phones - Personal Numbers","REDACTED DATA","EE LTD (AIRTIME PAYMENTS)","2382161","http://opencorporates.com/companies/gb/2382161","771592016"
"London Borough of Redbridge","http://opendatacommunities.org/doc/london-borough-council/redbridge","6BSOCIALSERV","Social Services","6CCHILLOOKED","Children Looked After","REV","Revenue","R2140","CQ and F - Safeguarding and Care Planning Soc Care","04-SUPPLIES","Supplies And Services","04F","Communications and computing","5858","Phones","3550029","202002",03/05/2019 00:00:00,12.5,"51500","Mobile Phones - Personal Numbers","REDACTED DATA","EE LTD (AIRTIME PAYMENTS)","2382161","http://opencorporates.com/companies/gb/2382161","771592016"
"London Borough of Redbridge","http://opendatacommunities.org/doc/london-borough-council/redbridge","6BSOCIALSERV","Social Services","6CCHILLOOKED","Children Looked After","REV","Revenue","R2140","CQ and F - Safeguarding and Care Planning Soc Care","04-SUPPLIES","Supplies And Services","04F","Communications and computing","5858","Phones","3550029","202002",03/05/2019 00:00:00,12.5,"51500","Mobile Phones - Personal Numbers","REDACTED DATA","EE LTD (AIRTIME PAYMENTS)","2382161","http://opencorporates.com/companies/gb/2382161","771592016"
"London Borough of Redbridge","http://opendatacommunities.org/doc/london-borough-council/redbridge","6BSOCIALSERV","Social Services","6CCHILLOOKED","Children Looked After","REV","Revenue","R2140","CQ and F - Safeguarding and Care Planning Soc Care","04-SUPPLIES","Supplies And Services","04F","Communications and computing","5858","Phones","3550029","202002",03/05/2019 00:00:00,12.5,"51500","Mobile Phones - Personal Numbers","REDACTED DATA","EE LTD (AIRTIME PAYMENTS)","2382161","http://opencorporates.com/companies/gb/2382161","771592016"
"London Borough of Redbridge","http://opendatacommunities.org/doc/london-borough-council/redbridge","6BSOCIALSERV","Social Services","6CCHILLOOKED","Children Looked After","REV","Revenue","R2140","CQ and F - Safeguarding and Care Planning Soc Care","04-SUPPLIES","Supplies And Services","04F","Communications and computing","5858","Phones","3550029","202002",03/05/2019 00:00:00,12.5,"51500","Mobile Phones - Personal Numbers","REDACTED DATA","EE LTD (AIRTIME PAYMENTS)","2382161","http://opencorporates.com/companies/gb/2382161","771592016"
"London Borough of Redbridge","http://opendatacommunities.org/doc/london-borough-council/redbridge","6BSOCIALSERV","Social Services","6CCHILLOOKED","Children Looked After","REV","Revenue","R2140","CQ and F - Safeguarding and Care Planning Soc Care","04-SUPPLIES","Supplies And Services","04F","Communications and computing","5858","Phones","3550029","202002",03/05/2019 00:00:00,12.5,"51500","Mobile Phones - Personal Numbers","REDACTED DATA","EE LTD (AIRTIME PAYMENTS)","2382161","http://opencorporates.com/companies/gb/2382161","771592016"
"London Borough of Redbridge","http://opendatacommunities.org/doc/london-borough-council/redbridge","6BSOCIALSERV","Social Services","6CCHILLOOKED","Children Looked After","REV","Revenue","R2140","CQ and F - Safeguarding and Care Planning Soc Care","04-SUPPLIES","Supplies And Services","04F","Communications and computing","5858","Phones","3550029","202002",03/05/2019 00:00:00,12.5,"51500","Mobile Phones - Personal Numbers","REDACTED DATA","EE LTD (AIRTIME PAYMENTS)","2382161","http://opencorporates.com/companies/gb/2382161","771592016"
"London Borough of Redbridge","http://opendatacommunities.org/doc/london-borough-council/redbridge","6BSOCIALSERV","Social Services","6CCHILLOOKED","Children Looked After","REV","Revenue","R2140","CQ and F - Safeguarding and Care Planning Soc Care","04-SUPPLIES","Supplies And Services","04F","Communications and computing","5858","Phones","3550029","202002",03/05/2019 00:00:00,12.5,"51500","Mobile Phones - Personal Numbers","REDACTED DATA","EE LTD (AIRTIME PAYMENTS)","2382161","http://opencorporates.com/companies/gb/2382161","771592016"
"London Borough of Redbridge","http://opendatacommunities.org/doc/london-borough-council/redbridge","6BSOCIALSERV","Social Services","6CCHILLOOKED","Children Looked After","REV","Revenue","R2140","CQ and F - Safeguarding and Care Planning Soc Care","04-SUPPLIES","Supplies And Services","04F","Communications and computing","5858","Phones","3550029","202002",03/05/2019 00:00:00,12.5,"51500","Mobile Phones - Personal Numbers","REDACTED DATA","EE LTD (AIRTIME PAYMENTS)","2382161","http://opencorporates.com/companies/gb/2382161","771592016"
"London Borough of Redbridge","http://opendatacommunities.org/doc/london-borough-council/redbridge","6BSOCIALSERV","Social Services","6CCHILLOOKED","Children Looked After","REV","Revenue","R2140","CQ and F - Safeguarding and Care Planning Soc Care","04-SUPPLIES","Supplies And Services","04F","Communications and computing","5858","Phones","3550029","202002",03/05/2019 00:00:00,12.5,"51500","Mobile Phones - Personal Numbers","REDACTED DATA","EE LTD (AIRTIME PAYMENTS)","2382161","http://opencorporates.com/companies/gb/2382161","771592016"
"London Borough of Redbridge","http://opendatacommunities.org/doc/london-borough-council/redbridge","6BSOCIALSERV","Social Services","6CCHILLOOKED","Children Looked After","REV","Revenue","R2140","CQ and F - Safeguarding and Care Planning Soc Care","04-SUPPLIES","Supplies And Services","04F","Communications and computing","5858","Phones","3550029","202002",03/05/2019 00:00:00,12.5,"51500","Mobile Phones - Personal Numbers","REDACTED DATA","EE LTD (AIRTIME PAYMENTS)","2382161","http://opencorporates.com/companies/gb/2382161","771592016"
"London Borough of Redbridge","http://opendatacommunities.org/doc/london-borough-council/redbridge","6BSOCIALSERV","Social Services","6CCHILLOOKED","Children Looked After","REV","Revenue","R2140","CQ and F - Safeguarding and Care Planning Soc Care","04-SUPPLIES","Supplies And Services","04F","Communications and computing","5858","Phones","3550029","202002",03/05/2019 00:00:00,12.5,"51500","Mobile Phones - Personal Numbers","REDACTED DATA","EE LTD (AIRTIME PAYMENTS)","2382161","http://opencorporates.com/companies/gb/2382161","771592016"
"London Borough of Redbridge","http://opendatacommunities.org/doc/london-borough-council/redbridge","6BSOCIALSERV","Social Services","6CCHILLOOKED","Children Looked After","REV","Revenue","R2140","CQ and F - Safeguarding and Care Planning Soc Care","04-SUPPLIES","Supplies And Services","04F","Communications and computing","5858","Phones","3550029","202002",03/05/2019 00:00:00,12.5,"51500","Mobile Phones - Personal Numbers","REDACTED DATA","EE LTD (AIRTIME PAYMENTS)","2382161","http://opencorporates.com/companies/gb/2382161","771592016"
"London Borough of Redbridge","http://opendatacommunities.org/doc/london-borough-council/redbridge","6BSOCIALSERV","Social Services","6CCHILLOOKED","Children Looked After","REV","Revenue","R2140","CQ and F - Safeguarding and Care Planning Soc Care","04-SUPPLIES","Supplies And Services","04F","Communications and computing","5858","Phones","3550029","202002",03/05/2019 00:00:00,12.5,"51500","Mobile Phones - Personal Numbers","REDACTED DATA","EE LTD (AIRTIME PAYMENTS)","2382161","http://opencorporates.com/companies/gb/2382161","771592016"
"London Borough of Redbridge","http://opendatacommunities.org/doc/london-borough-council/redbridge","6BSOCIALSERV","Social Services","6CCHILLOOKED","Children Looked After","REV","Revenue","R2140","CQ and F - Safeguarding and Care Planning Soc Care","04-SUPPLIES","Supplies And Services","04F","Communications and computing","5858","Phones","3550029","202002",03/05/2019 00:00:00,12.5,"51500","Mobile Phones - Personal Numbers","REDACTED DATA","EE LTD (AIRTIME PAYMENTS)","2382161","http://opencorporates.com/companies/gb/2382161","771592016"
"London Borough of Redbridge","http://opendatacommunities.org/doc/london-borough-council/redbridge","6BSOCIALSERV","Social Services","6CCHILLOOKED","Children Looked After","REV","Revenue","R2140","CQ and F - Safeguarding and Care Planning Soc Care","04-SUPPLIES","Supplies And Services","04F","Communications and computing","5858","Phones","3550029","202002",03/05/2019 00:00:00,12.5,"51500","Mobile Phones - Personal Numbers","REDACTED DATA","EE LTD (AIRTIME PAYMENTS)","2382161","http://opencorporates.com/companies/gb/2382161","771592016"
"London Borough of Redbridge","http://opendatacommunities.org/doc/london-borough-council/redbridge","6BSOCIALSERV","Social Services","6CCHILLOOKED","Children Looked After","REV","Revenue","R2140","CQ and F - Safeguarding and Care Planning Soc Care","04-SUPPLIES","Supplies And Services","04F","Communications and computing","5858","Phones","3550029","202002",03/05/2019 00:00:00,12.5,"51500","Mobile Phones - Personal Numbers","REDACTED DATA","EE LTD (AIRTIME PAYMENTS)","2382161","http://opencorporates.com/companies/gb/2382161","771592016"
"London Borough of Redbridge","http://opendatacommunities.org/doc/london-borough-council/redbridge","6BSOCIALSERV","Social Services","6CCHILLOOKED","Children Looked After","REV","Revenue","R2140","CQ and F - Safeguarding and Care Planning Soc Care","04-SUPPLIES","Supplies And Services","04F","Communications and computing","5858","Phones","3550029","202002",03/05/2019 00:00:00,12.5,"51500","Mobile Phones - Personal Numbers","REDACTED DATA","EE LTD (AIRTIME PAYMENTS)","2382161","http://opencorporates.com/companies/gb/2382161","771592016"
"London Borough of Redbridge","http://opendatacommunities.org/doc/london-borough-council/redbridge","6BSOCIALSERV","Social Services","6CCHILLOOKED","Children Looked After","REV","Revenue","R2157","Core CP and EI","04-SUPPLIES","Supplies And Services","04F","Communications and computing","5858","Phones","3550029","202002",03/05/2019 00:00:00,12.5,"51500","Mobile Phones - Personal Numbers","REDACTED DATA","EE LTD (AIRTIME PAYMENTS)","2382161","http://opencorporates.com/companies/gb/2382161","771592016"
"London Borough of Redbridge","http://opendatacommunities.org/doc/london-borough-council/redbridge","6BSOCIALSERV","Social Services","6CCHILLOOKED","Children Looked After","REV","Revenue","R2166","Child Protection Assmt Service Soc Care","04-SUPPLIES","Supplies And Services","04F","Communications and computing","5858","Phones","3550029","202002",03/05/2019 00:00:00,12.5,"51500","Mobile Phones - Personal Numbers","REDACTED DATA","EE LTD (AIRTIME PAYMENTS)","2382161","http://opencorporates.com/companies/gb/2382161","771592016"
"London Borough of Redbridge","http://opendatacommunities.org/doc/london-borough-council/redbridge","6BSOCIALSERV","Social Services","6CCHILLOOKED","Children Looked After","REV","Revenue","R2166","Child Protection Assmt Service Soc Care","04-SUPPLIES","Supplies And Services","04F","Communications and computing","5858","Phones","3550029","202002",03/05/2019 00:00:00,12.5,"51500","Mobile Phones - Personal Numbers","REDACTED DATA","EE LTD (AIRTIME PAYMENTS)","2382161","http://opencorporates.com/companies/gb/2382161","771592016"
"London Borough of Redbridge","http://opendatacommunities.org/doc/london-borough-council/redbridge","6BSOCIALSERV","Social Services","6CCHILLOOKED","Children Looked After","REV","Revenue","R2166","Child Protection Assmt Service Soc Care","04-SUPPLIES","Supplies And Services","04F","Communications and computing","5858","Phones","3550029","202002",03/05/2019 00:00:00,12.5,"51500","Mobile Phones - Personal Numbers","REDACTED DATA","EE LTD (AIRTIME PAYMENTS)","2382161","http://opencorporates.com/companies/gb/2382161","771592016"
"London Borough of Redbridge","http://opendatacommunities.org/doc/london-borough-council/redbridge","6BSOCIALSERV","Social Services","6CCHILLOOKED","Children Looked After","REV","Revenue","R2166","Child Protection Assmt Service Soc Care","04-SUPPLIES","Supplies And Services","04F","Communications and computing","5858","Phones","3550029","202002",03/05/2019 00:00:00,12.5,"51500","Mobile Phones - Personal Numbers","REDACTED DATA","EE LTD (AIRTIME PAYMENTS)","2382161","http://opencorporates.com/companies/gb/2382161","771592016"
"London Borough of Redbridge","http://opendatacommunities.org/doc/london-borough-council/redbridge","6BSOCIALSERV","Social Services","6CCHILLOOKED","Children Looked After","REV","Revenue","R2166","Child Protection Assmt Service Soc Care","04-SUPPLIES","Supplies And Services","04F","Communications and computing","5858","Phones","3550029","202002",03/05/2019 00:00:00,12.5,"51500","Mobile Phones - Personal Numbers","REDACTED DATA","EE LTD (AIRTIME PAYMENTS)","2382161","http://opencorporates.com/companies/gb/2382161","771592016"
"London Borough of Redbridge","http://opendatacommunities.org/doc/london-borough-council/redbridge","6BSOCIALSERV","Social Services","6CCHILLOOKED","Children Looked After","REV","Revenue","R2166","Child Protection Assmt Service Soc Care","04-SUPPLIES","Supplies And Services","04F","Communications and computing","5858","Phones","3550029","202002",03/05/2019 00:00:00,12.5,"51500","Mobile Phones - Personal Numbers","REDACTED DATA","EE LTD (AIRTIME PAYMENTS)","2382161","http://opencorporates.com/companies/gb/2382161","771592016"
"London Borough of Redbridge","http://opendatacommunities.org/doc/london-borough-council/redbridge","6BSOCIALSERV","Social Services","6CCHILLOOKED","Children Looked After","REV","Revenue","R2166","Child Protection Assmt Service Soc Care","04-SUPPLIES","Supplies And Services","04F","Communications and computing","5858","Phones","3550029","202002",03/05/2019 00:00:00,12.5,"51500","Mobile Phones - Personal Numbers","REDACTED DATA","EE LTD (AIRTIME PAYMENTS)","2382161","http://opencorporates.com/companies/gb/2382161","771592016"
"London Borough of Redbridge","http://opendatacommunities.org/doc/london-borough-council/redbridge","6BSOCIALSERV","Social Services","6CCHILLOOKED","Children Looked After","REV","Revenue","R2166","Child Protection Assmt Service Soc Care","04-SUPPLIES","Supplies And Services","04F","Communications and computing","5858","Phones","3550029","202002",03/05/2019 00:00:00,12.5,"51500","Mobile Phones - Personal Numbers","REDACTED DATA","EE LTD (AIRTIME PAYMENTS)","2382161","http://opencorporates.com/companies/gb/2382161","771592016"
"London Borough of Redbridge","http://opendatacommunities.org/doc/london-borough-council/redbridge","6BSOCIALSERV","Social Services","6CCHILLOOKED","Children Looked After","REV","Revenue","R2166","Child Protection Assmt Service Soc Care","04-SUPPLIES","Supplies And Services","04F","Communications and computing","5858","Phones","3550029","202002",03/05/2019 00:00:00,12.5,"51500","Mobile Phones - Personal Numbers","REDACTED DATA","EE LTD (AIRTIME PAYMENTS)","2382161","http://opencorporates.com/companies/gb/2382161","771592016"
"London Borough of Redbridge","http://opendatacommunities.org/doc/london-borough-council/redbridge","6BSOCIALSERV","Social Services","6CCHILLOOKED","Children Looked After","REV","Revenue","R2178","Early Intervention & Family Support Service","04-SUPPLIES","Supplies And Services","04F","Communications and computing","5858","Phones","3550029","202002",03/05/2019 00:00:00,12.5,"51500","Mobile Phones - Personal Numbers","REDACTED DATA","EE LTD (AIRTIME PAYMENTS)","2382161","http://opencorporates.com/companies/gb/2382161","771592016"
"London Borough of Redbridge","http://opendatacommunities.org/doc/london-borough-council/redbridge","6BSOCIALSERV","Social Services","6COTHC&FSERV","Other Children's & Families' Services","REV","Revenue","R2169","Emergency Duty Team (EDT)","04-SUPPLIES","Supplies And Services","04F","Communications and computing","5858","Phones","3550029","202002",03/05/2019 00:00:00,12.5,"51500","Mobile Phones - Personal Numbers","REDACTED DATA","EE LTD (AIRTIME PAYMENTS)","2382161","http://opencorporates.com/companies/gb/2382161","771592016"
"London Borough of Redbridge","http://opendatacommunities.org/doc/london-borough-council/redbridge","6BSOCIALSERV","Social Services","6CSUPPSERMGT","Support Service & Management Costs","REV","Revenue","R2133","Chief Children and Families Officer","04-SUPPLIES","Supplies And Services","04F","Communications and computing","5858","Phones","3550029","202002",03/05/2019 00:00:00,12.5,"51500","Mobile Phones - Personal Numbers","REDACTED DATA","EE LTD (AIRTIME PAYMENTS)","2382161","http://opencorporates.com/companies/gb/2382161","771592016"
"London Borough of Redbridge","http://opendatacommunities.org/doc/london-borough-council/redbridge","7BCDC","Corporate & Democratic Core","7CCORPMGT","Corporate Management","REV","Revenue","R9804","Members Exp/Allowances","04-SUPPLIES","Supplies And Services","04F","Communications and computing","5858","Phones","3550029","202002",03/05/2019 00:00:00,15.5,"51500","Mobile Phones - Personal Numbers","REDACTED DATA","EE LTD (AIRTIME PAYMENTS)","2382161","http://opencorporates.com/companies/gb/2382161","771592016"
"London Borough of Redbridge","http://opendatacommunities.org/doc/london-borough-council/redbridge","7BCDC","Corporate & Democratic Core","7CCORPMGT","Corporate Management","REV","Revenue","R9804","Members Exp/Allowances","04-SUPPLIES","Supplies And Services","04F","Communications and computing","5858","Phones","3550029","202002",03/05/2019 00:00:00,12.5,"51500","Mobile Phones - Personal Numbers","REDACTED DATA","EE LTD (AIRTIME PAYMENTS)","2382161","http://opencorporates.com/companies/gb/2382161","771592016"
"London Borough of Redbridge","http://opendatacommunities.org/doc/london-borough-council/redbridge","7BCDC","Corporate & Democratic Core","7CCORPMGT","Corporate Management","REV","Revenue","R9804","Members Exp/Allowances","04-SUPPLIES","Supplies And Services","04F","Communications and computing","5858","Phones","3550029","202002",03/05/2019 00:00:00,12.5,"51500","Mobile Phones - Personal Numbers","REDACTED DATA","EE LTD (AIRTIME PAYMENTS)","2382161","http://opencorporates.com/companies/gb/2382161","771592016"
"London Borough of Redbridge","http://opendatacommunities.org/doc/london-borough-council/redbridge","7BCDC","Corporate & Democratic Core","7CCORPMGT","Corporate Management","REV","Revenue","R9804","Members Exp/Allowances","04-SUPPLIES","Supplies And Services","04F","Communications and computing","5858","Phones","3550029","202002",03/05/2019 00:00:00,15.5,"51500","Mobile Phones - Personal Numbers","REDACTED DATA","EE LTD (AIRTIME PAYMENTS)","2382161","http://opencorporates.com/companies/gb/2382161","771592016"
"London Borough of Redbridge","http://opendatacommunities.org/doc/london-borough-council/redbridge","7BCDC","Corporate & Democratic Core","7CCORPMGT","Corporate Management","REV","Revenue","R9827","Pub Rels and Infn","04-SUPPLIES","Supplies And Services","04F","Communications and computing","5858","Phones","3550029","202002",03/05/2019 00:00:00,12.5,"51500","Mobile Phones - Personal Numbers","REDACTED DATA","EE LTD (AIRTIME PAYMENTS)","2382161","http://opencorporates.com/companies/gb/2382161","771592016"
"London Borough of Redbridge","http://opendatacommunities.org/doc/london-borough-council/redbridge","9BNONBVO","Outside the BVACOP Objective Structure","9CNONBVO","Outside the BVACOP Objective Structure","REV","Revenue","R5214","Environmental Services Team","04-SUPPLIES","Supplies And Services","04F","Communications and computing","5858","Phones","3550029","202002",03/05/2019 00:00:00,12.5,"51500","Mobile Phones - Personal Numbers","REDACTED DATA","EE LTD (AIRTIME PAYMENTS)","2382161","http://opencorporates.com/companies/gb/2382161","771592016"
"London Borough of Redbridge","http://opendatacommunities.org/doc/london-borough-council/redbridge","9BNONBVO","Outside the BVACOP Objective Structure","9CNONBVO","Outside the BVACOP Objective Structure","REV","Revenue","R5214","Environmental Services Team","04-SUPPLIES","Supplies And Services","04F","Communications and computing","5858","Phones","3550029","202002",03/05/2019 00:00:00,12.5,"51500","Mobile Phones - Personal Numbers","REDACTED DATA","EE LTD (AIRTIME PAYMENTS)","2382161","http://opencorporates.com/companies/gb/2382161","771592016"
"London Borough of Redbridge","http://opendatacommunities.org/doc/london-borough-council/redbridge","9BNONBVO","Outside the BVACOP Objective Structure","9CNONBVO","Outside the BVACOP Objective Structure","REV","Revenue","R5214","Environmental Services Team","04-SUPPLIES","Supplies And Services","04F","Communications and computing","5858","Phones","3550029","202002",03/05/2019 00:00:00,12.5,"51500","Mobile Phones - Personal Numbers","REDACTED DATA","EE LTD (AIRTIME PAYMENTS)","2382161","http://opencorporates.com/companies/gb/2382161","771592016"
"London Borough of Redbridge","http://opendatacommunities.org/doc/london-borough-council/redbridge","9BNONBVO","Outside the BVACOP Objective Structure","9CNONBVO","Outside the BVACOP Objective Structure","REV","Revenue","R5214","Environmental Services Team","04-SUPPLIES","Supplies And Services","04F","Communications and computing","5858","Phones","3550029","202002",03/05/2019 00:00:00,12.5,"51500","Mobile Phones - Personal Numbers","REDACTED DATA","EE LTD (AIRTIME PAYMENTS)","2382161","http://opencorporates.com/companies/gb/2382161","771592016"
"London Borough of Redbridge","http://opendatacommunities.org/doc/london-borough-council/redbridge","9BNONBVO","Outside the BVACOP Objective Structure","9CNONBVO","Outside the BVACOP Objective Structure","REV","Revenue","R7602","Street Cleansing","04-SUPPLIES","Supplies And Services","04F","Communications and computing","5858","Phones","3550029","202002",03/05/2019 00:00:00,12.5,"51500","Mobile Phones - Personal Numbers","REDACTED DATA","EE LTD (AIRTIME PAYMENTS)","2382161","http://opencorporates.com/companies/gb/2382161","771592016"
"London Borough of Redbridge","http://opendatacommunities.org/doc/london-borough-council/redbridge","9BNONBVO","Outside the BVACOP Objective Structure","9CNONBVO","Outside the BVACOP Objective Structure","REV","Revenue","R7602","Street Cleansing","04-SUPPLIES","Supplies And Services","04F","Communications and computing","5858","Phones","3550029","202002",03/05/2019 00:00:00,12.5,"51500","Mobile Phones - Personal Numbers","REDACTED DATA","EE LTD (AIRTIME PAYMENTS)","2382161","http://opencorporates.com/companies/gb/2382161","771592016"
"London Borough of Redbridge","http://opendatacommunities.org/doc/london-borough-council/redbridge","9BNONBVO","Outside the BVACOP Objective Structure","9CNONBVO","Outside the BVACOP Objective Structure","REV","Revenue","R7602","Street Cleansing","04-SUPPLIES","Supplies And Services","04F","Communications and computing","5858","Phones","3550029","202002",03/05/2019 00:00:00,12.5,"51500","Mobile Phones - Personal Numbers","REDACTED DATA","EE LTD (AIRTIME PAYMENTS)","2382161","http://opencorporates.com/companies/gb/2382161","771592016"
"London Borough of Redbridge","http://opendatacommunities.org/doc/london-borough-council/redbridge","9BNONBVO","Outside the BVACOP Objective Structure","9CNONBVO","Outside the BVACOP Objective Structure","REV","Revenue","R7602","Street Cleansing","04-SUPPLIES","Supplies And Services","04F","Communications and computing","5858","Phones","3550029","202002",03/05/2019 00:00:00,12.5,"51500","Mobile Phones - Personal Numbers","REDACTED DATA","EE LTD (AIRTIME PAYMENTS)","2382161","http://opencorporates.com/companies/gb/2382161","771592016"
"London Borough of Redbridge","http://opendatacommunities.org/doc/london-borough-council/redbridge","9BNONBVO","Outside the BVACOP Objective Structure","9CNONBVO","Outside the BVACOP Objective Structure","REV","Revenue","R7602","Street Cleansing","04-SUPPLIES","Supplies And Services","04F","Communications and computing","5858","Phones","3550029","202002",03/05/2019 00:00:00,12.5,"51500","Mobile Phones - Personal Numbers","REDACTED DATA","EE LTD (AIRTIME PAYMENTS)","2382161","http://opencorporates.com/companies/gb/2382161","771592016"
"London Borough of Redbridge","http://opendatacommunities.org/doc/london-borough-council/redbridge","9BNONBVO","Outside the BVACOP Objective Structure","9CNONBVO","Outside the BVACOP Objective Structure","REV","Revenue","R7602","Street Cleansing","04-SUPPLIES","Supplies And Services","04F","Communications and computing","5858","Phones","3550029","202002",03/05/2019 00:00:00,12.5,"51500","Mobile Phones - Personal Numbers","REDACTED DATA","EE LTD (AIRTIME PAYMENTS)","2382161","http://opencorporates.com/companies/gb/2382161","771592016"
"London Borough of Redbridge","http://opendatacommunities.org/doc/london-borough-council/redbridge","9BNONBVO","Outside the BVACOP Objective Structure","9CNONBVO","Outside the BVACOP Objective Structure","REV","Revenue","R7602","Street Cleansing","04-SUPPLIES","Supplies And Services","04F","Communications and computing","5858","Phones","3550029","202002",03/05/2019 00:00:00,12.5,"51500","Mobile Phones - Personal Numbers","REDACTED DATA","EE LTD (AIRTIME PAYMENTS)","2382161","http://opencorporates.com/companies/gb/2382161","771592016"
"London Borough of Redbridge","http://opendatacommunities.org/doc/london-borough-council/redbridge","9BNONBVO","Outside the BVACOP Objective Structure","9CNONBVO","Outside the BVACOP Objective Structure","REV","Revenue","R7602","Street Cleansing","04-SUPPLIES","Supplies And Services","04F","Communications and computing","5858","Phones","3550029","202002",03/05/2019 00:00:00,12.5,"51500","Mobile Phones - Personal Numbers","REDACTED DATA","EE LTD (AIRTIME PAYMENTS)","2382161","http://opencorporates.com/companies/gb/2382161","771592016"
"London Borough of Redbridge","http://opendatacommunities.org/doc/london-borough-council/redbridge","9BNONBVO","Outside the BVACOP Objective Structure","9CNONBVO","Outside the BVACOP Objective Structure","REV","Revenue","R7602","Street Cleansing","04-SUPPLIES","Supplies And Services","04F","Communications and computing","5858","Phones","3550029","202002",03/05/2019 00:00:00,12.5,"51500","Mobile Phones - Personal Numbers","REDACTED DATA","EE LTD (AIRTIME PAYMENTS)","2382161","http://opencorporates.com/companies/gb/2382161","771592016"
"London Borough of Redbridge","http://opendatacommunities.org/doc/london-borough-council/redbridge","9BNONBVO","Outside the BVACOP Objective Structure","9CNONBVO","Outside the BVACOP Objective Structure","REV","Revenue","R7602","Street Cleansing","04-SUPPLIES","Supplies And Services","04F","Communications and computing","5858","Phones","3550029","202002",03/05/2019 00:00:00,12.5,"51500","Mobile Phones - Personal Numbers","REDACTED DATA","EE LTD (AIRTIME PAYMENTS)","2382161","http://opencorporates.com/companies/gb/2382161","771592016"
"London Borough of Redbridge","http://opendatacommunities.org/doc/london-borough-council/redbridge","6BADULTSOCIA","Adult Social Care","6COTHADSERV","Other Adult Services","REV","Revenue","R4201","LD - Care Packages","05-THIRD","Third Party Payments","05H","Private contractors","6910","Care Packages","91055854","202002",01/05/2019 00:00:00,-1764.11,"4855","Arts","REDACTED DATA","SNARESBROOK ARTS PROJECT","6503281","http://opencorporates.com/companies/gb/6503281",""
"London Borough of Redbridge","http://opendatacommunities.org/doc/london-borough-council/redbridge","6BADULTSOCIA","Adult Social Care","6COTHADSERV","Other Adult Services","REV","Revenue","R4201","LD - Care Packages","05-THIRD","Third Party Payments","05H","Private contractors","6910","Care Packages","91055854","202002",01/05/2019 00:00:00,7850,"4855","Arts","REDACTED DATA","SNARESBROOK ARTS PROJECT","6503281","http://opencorporates.com/companies/gb/6503281",""
"London Borough of Redbridge","http://opendatacommunities.org/doc/london-borough-council/redbridge","7BCDC","Corporate & Democratic Core","7CCORPMGT","Corporate Management","REV","Revenue","R9807","Other Mayoral Exps","04-SUPPLIES","Supplies And Services","04G","Expenses","5903","Civic/Mayoral expenses","60404553","202002",24/05/2019 00:00:00,5068.5,"16250","Catering Food and Drink Suppliers","REDACTED DATA","COLLINS CATERING","",,""
"London Borough of Redbridge","http://opendatacommunities.org/doc/london-borough-council/redbridge","3BNONSCHFUND","Non-School Funding","3CNONSCH","Non Schools","REV","Revenue","R3963","Early Years - 2 Year Olds - Statutory Place Funding","05-THIRD","Third Party Payments","05A","Independent units within the council","6517","Non-Maintained Schools","3552397","202002",28/05/2019 00:00:00,6070.35,"59760","Playgroups, Nurseries and Creches","REDACTED DATA","ST PAULS BUSY BEES PRE SCHOOL NURSERY","EY437163","http://opencorporates.com/companies/gb/EY437163",""
"London Borough of Redbridge","http://opendatacommunities.org/doc/london-borough-council/redbridge","3BNONSCHFUND","Non-School Funding","3CNONSCH","Non Schools","REV","Revenue","R3963","Early Years - 2 Year Olds - Statutory Place Funding","05-THIRD","Third Party Payments","05A","Independent units within the council","6517","Non-Maintained Schools","3552377","202002",28/05/2019 00:00:00,6070.25,"59760","Playgroups, Nurseries and Creches","REDACTED DATA","TAMBA DAY NURSERY LTD CHADWELL HEATH","",,""
"London Borough of Redbridge","http://opendatacommunities.org/doc/london-borough-council/redbridge","6BADULTSOCIA","Adult Social Care","6CLONGT65","Long-Term Support 65+ Years","REV","Revenue","R4446","Learning Disabilities - Wanstead and Woodford","06-TRANSFER","Transfer Payments","06B","Social Services Clients","7053","Direct Payments","3551159","202002",22/05/2019 00:00:00,6379.6,"90005","Home Care Services DP","REDACTED DATA","REDACTED DATA","",,""
"London Borough of Redbridge","http://opendatacommunities.org/doc/london-borough-council/redbridge","6BADULTSOCIA","Adult Social Care","6CLONGT65","Long-Term Support 65+ Years","REV","Revenue","R4446","Learning Disabilities - Wanstead and Woodford","09-INCOME","Income","09C","Customer and Client Receipts","8545","Direct Payments Income","3551159","202002",22/05/2019 00:00:00,-0.03,"90005","Home Care Services DP","REDACTED DATA","REDACTED DATA","",,""
"London Borough of Redbridge","http://opendatacommunities.org/doc/london-borough-council/redbridge","6BADULTSOCIA","Adult Social Care","6CLONGT65","Long-Term Support 65+ Years","REV","Revenue","R4446","Learning Disabilities - Wanstead and Woodford","09-INCOME","Income","09C","Customer and Client Receipts","8545","Direct Payments Income","3551159","202002",22/05/2019 00:00:00,-329.88,"90005","Home Care Services DP","REDACTED DATA","REDACTED DATA","",,""
"London Borough of Redbridge","http://opendatacommunities.org/doc/london-borough-council/redbridge","6BADULTSOCIA","Adult Social Care","6CADLEARNDIS","Adults Under 65 with Learning Disabilities","REV","Revenue","R4188","LD - Residential Care","05-THIRD","Third Party Payments","05F","Voluntary associations","6802","Residential Homes","91059821","202002",14/05/2019 00:00:00,-8107.74,"64710","Residential Care Homes","REDACTED DATA","ALPAM HOMES","",,""
"London Borough of Redbridge","http://opendatacommunities.org/doc/london-borough-council/redbridge","6BADULTSOCIA","Adult Social Care","6CADLEARNDIS","Adults Under 65 with Learning Disabilities","REV","Revenue","R4188","LD - Residential Care","09-INCOME","Income","09C","Customer and Client Receipts","8555","Accommodation Charges","91059821","202002",14/05/2019 00:00:00,621.3,"64710","Residential Care Homes","REDACTED DATA","ALPAM HOMES","",,""
"London Borough of Redbridge","http://opendatacommunities.org/doc/london-borough-council/redbridge","6BADULTSOCIA","Adult Social Care","6CLONGT65","Long-Term Support 65+ Years","REV","Revenue","R4440","Learning Disabilities - Seven Kings","05-THIRD","Third Party Payments","05F","Voluntary associations","6802","Residential Homes","91059821","202002",14/05/2019 00:00:00,13512.9,"64710","Residential Care Homes","REDACTED DATA","ALPAM HOMES","",,""
"London Borough of Redbridge","http://opendatacommunities.org/doc/london-borough-council/redbridge","6BADULTSOCIA","Adult Social Care","6COLDINCMENT","Older People (65 or over) incl. Older Mentally Ill","REV","Revenue","R4378","OP Residential","05-THIRD","Third Party Payments","05F","Voluntary associations","6802","Residential Homes","91059844","202002",14/05/2019 00:00:00,-9021.12,"64710","Residential Care Homes","REDACTED DATA","CENTURION HEALTHCARE LTD","5193082","http://opencorporates.com/companies/gb/5193082",""
"London Borough of Redbridge","http://opendatacommunities.org/doc/london-borough-council/redbridge","6BADULTSOCIA","Adult Social Care","6COTHADSERV","Other Adult Services","REV","Revenue","R4447","Older People - Wanstead & Woodford","05-THIRD","Third Party Payments","05F","Voluntary associations","6802","Residential Homes","91059844","202002",14/05/2019 00:00:00,15035.2,"64710","Residential Care Homes","REDACTED DATA","CENTURION HEALTHCARE LTD","5193082","http://opencorporates.com/companies/gb/5193082",""
"London Borough of Redbridge","http://opendatacommunities.org/doc/london-borough-council/redbridge","3BNONSCHFUND","Non-School Funding","6CCHILLOOKED","Children Looked After","REV","Revenue","R2238","Looked After Children Placements LA","05-THIRD","Third Party Payments","05H","Private contractors","6917","Fostering Costs - Agency","60403206","202002",30/04/2019 00:00:00,6000,"17580","Childcare Services","REDACTED DATA","WELLCARE FOSTERING SERVICES LTD","4963908","http://opencorporates.com/companies/gb/4963908",""
"London Borough of Redbridge","http://opendatacommunities.org/doc/london-borough-council/redbridge","6BPUBHEALTH","Public Health","6CMISCPHSERV","Miscellaneous Public Health Services","REV","Revenue","R4831","Information & Intelligence","04-SUPPLIES","Supplies And Services","04H","Grants and subscriptions","5954","Professional Fees","60403714","202002",14/05/2019 00:00:00,5000,"42200","Health Authorities","REDACTED DATA","OXFORD CONSULTANTS FOR SOCIAL INCLUSION LTD","4800880","http://opencorporates.com/companies/gb/4800880","831990022"
"London Borough of Redbridge","http://opendatacommunities.org/doc/london-borough-council/redbridge","9BNONBVO","Outside the BVACOP Objective Structure","9CNONBVO","Outside the BVACOP Objective Structure","CAP","Capital","C2206","Transport and Traffic Management LBR","99-NONBV","Capital, Balance Sheet and Control","50E","Capital - Contract Payments","9157","Footways & cycle tracks","3551853","202002",23/05/2019 00:00:00,5000,"18632","Civil Engineers","REDACTED DATA","KENSON CONTRACTORS BENINGTON LTD","1314691","http://opencorporates.com/companies/gb/1314691","301629589"
"London Borough of Redbridge","http://opendatacommunities.org/doc/london-borough-council/redbridge","3BNONSCHFUND","Non-School Funding","6CCHILLOOKED","Children Looked After","REV","Revenue","R2238","Looked After Children Placements LA","05-THIRD","Third Party Payments","05H","Private contractors","6917","Fostering Costs - Agency","60404534","202002",01/05/2019 00:00:00,5978.57,"1880","Adoption and Fostering","REDACTED DATA","BRIGHTER FUTURES FOSTER CARE LTD","8013526237","http://opencorporates.com/companies/gb/8013526237","6846257"
"London Borough of Redbridge","http://opendatacommunities.org/doc/london-borough-council/redbridge","6BSOCIALSERV","Social Services","6CCHILLOOKED","Children Looked After","REV","Revenue","R2117","SEN and CD Care and Support Packages Social Care","06-TRANSFER","Transfer Payments","06B","Social Services Clients","7053","Direct Payments","3550473","202002",14/05/2019 00:00:00,5971.3,"71855","Social Services","REDACTED DATA","ASIA FAZAL","",,""
"London Borough of Redbridge","http://opendatacommunities.org/doc/london-borough-council/redbridge","5BGFHOUSING","General Fund Housing","5CHOMELESS","Homelessness","REV","Revenue","R5630","HAC Temporary Accomodation","05-THIRD","Third Party Payments","05H","Private contractors","6900","Nightly Let Plus Charges","3550385","202002",05/05/2019 00:00:00,870,"31230","Employment and Recruitment Agencies","REDACTED DATA","ADAM HTT LIMITED T/A ADAM","7718565","http://opencorporates.com/companies/gb/7718565","198573349"
"London Borough of Redbridge","http://opendatacommunities.org/doc/london-borough-council/redbridge","5BGFHOUSING","General Fund Housing","5CHOMELESS","Homelessness","REV","Revenue","R5630","HAC Temporary Accomodation","05-THIRD","Third Party Payments","05H","Private contractors","6900","Nightly Let Plus Charges","3550385","202002",05/05/2019 00:00:00,1380,"31230","Employment and Recruitment Agencies","REDACTED DATA","ADAM HTT LIMITED T/A ADAM","7718565","http://opencorporates.com/companies/gb/7718565","198573349"
"London Borough of Redbridge","http://opendatacommunities.org/doc/london-borough-council/redbridge","5BGFHOUSING","General Fund Housing","5CHOMELESS","Homelessness","REV","Revenue","R5630","HAC Temporary Accomodation","05-THIRD","Third Party Payments","05H","Private contractors","6900","Nightly Let Plus Charges","3550385","202002",05/05/2019 00:00:00,1290,"31230","Employment and Recruitment Agencies","REDACTED DATA","ADAM HTT LIMITED T/A ADAM","7718565","http://opencorporates.com/companies/gb/7718565","198573349"
"London Borough of Redbridge","http://opendatacommunities.org/doc/london-borough-council/redbridge","5BGFHOUSING","General Fund Housing","5CHOMELESS","Homelessness","REV","Revenue","R5630","HAC Temporary Accomodation","05-THIRD","Third Party Payments","05H","Private contractors","6900","Nightly Let Plus Charges","3550385","202002",05/05/2019 00:00:00,1590,"31230","Employment and Recruitment Agencies","REDACTED DATA","ADAM HTT LIMITED T/A ADAM","7718565","http://opencorporates.com/companies/gb/7718565","198573349"
"London Borough of Redbridge","http://opendatacommunities.org/doc/london-borough-council/redbridge","5BGFHOUSING","General Fund Housing","5CHOMELESS","Homelessness","REV","Revenue","R5630","HAC Temporary Accomodation","05-THIRD","Third Party Payments","05H","Private contractors","6900","Nightly Let Plus Charges","3550385","202002",05/05/2019 00:00:00,1650,"31230","Employment and Recruitment Agencies","REDACTED DATA","ADAM HTT LIMITED T/A ADAM","7718565","http://opencorporates.com/companies/gb/7718565","198573349"
"London Borough of Redbridge","http://opendatacommunities.org/doc/london-borough-council/redbridge","5BGFHOUSING","General Fund Housing","5CHOMELESS","Homelessness","REV","Revenue","R5630","HAC Temporary Accomodation","05-THIRD","Third Party Payments","05H","Private contractors","6900","Nightly Let Plus Charges","3550385","202002",05/05/2019 00:00:00,1200,"31230","Employment and Recruitment Agencies","REDACTED DATA","ADAM HTT LIMITED T/A ADAM","7718565","http://opencorporates.com/companies/gb/7718565","198573349"
"London Borough of Redbridge","http://opendatacommunities.org/doc/london-borough-council/redbridge","5BGFHOUSING","General Fund Housing","5CHOMELESS","Homelessness","REV","Revenue","R5630","HAC Temporary Accomodation","05-THIRD","Third Party Payments","05H","Private contractors","6900","Nightly Let Plus Charges","3550385","202002",05/05/2019 00:00:00,870,"31230","Employment and Recruitment Agencies","REDACTED DATA","ADAM HTT LIMITED T/A ADAM","7718565","http://opencorporates.com/companies/gb/7718565","198573349"
"London Borough of Redbridge","http://opendatacommunities.org/doc/london-borough-council/redbridge","5BGFHOUSING","General Fund Housing","5CHOMELESS","Homelessness","REV","Revenue","R5630","HAC Temporary Accomodation","05-THIRD","Third Party Payments","05H","Private contractors","6900","Nightly Let Plus Charges","3550385","202002",05/05/2019 00:00:00,1863,"31230","Employment and Recruitment Agencies","REDACTED DATA","ADAM HTT LIMITED T/A ADAM","7718565","http://opencorporates.com/companies/gb/7718565","198573349"
"London Borough of Redbridge","http://opendatacommunities.org/doc/london-borough-council/redbridge","5BGFHOUSING","General Fund Housing","5CHOMELESS","Homelessness","REV","Revenue","R5630","HAC Temporary Accomodation","05-THIRD","Third Party Payments","05H","Private contractors","6900","Nightly Let Plus Charges","3550385","202002",05/05/2019 00:00:00,1620,"31230","Employment and Recruitment Agencies","REDACTED DATA","ADAM HTT LIMITED T/A ADAM","7718565","http://opencorporates.com/companies/gb/7718565","198573349"
"London Borough of Redbridge","http://opendatacommunities.org/doc/london-borough-council/redbridge","5BGFHOUSING","General Fund Housing","5CHOMELESS","Homelessness","REV","Revenue","R5630","HAC Temporary Accomodation","05-THIRD","Third Party Payments","05H","Private contractors","6900","Nightly Let Plus Charges","3550385","202002",05/05/2019 00:00:00,810,"31230","Employment and Recruitment Agencies","REDACTED DATA","ADAM HTT LIMITED T/A ADAM","7718565","http://opencorporates.com/companies/gb/7718565","198573349"
"London Borough of Redbridge","http://opendatacommunities.org/doc/london-borough-council/redbridge","5BGFHOUSING","General Fund Housing","5CHOMELESS","Homelessness","REV","Revenue","R5630","HAC Temporary Accomodation","05-THIRD","Third Party Payments","05H","Private contractors","6900","Nightly Let Plus Charges","3550385","202002",05/05/2019 00:00:00,1350,"31230","Employment and Recruitment Agencies","REDACTED DATA","ADAM HTT LIMITED T/A ADAM","7718565","http://opencorporates.com/companies/gb/7718565","198573349"
"London Borough of Redbridge","http://opendatacommunities.org/doc/london-borough-council/redbridge","9BNONBVO","Outside the BVACOP Objective Structure","9CNONBVO","Outside the BVACOP Objective Structure","REV","Revenue","R7701","Fleet Management","04-SUPPLIES","Supplies And Services","04A","Equipment, furniture and materials","5504","Equipment Repairs & Maintenance","669786","202001",16/04/2019 00:00:00,4960.56,"84085","Water Treatment Equipment and Service","REDACTED DATA","WATERMAN BIOCARE TECHNOLOGIES LTD","6201620","http://opencorporates.com/companies/gb/6201620","930340168"
"London Borough of Redbridge","http://opendatacommunities.org/doc/london-borough-council/redbridge","1BOTHEROPI&E","Other Operating Income & Expenditure","1CTRADSURDEF","Trading Account Surpluses & Deficits","REV","Revenue","R9551","CLM Maintenance","02-PREMISES","Premises","02A","Repairs, alteration and maintenance of buildings","3026","Minor Maintenance","60403131","202002",01/04/2019 00:00:00,4951,"69240","Security Services","REDACTED DATA","AD HOC PROPERTY MANAGEMENT LTD","5559573","http://opencorporates.com/companies/gb/5559573","887892047"
"London Borough of Redbridge","http://opendatacommunities.org/doc/london-borough-council/redbridge","3BNONSCHFUND","Non-School Funding","3CNONSCH","Non Schools","REV","Revenue","R3962","Early Years - 3 and 4 Year Olds","05-THIRD","Third Party Payments","05A","Independent units within the council","6517","Non-Maintained Schools","3552283","202002",28/05/2019 00:00:00,5939.62,"53088","Nurseries and Creches","REDACTED DATA","NEW BIRTH DAY NURSERY LTD","8622540","http://opencorporates.com/companies/gb/8622540",""
"London Borough of Redbridge","http://opendatacommunities.org/doc/london-borough-council/redbridge","3BNONSCHFUND","Non-School Funding","6CCHILLOOKED","Children Looked After","REV","Revenue","R2238","Looked After Children Placements LA","05-THIRD","Third Party Payments","05H","Private contractors","6917","Fostering Costs - Agency","60402768","202001",01/05/2019 00:00:00,5927.7,"1880","Adoption and Fostering","REDACTED DATA","FOSTER CARE ASSOCIATES  LIMITED","4322806","http://opencorporates.com/companies/gb/4322806","945693968"
"London Borough of Redbridge","http://opendatacommunities.org/doc/london-borough-council/redbridge","3BNONSCHFUND","Non-School Funding","3CNONSCH","Non Schools","REV","Revenue","R3962","Early Years - 3 and 4 Year Olds","05-THIRD","Third Party Payments","05A","Independent units within the council","6517","Non-Maintained Schools","3552295","202002",28/05/2019 00:00:00,5922,"17580","Childcare Services","REDACTED DATA","2HM LTD T/A LOXFORD FIRST STEP PRE SCHOOL","10869044","http://opencorporates.com/companies/gb/10869044",""
"London Borough of Redbridge","http://opendatacommunities.org/doc/london-borough-council/redbridge","6BADULTSOCIA","Adult Social Care","6CADLEARNDIS","Adults Under 65 with Learning Disabilities","REV","Revenue","R4188","LD - Residential Care","05-THIRD","Third Party Payments","05F","Voluntary associations","6802","Residential Homes","91059816","202002",14/05/2019 00:00:00,-9417.54,"64710","Residential Care Homes","REDACTED DATA","MENTAL HEALTH CARE (UK) LTD","2206038","http://opencorporates.com/companies/gb/2206038","560246068"
"London Borough of Redbridge","http://opendatacommunities.org/doc/london-borough-council/redbridge","6BADULTSOCIA","Adult Social Care","6CADLEARNDIS","Adults Under 65 with Learning Disabilities","REV","Revenue","R4188","LD - Residential Care","09-INCOME","Income","09C","Customer and Client Receipts","8555","Accommodation Charges","91059816","202002",14/05/2019 00:00:00,544.5,"64710","Residential Care Homes","REDACTED DATA","MENTAL HEALTH CARE (UK) LTD","2206038","http://opencorporates.com/companies/gb/2206038","560246068"
"London Borough of Redbridge","http://opendatacommunities.org/doc/london-borough-council/redbridge","6BADULTSOCIA","Adult Social Care","6CLONGT65","Long-Term Support 65+ Years","REV","Revenue","R4446","Learning Disabilities - Wanstead and Woodford","05-THIRD","Third Party Payments","05F","Voluntary associations","6802","Residential Homes","91059816","202002",14/05/2019 00:00:00,15695.9,"64710","Residential Care Homes","REDACTED DATA","MENTAL HEALTH CARE (UK) LTD","2206038","http://opencorporates.com/companies/gb/2206038","560246068"
"London Borough of Redbridge","http://opendatacommunities.org/doc/london-borough-council/redbridge","6BADULTSOCIA","Adult Social Care","6CLONGT65","Long-Term Support 65+ Years","REV","Revenue","R4446","Learning Disabilities - Wanstead and Woodford","09-INCOME","Income","09C","Customer and Client Receipts","8555","Accommodation Charges","91059816","202002",14/05/2019 00:00:00,-907.5,"64710","Residential Care Homes","REDACTED DATA","MENTAL HEALTH CARE (UK) LTD","2206038","http://opencorporates.com/companies/gb/2206038","560246068"
"London Borough of Redbridge","http://opendatacommunities.org/doc/london-borough-council/redbridge","3BNONSCHFUND","Non-School Funding","6CCHILLOOKED","Children Looked After","REV","Revenue","R2238","Looked After Children Placements LA","05-THIRD","Third Party Payments","05H","Private contractors","6917","Fostering Costs - Agency","60403846","202002",01/05/2017 00:00:00,5913.25,"1880","Adoption and Fostering","REDACTED DATA","HEATH FARM FOSTERING","5470925","http://opencorporates.com/companies/gb/5470925",""
"London Borough of Redbridge","http://opendatacommunities.org/doc/london-borough-council/redbridge","3BNONSCHFUND","Non-School Funding","6CCHILLOOKED","Children Looked After","REV","Revenue","R2238","Looked After Children Placements LA","05-THIRD","Third Party Payments","05H","Private contractors","6917","Fostering Costs - Agency","60403299","202002",01/05/2019 00:00:00,5913.25,"1880","Adoption and Fostering","REDACTED DATA","HEATH FARM FOSTERING","5470925","http://opencorporates.com/companies/gb/5470925",""
"London Borough of Redbridge","http://opendatacommunities.org/doc/london-borough-council/redbridge","5BGFHOUSING","General Fund Housing","5CHOMELESS","Homelessness","REV","Revenue","R5630","HAC Temporary Accomodation","05-THIRD","Third Party Payments","05H","Private contractors","6900","Nightly Let Plus Charges","3550385","202002",05/05/2019 00:00:00,772.2,"31230","Employment and Recruitment Agencies","REDACTED DATA","ADAM HTT LIMITED T/A ADAM","7718565","http://opencorporates.com/companies/gb/7718565","198573349"
"London Borough of Redbridge","http://opendatacommunities.org/doc/london-borough-council/redbridge","5BGFHOUSING","General Fund Housing","5CHOMELESS","Homelessness","REV","Revenue","R5630","HAC Temporary Accomodation","05-THIRD","Third Party Payments","05H","Private contractors","6900","Nightly Let Plus Charges","3550385","202002",05/05/2019 00:00:00,772.2,"31230","Employment and Recruitment Agencies","REDACTED DATA","ADAM HTT LIMITED T/A ADAM","7718565","http://opencorporates.com/companies/gb/7718565","198573349"
"London Borough of Redbridge","http://opendatacommunities.org/doc/london-borough-council/redbridge","5BGFHOUSING","General Fund Housing","5CHOMELESS","Homelessness","REV","Revenue","R5630","HAC Temporary Accomodation","05-THIRD","Third Party Payments","05H","Private contractors","6900","Nightly Let Plus Charges","3550385","202002",05/05/2019 00:00:00,927.9,"31230","Employment and Recruitment Agencies","REDACTED DATA","ADAM HTT LIMITED T/A ADAM","7718565","http://opencorporates.com/companies/gb/7718565","198573349"
"London Borough of Redbridge","http://opendatacommunities.org/doc/london-borough-council/redbridge","5BGFHOUSING","General Fund Housing","5CHOMELESS","Homelessness","REV","Revenue","R5630","HAC Temporary Accomodation","05-THIRD","Third Party Payments","05H","Private contractors","6900","Nightly Let Plus Charges","3550385","202002",05/05/2019 00:00:00,1590,"31230","Employment and Recruitment Agencies","REDACTED DATA","ADAM HTT LIMITED T/A ADAM","7718565","http://opencorporates.com/companies/gb/7718565","198573349"
"London Borough of Redbridge","http://opendatacommunities.org/doc/london-borough-council/redbridge","5BGFHOUSING","General Fund Housing","5CHOMELESS","Homelessness","REV","Revenue","R5630","HAC Temporary Accomodation","05-THIRD","Third Party Payments","05H","Private contractors","6900","Nightly Let Plus Charges","3550385","202002",05/05/2019 00:00:00,1500,"31230","Employment and Recruitment Agencies","REDACTED DATA","ADAM HTT LIMITED T/A ADAM","7718565","http://opencorporates.com/companies/gb/7718565","198573349"
"London Borough of Redbridge","http://opendatacommunities.org/doc/london-borough-council/redbridge","5BGFHOUSING","General Fund Housing","5CHOMELESS","Homelessness","REV","Revenue","R5630","HAC Temporary Accomodation","05-THIRD","Third Party Payments","05H","Private contractors","6900","Nightly Let Plus Charges","3550385","202002",05/05/2019 00:00:00,661.5,"31230","Employment and Recruitment Agencies","REDACTED DATA","ADAM HTT LIMITED T/A ADAM","7718565","http://opencorporates.com/companies/gb/7718565","198573349"
"London Borough of Redbridge","http://opendatacommunities.org/doc/london-borough-council/redbridge","5BGFHOUSING","General Fund Housing","5CHOMELESS","Homelessness","REV","Revenue","R5630","HAC Temporary Accomodation","05-THIRD","Third Party Payments","05H","Private contractors","6900","Nightly Let Plus Charges","3550385","202002",05/05/2019 00:00:00,1500,"31230","Employment and Recruitment Agencies","REDACTED DATA","ADAM HTT LIMITED T/A ADAM","7718565","http://opencorporates.com/companies/gb/7718565","198573349"
"London Borough of Redbridge","http://opendatacommunities.org/doc/london-borough-council/redbridge","5BGFHOUSING","General Fund Housing","5CHOMELESS","Homelessness","REV","Revenue","R5630","HAC Temporary Accomodation","05-THIRD","Third Party Payments","05H","Private contractors","6900","Nightly Let Plus Charges","3550385","202002",05/05/2019 00:00:00,750,"31230","Employment and Recruitment Agencies","REDACTED DATA","ADAM HTT LIMITED T/A ADAM","7718565","http://opencorporates.com/companies/gb/7718565","198573349"
"London Borough of Redbridge","http://opendatacommunities.org/doc/london-borough-council/redbridge","5BGFHOUSING","General Fund Housing","5CHOMELESS","Homelessness","REV","Revenue","R5630","HAC Temporary Accomodation","05-THIRD","Third Party Payments","05H","Private contractors","6900","Nightly Let Plus Charges","3550385","202002",05/05/2019 00:00:00,1710,"31230","Employment and Recruitment Agencies","REDACTED DATA","ADAM HTT LIMITED T/A ADAM","7718565","http://opencorporates.com/companies/gb/7718565","198573349"
"London Borough of Redbridge","http://opendatacommunities.org/doc/london-borough-council/redbridge","5BGFHOUSING","General Fund Housing","5CHOMELESS","Homelessness","REV","Revenue","R5630","HAC Temporary Accomodation","05-THIRD","Third Party Payments","05H","Private contractors","6900","Nightly Let Plus Charges","3550385","202002",05/05/2019 00:00:00,855,"31230","Employment and Recruitment Agencies","REDACTED DATA","ADAM HTT LIMITED T/A ADAM","7718565","http://opencorporates.com/companies/gb/7718565","198573349"
"London Borough of Redbridge","http://opendatacommunities.org/doc/london-borough-council/redbridge","5BGFHOUSING","General Fund Housing","5CHOMELESS","Homelessness","REV","Revenue","R5630","HAC Temporary Accomodation","05-THIRD","Third Party Payments","05H","Private contractors","6900","Nightly Let Plus Charges","3550385","202002",05/05/2019 00:00:00,1650,"31230","Employment and Recruitment Agencies","REDACTED DATA","ADAM HTT LIMITED T/A ADAM","7718565","http://opencorporates.com/companies/gb/7718565","198573349"
"London Borough of Redbridge","http://opendatacommunities.org/doc/london-borough-council/redbridge","4BMANGT&SUPP","Management & Support Services","4CHIGHRDROUT","Highways/Roads (Routine)","REV","Revenue","R7003","Signs non illuminated","05-THIRD","Third Party Payments","05H","Private contractors","6915","Contractor Payments","3552025","202002",23/05/2019 00:00:00,4920.84,"21555","Construction Contractors - General","REDACTED DATA","SKANSKA CONSTRUCTION UK LTD","191408","http://opencorporates.com/companies/gb/191408","378403142"
"London Borough of Redbridge","http://opendatacommunities.org/doc/london-borough-council/redbridge","6BADULTSOCIA","Adult Social Care","6CADLEARNDIS","Adults Under 65 with Learning Disabilities","REV","Revenue","R4188","LD - Residential Care","05-THIRD","Third Party Payments","05F","Voluntary associations","6802","Residential Homes","91059871","202002",14/05/2019 00:00:00,-9495.48,"64710","Residential Care Homes","REDACTED DATA","ESSEX CARE CONSORTIUM LTD","4340261","http://opencorporates.com/companies/gb/4340261",""
"London Borough of Redbridge","http://opendatacommunities.org/doc/london-borough-council/redbridge","6BADULTSOCIA","Adult Social Care","6CADLEARNDIS","Adults Under 65 with Learning Disabilities","REV","Revenue","R4188","LD - Residential Care","09-INCOME","Income","09C","Customer and Client Receipts","8555","Accommodation Charges","91059871","202002",14/05/2019 00:00:00,649.5,"64710","Residential Care Homes","REDACTED DATA","ESSEX CARE CONSORTIUM LTD","4340261","http://opencorporates.com/companies/gb/4340261",""
"London Borough of Redbridge","http://opendatacommunities.org/doc/london-borough-council/redbridge","6BADULTSOCIA","Adult Social Care","6CLONGT1864","Long-Term Support 18 - 64 Years","REV","Revenue","R4443","Learning Disabilities - Fairlop","05-THIRD","Third Party Payments","05F","Voluntary associations","6802","Residential Homes","91059871","202002",14/05/2019 00:00:00,15825.8,"64710","Residential Care Homes","REDACTED DATA","ESSEX CARE CONSORTIUM LTD","4340261","http://opencorporates.com/companies/gb/4340261",""
"London Borough of Redbridge","http://opendatacommunities.org/doc/london-borough-council/redbridge","6BADULTSOCIA","Adult Social Care","6CLONGT1864","Long-Term Support 18 - 64 Years","REV","Revenue","R4443","Learning Disabilities - Fairlop","09-INCOME","Income","09C","Customer and Client Receipts","8555","Accommodation Charges","91059871","202002",14/05/2019 00:00:00,-1082.5,"64710","Residential Care Homes","REDACTED DATA","ESSEX CARE CONSORTIUM LTD","4340261","http://opencorporates.com/companies/gb/4340261",""
"London Borough of Redbridge","http://opendatacommunities.org/doc/london-borough-council/redbridge","2BECODEV","Economic Development","","","REV","Revenue","R9870","School planned & reactive works","02-PREMISES","Premises","02A","Repairs, alteration and maintenance of buildings","3026","Minor Maintenance","3550047","202002",24/04/2019 00:00:00,2808,"84085","Water Treatment Equipment and Service","REDACTED DATA","P H WATER TECHNOLOGIES LTD","5042025","http://opencorporates.com/companies/gb/5042025","834219240"
"London Borough of Redbridge","http://opendatacommunities.org/doc/london-borough-council/redbridge","2BECODEV","Economic Development","","","REV","Revenue","R9870","School planned & reactive works","02-PREMISES","Premises","02A","Repairs, alteration and maintenance of buildings","3026","Minor Maintenance","3550047","202002",24/04/2019 00:00:00,2086.44,"84085","Water Treatment Equipment and Service","REDACTED DATA","P H WATER TECHNOLOGIES LTD","5042025","http://opencorporates.com/companies/gb/5042025","834219240"
"London Borough of Redbridge","http://opendatacommunities.org/doc/london-borough-council/redbridge","3BNONSCHFUND","Non-School Funding","3CNONSCH","Non Schools","REV","Revenue","R3962","Early Years - 3 and 4 Year Olds","05-THIRD","Third Party Payments","05A","Independent units within the council","6517","Non-Maintained Schools","3552178","202002",28/05/2019 00:00:00,5872.65,"17020","Charities and Voluntary Organisations","REDACTED DATA","PARKSIDE COMMUNITY ASSOCIATION","IP28871R","http://opencorporates.com/companies/gb/IP28871R",""
"London Borough of Redbridge","http://opendatacommunities.org/doc/london-borough-council/redbridge","9BNONBVO","Outside the BVACOP Objective Structure","9CNONBVO","Outside the BVACOP Objective Structure","REV","Revenue","R7602","Street Cleansing","01-EMPLOYEES","Employees","01A","Direct employee expenses","409","Agency Staff Pay","60403104","202002",23/04/2019 00:00:00,4878.34,"31230","Employment and Recruitment Agencies","REDACTED DATA","AMBITIONS EMPLOYMENT AGENCY","6683811","http://opencorporates.com/companies/gb/6683811","542142969"
"London Borough of Redbridge","http://opendatacommunities.org/doc/london-borough-council/redbridge","6BADULTSOCIA","Adult Social Care","6CLONGT1864","Long-Term Support 18 - 64 Years","REV","Revenue","R4441","Older People - Seven Kings","05-THIRD","Third Party Payments","05F","Voluntary associations","6802","Residential Homes","91059736","202002",14/05/2019 00:00:00,6309.4,"64710","Residential Care Homes","REDACTED DATA","ALAN & MARINA STACK T/AS ROWALLAN HOUSE","",,""
"London Borough of Redbridge","http://opendatacommunities.org/doc/london-borough-council/redbridge","6BADULTSOCIA","Adult Social Care","6CLONGT1864","Long-Term Support 18 - 64 Years","REV","Revenue","R4441","Older People - Seven Kings","09-INCOME","Income","09C","Customer and Client Receipts","8555","Accommodation Charges","91059736","202002",14/05/2019 00:00:00,-1423.5,"64710","Residential Care Homes","REDACTED DATA","ALAN & MARINA STACK T/AS ROWALLAN HOUSE","",,""
"London Borough of Redbridge","http://opendatacommunities.org/doc/london-borough-council/redbridge","6BADULTSOCIA","Adult Social Care","6COLDINCMENT","Older People (65 or over) incl. Older Mentally Ill","REV","Revenue","R4378","OP Residential","05-THIRD","Third Party Payments","05F","Voluntary associations","6802","Residential Homes","91059736","202002",14/05/2019 00:00:00,618.57,"64710","Residential Care Homes","REDACTED DATA","ALAN & MARINA STACK T/AS ROWALLAN HOUSE","",,""
"London Borough of Redbridge","http://opendatacommunities.org/doc/london-borough-council/redbridge","6BADULTSOCIA","Adult Social Care","6COLDINCMENT","Older People (65 or over) incl. Older Mentally Ill","REV","Revenue","R4378","OP Residential","05-THIRD","Third Party Payments","05F","Voluntary associations","6802","Residential Homes","91059736","202002",14/05/2019 00:00:00,618.57,"64710","Residential Care Homes","REDACTED DATA","ALAN & MARINA STACK T/AS ROWALLAN HOUSE","",,""
"London Borough of Redbridge","http://opendatacommunities.org/doc/london-borough-council/redbridge","6BADULTSOCIA","Adult Social Care","6COLDINCMENT","Older People (65 or over) incl. Older Mentally Ill","REV","Revenue","R4378","OP Residential","09-INCOME","Income","09C","Customer and Client Receipts","8555","Accommodation Charges","91059736","202002",14/05/2019 00:00:00,-138.1,"64710","Residential Care Homes","REDACTED DATA","ALAN & MARINA STACK T/AS ROWALLAN HOUSE","",,""
"London Borough of Redbridge","http://opendatacommunities.org/doc/london-borough-council/redbridge","6BADULTSOCIA","Adult Social Care","6COLDINCMENT","Older People (65 or over) incl. Older Mentally Ill","REV","Revenue","R4378","OP Residential","09-INCOME","Income","09C","Customer and Client Receipts","8555","Accommodation Charges","91059736","202002",14/05/2019 00:00:00,-138.1,"64710","Residential Care Homes","REDACTED DATA","ALAN & MARINA STACK T/AS ROWALLAN HOUSE","",,""
"London Borough of Redbridge","http://opendatacommunities.org/doc/london-borough-council/redbridge","3BOPTIONHLDG","Optional Holding Accounts","3CYOUTH","Youth Service","REV","Revenue","R3367","Health and Justice","07-SUPPORT","Support Services","07G","Corporate Services","7307","Other Support Services","60402733","202002",01/05/2019 00:00:00,5808.4,"42200","Health Authorities","REDACTED DATA","NORTH EAST LONDON NHS FOUNDATION TRUST","",,"654404447"
"London Borough of Redbridge","http://opendatacommunities.org/doc/london-borough-council/redbridge","3BNONSCHFUND","Non-School Funding","6CCHILLOOKED","Children Looked After","REV","Revenue","R2238","Looked After Children Placements LA","05-THIRD","Third Party Payments","05H","Private contractors","6917","Fostering Costs - Agency","60401798","202001",12/04/2019 00:00:00,5785.2,"1880","Adoption and Fostering","REDACTED DATA","NEXT STEP FOSTERING SERVICES LTD","5160087","http://opencorporates.com/companies/gb/5160087",""
"London Borough of Redbridge","http://opendatacommunities.org/doc/london-borough-council/redbridge","6BADULTSOCIA","Adult Social Care","6CLONGT65","Long-Term Support 65+ Years","REV","Revenue","R4439","Physical Disabilities - Cranbrook & Loxford","06-TRANSFER","Transfer Payments","06B","Social Services Clients","7053","Direct Payments","3551260","202002",22/05/2019 00:00:00,5931.8,"90005","Home Care Services DP","REDACTED DATA","REDACTED DATA","",,""
"London Borough of Redbridge","http://opendatacommunities.org/doc/london-borough-council/redbridge","6BADULTSOCIA","Adult Social Care","6CLONGT65","Long-Term Support 65+ Years","REV","Revenue","R4439","Physical Disabilities - Cranbrook & Loxford","09-INCOME","Income","09C","Customer and Client Receipts","8545","Direct Payments Income","3551260","202002",22/05/2019 00:00:00,-162.8,"90005","Home Care Services DP","REDACTED DATA","REDACTED DATA","",,""
"London Borough of Redbridge","http://opendatacommunities.org/doc/london-borough-council/redbridge","6BADULTSOCIA","Adult Social Care","6CLONGT65","Long-Term Support 65+ Years","REV","Revenue","R4444","Older People - Fairlop","06-TRANSFER","Transfer Payments","06B","Social Services Clients","7053","Direct Payments","3551055","202002",22/05/2019 00:00:00,6030.2,"90005","Home Care Services DP","REDACTED DATA","REDACTED DATA","",,""
"London Borough of Redbridge","http://opendatacommunities.org/doc/london-borough-council/redbridge","6BADULTSOCIA","Adult Social Care","6CLONGT65","Long-Term Support 65+ Years","REV","Revenue","R4444","Older People - Fairlop","09-INCOME","Income","09C","Customer and Client Receipts","8545","Direct Payments Income","3551055","202002",22/05/2019 00:00:00,-264.88,"90005","Home Care Services DP","REDACTED DATA","REDACTED DATA","",,""
"London Borough of Redbridge","http://opendatacommunities.org/doc/london-borough-council/redbridge","6BADULTSOCIA","Adult Social Care","6CADLEARNDIS","Adults Under 65 with Learning Disabilities","REV","Revenue","R4188","LD - Residential Care","05-THIRD","Third Party Payments","05F","Voluntary associations","6802","Residential Homes","91059878","202002",14/05/2019 00:00:00,-9132.48,"64710","Residential Care Homes","REDACTED DATA","FITZROY SUPPORT","2699902","http://opencorporates.com/companies/gb/2699902",""
"London Borough of Redbridge","http://opendatacommunities.org/doc/london-borough-council/redbridge","6BADULTSOCIA","Adult Social Care","6CADLEARNDIS","Adults Under 65 with Learning Disabilities","REV","Revenue","R4188","LD - Residential Care","09-INCOME","Income","09C","Customer and Client Receipts","8555","Accommodation Charges","91059878","202002",14/05/2019 00:00:00,490.5,"64710","Residential Care Homes","REDACTED DATA","FITZROY SUPPORT","2699902","http://opencorporates.com/companies/gb/2699902",""
"London Borough of Redbridge","http://opendatacommunities.org/doc/london-borough-council/redbridge","6BADULTSOCIA","Adult Social Care","6CLONGT65","Long-Term Support 65+ Years","REV","Revenue","R4440","Learning Disabilities - Seven Kings","05-THIRD","Third Party Payments","05F","Voluntary associations","6802","Residential Homes","91059878","202002",14/05/2019 00:00:00,15220.8,"64710","Residential Care Homes","REDACTED DATA","FITZROY SUPPORT","2699902","http://opencorporates.com/companies/gb/2699902",""
"London Borough of Redbridge","http://opendatacommunities.org/doc/london-borough-council/redbridge","6BADULTSOCIA","Adult Social Care","6CLONGT65","Long-Term Support 65+ Years","REV","Revenue","R4440","Learning Disabilities - Seven Kings","09-INCOME","Income","09C","Customer and Client Receipts","8555","Accommodation Charges","91059878","202002",14/05/2019 00:00:00,-825.5,"64710","Residential Care Homes","REDACTED DATA","FITZROY SUPPORT","2699902","http://opencorporates.com/companies/gb/2699902",""
"London Borough of Redbridge","http://opendatacommunities.org/doc/london-borough-council/redbridge","3BNONSCHFUND","Non-School Funding","3CNONSCH","Non Schools","REV","Revenue","R3962","Early Years - 3 and 4 Year Olds","05-THIRD","Third Party Payments","05A","Independent units within the council","6517","Non-Maintained Schools","3552204","202002",28/05/2019 00:00:00,5752.8,"59760","Playgroups, Nurseries and Creches","REDACTED DATA","MALLARDS WOOD GROUP LTD","4837908","http://opencorporates.com/companies/gb/4837908",""
"London Borough of Redbridge","http://opendatacommunities.org/doc/london-borough-council/redbridge","3BNONSCHFUND","Non-School Funding","6CCHILLOOKED","Children Looked After","REV","Revenue","R2238","Looked After Children Placements LA","05-THIRD","Third Party Payments","05H","Private contractors","6917","Fostering Costs - Agency","60404598","202002",24/05/2019 00:00:00,5735.62,"1880","Adoption and Fostering","REDACTED DATA","AIM HIGH FOSTERING SERVICES LTD","8927857","http://opencorporates.com/companies/gb/8927857",""
"London Borough of Redbridge","http://opendatacommunities.org/doc/london-borough-council/redbridge","3BNONSCHFUND","Non-School Funding","3CNONSCH","Non Schools","REV","Revenue","R3962","Early Years - 3 and 4 Year Olds","05-THIRD","Third Party Payments","05A","Independent units within the council","6517","Non-Maintained Schools","3552213","202002",28/05/2019 00:00:00,5728.12,"67860","Schools - Independent and Preparatory","REDACTED DATA","APEX PRIMARY SCHOOL(APEX TRUST)","",,""
"London Borough of Redbridge","http://opendatacommunities.org/doc/london-borough-council/redbridge","3BNONSCHFUND","Non-School Funding","3CNONSCH","Non Schools","REV","Revenue","R3969","EY Proposed SEN inclusion Fund","05-THIRD","Third Party Payments","05H","Private contractors","6908","Private Nurseries & Childminders","3550927","202002",20/05/2019 00:00:00,5720,"17580","Childcare Services","REDACTED DATA","CHESTNUT NURSERY SCHOOL (NORFOLK) LTD","9175049","http://opencorporates.com/companies/gb/9175049",""
"London Borough of Redbridge","http://opendatacommunities.org/doc/london-borough-council/redbridge","6BADULTSOCIA","Adult Social Care","6CADLEARNDIS","Adults Under 65 with Learning Disabilities","REV","Revenue","R4188","LD - Residential Care","05-THIRD","Third Party Payments","05F","Voluntary associations","6802","Residential Homes","91060154","202002",14/05/2019 00:00:00,-9094.2,"17020","Charities and Voluntary Organisations","REDACTED DATA","VIBRANCE","7094318","http://opencorporates.com/companies/gb/7094318",""
"London Borough of Redbridge","http://opendatacommunities.org/doc/london-borough-council/redbridge","6BADULTSOCIA","Adult Social Care","6CADLEARNDIS","Adults Under 65 with Learning Disabilities","REV","Revenue","R4188","LD - Residential Care","09-INCOME","Income","09C","Customer and Client Receipts","8555","Accommodation Charges","91060154","202002",14/05/2019 00:00:00,520.5,"17020","Charities and Voluntary Organisations","REDACTED DATA","VIBRANCE","7094318","http://opencorporates.com/companies/gb/7094318",""
"London Borough of Redbridge","http://opendatacommunities.org/doc/london-borough-council/redbridge","6BADULTSOCIA","Adult Social Care","6CLONGT65","Long-Term Support 65+ Years","REV","Revenue","R4446","Learning Disabilities - Wanstead and Woodford","05-THIRD","Third Party Payments","05F","Voluntary associations","6802","Residential Homes","91060154","202002",14/05/2019 00:00:00,15157,"17020","Charities and Voluntary Organisations","REDACTED DATA","VIBRANCE","7094318","http://opencorporates.com/companies/gb/7094318",""
"London Borough of Redbridge","http://opendatacommunities.org/doc/london-borough-council/redbridge","6BADULTSOCIA","Adult Social Care","6CLONGT65","Long-Term Support 65+ Years","REV","Revenue","R4446","Learning Disabilities - Wanstead and Woodford","09-INCOME","Income","09C","Customer and Client Receipts","8555","Accommodation Charges","91060154","202002",14/05/2019 00:00:00,-867.5,"17020","Charities and Voluntary Organisations","REDACTED DATA","VIBRANCE","7094318","http://opencorporates.com/companies/gb/7094318",""
"London Borough of Redbridge","http://opendatacommunities.org/doc/london-borough-council/redbridge","6BADULTSOCIA","Adult Social Care","6CLONGT65","Long-Term Support 65+ Years","REV","Revenue","R4438","Older People - Cranbrook & Loxford","05-THIRD","Third Party Payments","05H","Private contractors","6909","Nursing Homes","91060162","202002",14/05/2019 00:00:00,443.01,"64710","Residential Care Homes","REDACTED DATA","ABBEY CARE SERVICES LTD","1009941","http://opencorporates.com/companies/gb/1009941",""
"London Borough of Redbridge","http://opendatacommunities.org/doc/london-borough-council/redbridge","6BADULTSOCIA","Adult Social Care","6CLONGT65","Long-Term Support 65+ Years","REV","Revenue","R4438","Older People - Cranbrook & Loxford","05-THIRD","Third Party Payments","05H","Private contractors","6909","Nursing Homes","91060162","202002",14/05/2019 00:00:00,5271.9,"64710","Residential Care Homes","REDACTED DATA","ABBEY CARE SERVICES LTD","1009941","http://opencorporates.com/companies/gb/1009941",""
"London Borough of Redbridge","http://opendatacommunities.org/doc/london-borough-council/redbridge","3BNONSCHFUND","Non-School Funding","3CNONSCH","Non Schools","REV","Revenue","R3962","Early Years - 3 and 4 Year Olds","05-THIRD","Third Party Payments","05A","Independent units within the council","6517","Non-Maintained Schools","3552293","202002",28/05/2019 00:00:00,5710.5,"17580","Childcare Services","REDACTED DATA","BEEHIVE EDUCATION LTD","8788435","http://opencorporates.com/companies/gb/8788435",""
"London Borough of Redbridge","http://opendatacommunities.org/doc/london-borough-council/redbridge","3BNONSCHFUND","Non-School Funding","3CNONSCH","Non Schools","REV","Revenue","R3962","Early Years - 3 and 4 Year Olds","05-THIRD","Third Party Payments","05A","Independent units within the council","6517","Non-Maintained Schools","3552173","202002",28/05/2019 00:00:00,5697.57,"59760","Playgroups, Nurseries and Creches","REDACTED DATA","LITTLE MONTESSORIANS PRESCHOOL","",,""
"London Borough of Redbridge","http://opendatacommunities.org/doc/london-borough-council/redbridge","3BNONSCHFUND","Non-School Funding","6CCHILLOOKED","Children Looked After","REV","Revenue","R2238","Looked After Children Placements LA","05-THIRD","Third Party Payments","05H","Private contractors","6917","Fostering Costs - Agency","60402861","202002",30/04/2019 00:00:00,5695.8,"1880","Adoption and Fostering","REDACTED DATA","NATIONAL FOSTERING AGENCY","3127814","http://opencorporates.com/companies/gb/3127814","673006159"
"London Borough of Redbridge","http://opendatacommunities.org/doc/london-borough-council/redbridge","3BNONSCHFUND","Non-School Funding","3CNONSCH","Non Schools","REV","Revenue","R3962","Early Years - 3 and 4 Year Olds","05-THIRD","Third Party Payments","05A","Independent units within the council","6517","Non-Maintained Schools","3552261","202002",28/05/2019 00:00:00,5694.63,"17580","Childcare Services","REDACTED DATA","MILLICENT ADDO T/A PLAY & LEARN NURSERY & PRE SCHOOL","8756099883","http://opencorporates.com/companies/gb/8756099883",""
"London Borough of Redbridge","http://opendatacommunities.org/doc/london-borough-council/redbridge","3BLEACENTFND","LEA Centrally Held School Funds","3CSUPPORTSEN","Supporting Special Education Needs","REV","Revenue","R3923","EOTAS Commissioning Service","05-THIRD","Third Party Payments","05H","Private contractors","6915","Contractor Payments","60404312","202002",21/05/2019 00:00:00,5693.2,"67981","Schools - Local Authority","REDACTED DATA","REDBRIDGE TUITION SERVICE","",,"246546447"
"London Borough of Redbridge","http://opendatacommunities.org/doc/london-borough-council/redbridge","6BADULTSOCIA","Adult Social Care","6CADLEARNDIS","Adults Under 65 with Learning Disabilities","REV","Revenue","R4188","LD - Residential Care","05-THIRD","Third Party Payments","05F","Voluntary associations","6802","Residential Homes","91059884","202002",14/05/2019 00:00:00,-8532.12,"64710","Residential Care Homes","REDACTED DATA","HILLSVIEW CARE SERVICES LTD T/AS HILLSVIEW CARE HOME","9548188","http://opencorporates.com/companies/gb/9548188",""
"London Borough of Redbridge","http://opendatacommunities.org/doc/london-borough-council/redbridge","6BADULTSOCIA","Adult Social Care","6CLONGT65","Long-Term Support 65+ Years","REV","Revenue","R4446","Learning Disabilities - Wanstead and Woodford","05-THIRD","Third Party Payments","05F","Voluntary associations","6802","Residential Homes","91059884","202002",14/05/2019 00:00:00,14220.2,"64710","Residential Care Homes","REDACTED DATA","HILLSVIEW CARE SERVICES LTD T/AS HILLSVIEW CARE HOME","9548188","http://opencorporates.com/companies/gb/9548188",""
"London Borough of Redbridge","http://opendatacommunities.org/doc/london-borough-council/redbridge","3BINDSCHFUND","Individual School Funds","3CDELPRIMARY","Delegated Individual Primary School Budgets","REV","Revenue","S2340","GROVE : BUILDING MAINTENANCE","02-PREMISES","Premises","02I","Grounds maintenance costs","4750","Grounds Maintenance","60404339","202002",29/04/2019 00:00:00,4737.35,"48583","Local Government","REDACTED DATA","VISION REDBRIDGE CULTURE AND LEISURE","6032714","http://opencorporates.com/companies/gb/6032714","906429031"
"London Borough of Redbridge","http://opendatacommunities.org/doc/london-borough-council/redbridge","6BADULTSOCIA","Adult Social Care","6CLONGT1864","Long-Term Support 18 - 64 Years","REV","Revenue","R4445","Physical Disabilities - Fairlop","06-TRANSFER","Transfer Payments","06B","Social Services Clients","7053","Direct Payments","70108103","202002",28/05/2019 00:00:00,5667.2,"90005","Home Care Services DP","REDACTED DATA","REDACTED DATA","",,""
"London Borough of Redbridge","http://opendatacommunities.org/doc/london-borough-council/redbridge","6BADULTSOCIA","Adult Social Care","6CLONGT65","Long-Term Support 65+ Years","REV","Revenue","R4446","Learning Disabilities - Wanstead and Woodford","06-TRANSFER","Transfer Payments","06B","Social Services Clients","7053","Direct Payments","3551240","202002",22/05/2019 00:00:00,5827.2,"90005","Home Care Services DP","REDACTED DATA","REDACTED DATA","",,""
"London Borough of Redbridge","http://opendatacommunities.org/doc/london-borough-council/redbridge","6BADULTSOCIA","Adult Social Care","6CLONGT65","Long-Term Support 65+ Years","REV","Revenue","R4446","Learning Disabilities - Wanstead and Woodford","09-INCOME","Income","09C","Customer and Client Receipts","8545","Direct Payments Income","3551240","202002",22/05/2019 00:00:00,-162.8,"90005","Home Care Services DP","REDACTED DATA","REDACTED DATA","",,""
"London Borough of Redbridge","http://opendatacommunities.org/doc/london-borough-council/redbridge","6BADULTSOCIA","Adult Social Care","6CADLEARNDIS","Adults Under 65 with Learning Disabilities","REV","Revenue","R4388","LD Nursing","05-THIRD","Third Party Payments","05H","Private contractors","6909","Nursing Homes","91060150","202002",14/05/2019 00:00:00,6077.56,"17020","Charities and Voluntary Organisations","REDACTED DATA","VIBRANCE","7094318","http://opencorporates.com/companies/gb/7094318",""
"London Borough of Redbridge","http://opendatacommunities.org/doc/london-borough-council/redbridge","6BADULTSOCIA","Adult Social Care","6CADLEARNDIS","Adults Under 65 with Learning Disabilities","REV","Revenue","R4388","LD Nursing","09-INCOME","Income","09C","Customer and Client Receipts","8557","Nursing Home Charges","91060150","202002",14/05/2019 00:00:00,-414.2,"17020","Charities and Voluntary Organisations","REDACTED DATA","VIBRANCE","7094318","http://opencorporates.com/companies/gb/7094318",""
"London Borough of Redbridge","http://opendatacommunities.org/doc/london-borough-council/redbridge","6BADULTSOCIA","Adult Social Care","6CADLEARNDIS","Adults Under 65 with Learning Disabilities","REV","Revenue","R4388","LD Nursing","05-THIRD","Third Party Payments","05H","Private contractors","6909","Nursing Homes","91060151","202002",14/05/2019 00:00:00,-9112.74,"17020","Charities and Voluntary Organisations","REDACTED DATA","VIBRANCE","7094318","http://opencorporates.com/companies/gb/7094318",""
"London Borough of Redbridge","http://opendatacommunities.org/doc/london-borough-council/redbridge","6BADULTSOCIA","Adult Social Care","6CADLEARNDIS","Adults Under 65 with Learning Disabilities","REV","Revenue","R4388","LD Nursing","05-THIRD","Third Party Payments","05H","Private contractors","6909","Nursing Homes","91060149","202002",14/05/2019 00:00:00,6075.16,"17020","Charities and Voluntary Organisations","REDACTED DATA","VIBRANCE","7094318","http://opencorporates.com/companies/gb/7094318",""
"London Borough of Redbridge","http://opendatacommunities.org/doc/london-borough-council/redbridge","6BADULTSOCIA","Adult Social Care","6CADLEARNDIS","Adults Under 65 with Learning Disabilities","REV","Revenue","R4388","LD Nursing","05-THIRD","Third Party Payments","05H","Private contractors","6909","Nursing Homes","91060153","202002",14/05/2019 00:00:00,-9112.74,"17020","Charities and Voluntary Organisations","REDACTED DATA","VIBRANCE","7094318","http://opencorporates.com/companies/gb/7094318",""
"London Borough of Redbridge","http://opendatacommunities.org/doc/london-borough-council/redbridge","6BADULTSOCIA","Adult Social Care","6CADLEARNDIS","Adults Under 65 with Learning Disabilities","REV","Revenue","R4388","LD Nursing","09-INCOME","Income","09C","Customer and Client Receipts","8557","Nursing Home Charges","91060151","202002",14/05/2019 00:00:00,621.3,"17020","Charities and Voluntary Organisations","REDACTED DATA","VIBRANCE","7094318","http://opencorporates.com/companies/gb/7094318",""
"London Borough of Redbridge","http://opendatacommunities.org/doc/london-borough-council/redbridge","6BADULTSOCIA","Adult Social Care","6CADLEARNDIS","Adults Under 65 with Learning Disabilities","REV","Revenue","R4388","LD Nursing","09-INCOME","Income","09C","Customer and Client Receipts","8557","Nursing Home Charges","91060153","202002",14/05/2019 00:00:00,621.3,"17020","Charities and Voluntary Organisations","REDACTED DATA","VIBRANCE","7094318","http://opencorporates.com/companies/gb/7094318",""
"London Borough of Redbridge","http://opendatacommunities.org/doc/london-borough-council/redbridge","6BADULTSOCIA","Adult Social Care","6CADLEARNDIS","Adults Under 65 with Learning Disabilities","REV","Revenue","R4388","LD Nursing","09-INCOME","Income","09C","Customer and Client Receipts","8557","Nursing Home Charges","91060149","202002",14/05/2019 00:00:00,-414.2,"17020","Charities and Voluntary Organisations","REDACTED DATA","VIBRANCE","7094318","http://opencorporates.com/companies/gb/7094318",""
"London Borough of Redbridge","http://opendatacommunities.org/doc/london-borough-council/redbridge","6BADULTSOCIA","Adult Social Care","6CLONGT65","Long-Term Support 65+ Years","REV","Revenue","R4440","Learning Disabilities - Seven Kings","05-THIRD","Third Party Payments","05H","Private contractors","6909","Nursing Homes","91060151","202002",14/05/2019 00:00:00,15187.9,"17020","Charities and Voluntary Organisations","REDACTED DATA","VIBRANCE","7094318","http://opencorporates.com/companies/gb/7094318",""
"London Borough of Redbridge","http://opendatacommunities.org/doc/london-borough-council/redbridge","6BADULTSOCIA","Adult Social Care","6CLONGT65","Long-Term Support 65+ Years","REV","Revenue","R4440","Learning Disabilities - Seven Kings","05-THIRD","Third Party Payments","05H","Private contractors","6909","Nursing Homes","91060153","202002",14/05/2019 00:00:00,15187.9,"17020","Charities and Voluntary Organisations","REDACTED DATA","VIBRANCE","7094318","http://opencorporates.com/companies/gb/7094318",""
"London Borough of Redbridge","http://opendatacommunities.org/doc/london-borough-council/redbridge","6BADULTSOCIA","Adult Social Care","6CLONGT65","Long-Term Support 65+ Years","REV","Revenue","R4440","Learning Disabilities - Seven Kings","09-INCOME","Income","09C","Customer and Client Receipts","8557","Nursing Home Charges","91060153","202002",14/05/2019 00:00:00,-1035.5,"17020","Charities and Voluntary Organisations","REDACTED DATA","VIBRANCE","7094318","http://opencorporates.com/companies/gb/7094318",""
"London Borough of Redbridge","http://opendatacommunities.org/doc/london-borough-council/redbridge","6BADULTSOCIA","Adult Social Care","6CLONGT65","Long-Term Support 65+ Years","REV","Revenue","R4440","Learning Disabilities - Seven Kings","09-INCOME","Income","09C","Customer and Client Receipts","8557","Nursing Home Charges","91060151","202002",14/05/2019 00:00:00,-1035.5,"17020","Charities and Voluntary Organisations","REDACTED DATA","VIBRANCE","7094318","http://opencorporates.com/companies/gb/7094318",""
"London Borough of Redbridge","http://opendatacommunities.org/doc/london-borough-council/redbridge","6BADULTSOCIA","Adult Social Care","6CLONGT1864","Long-Term Support 18 - 64 Years","REV","Revenue","R4443","Learning Disabilities - Fairlop","06-TRANSFER","Transfer Payments","06B","Social Services Clients","7053","Direct Payments","3551132","202002",22/05/2019 00:00:00,5654.2,"56800","Payroll Services","REDACTED DATA","INDEPENDENT LIVING AGENCY (PAYROLL PROVIDER)","3370858","http://opencorporates.com/companies/gb/3370858",""
"London Borough of Redbridge","http://opendatacommunities.org/doc/london-borough-council/redbridge","6BADULTSOCIA","Adult Social Care","6CADLEARNDIS","Adults Under 65 with Learning Disabilities","REV","Revenue","R4188","LD - Residential Care","05-THIRD","Third Party Payments","05F","Voluntary associations","6802","Residential Homes","91060157","202002",14/05/2019 00:00:00,6062.8,"17020","Charities and Voluntary Organisations","REDACTED DATA","VIBRANCE","7094318","http://opencorporates.com/companies/gb/7094318",""
"London Borough of Redbridge","http://opendatacommunities.org/doc/london-borough-council/redbridge","6BADULTSOCIA","Adult Social Care","6CADLEARNDIS","Adults Under 65 with Learning Disabilities","REV","Revenue","R4188","LD - Residential Care","05-THIRD","Third Party Payments","05F","Voluntary associations","6802","Residential Homes","91060155","202002",14/05/2019 00:00:00,-9094.2,"17020","Charities and Voluntary Organisations","REDACTED DATA","VIBRANCE","7094318","http://opencorporates.com/companies/gb/7094318",""
"London Borough of Redbridge","http://opendatacommunities.org/doc/london-borough-council/redbridge","6BADULTSOCIA","Adult Social Care","6CADLEARNDIS","Adults Under 65 with Learning Disabilities","REV","Revenue","R4188","LD - Residential Care","09-INCOME","Income","09C","Customer and Client Receipts","8555","Accommodation Charges","91060155","202002",14/05/2019 00:00:00,621.3,"17020","Charities and Voluntary Organisations","REDACTED DATA","VIBRANCE","7094318","http://opencorporates.com/companies/gb/7094318",""
"London Borough of Redbridge","http://opendatacommunities.org/doc/london-borough-council/redbridge","6BADULTSOCIA","Adult Social Care","6CADLEARNDIS","Adults Under 65 with Learning Disabilities","REV","Revenue","R4188","LD - Residential Care","09-INCOME","Income","09C","Customer and Client Receipts","8555","Accommodation Charges","91060157","202002",14/05/2019 00:00:00,-414.2,"17020","Charities and Voluntary Organisations","REDACTED DATA","VIBRANCE","7094318","http://opencorporates.com/companies/gb/7094318",""
"London Borough of Redbridge","http://opendatacommunities.org/doc/london-borough-council/redbridge","6BADULTSOCIA","Adult Social Care","6CLONGT65","Long-Term Support 65+ Years","REV","Revenue","R4446","Learning Disabilities - Wanstead and Woodford","05-THIRD","Third Party Payments","05F","Voluntary associations","6802","Residential Homes","91060155","202002",14/05/2019 00:00:00,15157,"17020","Charities and Voluntary Organisations","REDACTED DATA","VIBRANCE","7094318","http://opencorporates.com/companies/gb/7094318",""
"London Borough of Redbridge","http://opendatacommunities.org/doc/london-borough-council/redbridge","6BADULTSOCIA","Adult Social Care","6CLONGT65","Long-Term Support 65+ Years","REV","Revenue","R4446","Learning Disabilities - Wanstead and Woodford","09-INCOME","Income","09C","Customer and Client Receipts","8555","Accommodation Charges","91060155","202002",14/05/2019 00:00:00,-1035.5,"17020","Charities and Voluntary Organisations","REDACTED DATA","VIBRANCE","7094318","http://opencorporates.com/companies/gb/7094318",""
"London Borough of Redbridge","http://opendatacommunities.org/doc/london-borough-council/redbridge","3BNONSCHFUND","Non-School Funding","6CCHILLOOKED","Children Looked After","REV","Revenue","R2238","Looked After Children Placements LA","05-THIRD","Third Party Payments","05H","Private contractors","6917","Fostering Costs - Agency","60402963","202002",01/03/2019 00:00:00,5646.34,"1880","Adoption and Fostering","REDACTED DATA","ANCHOR FOSTER CARE SERVICES LTD","4348277","http://opencorporates.com/companies/gb/4348277",""
"London Borough of Redbridge","http://opendatacommunities.org/doc/london-borough-council/redbridge","6BADULTSOCIA","Adult Social Care","6CADMENHLTH","Adults Under 65 with Mental Health Needs","REV","Revenue","R4219","MH - Supported Living","06-TRANSFER","Transfer Payments","06B","Social Services Clients","7066","Supported Living","91055817","202002",01/05/2019 00:00:00,3512.28,"64710","Residential Care Homes","REDACTED DATA","CARETECH COMMUNITY SERVICES LTD","2804415","http://opencorporates.com/companies/gb/2804415",""
"London Borough of Redbridge","http://opendatacommunities.org/doc/london-borough-council/redbridge","6BADULTSOCIA","Adult Social Care","6CADMENHLTH","Adults Under 65 with Mental Health Needs","REV","Revenue","R4219","MH - Supported Living","06-TRANSFER","Transfer Payments","06B","Social Services Clients","7066","Supported Living","91055817","202002",01/05/2019 00:00:00,585.38,"64710","Residential Care Homes","REDACTED DATA","CARETECH COMMUNITY SERVICES LTD","2804415","http://opencorporates.com/companies/gb/2804415",""
"London Borough of Redbridge","http://opendatacommunities.org/doc/london-borough-council/redbridge","6BADULTSOCIA","Adult Social Care","6CADMENHLTH","Adults Under 65 with Mental Health Needs","REV","Revenue","R4219","MH - Supported Living","06-TRANSFER","Transfer Payments","06B","Social Services Clients","7066","Supported Living","91055817","202002",01/05/2019 00:00:00,1538.7,"64710","Residential Care Homes","REDACTED DATA","CARETECH COMMUNITY SERVICES LTD","2804415","http://opencorporates.com/companies/gb/2804415",""
"London Borough of Redbridge","http://opendatacommunities.org/doc/london-borough-council/redbridge","6BADULTSOCIA","Adult Social Care","6CLONGT1864","Long-Term Support 18 - 64 Years","REV","Revenue","R4445","Physical Disabilities - Fairlop","06-TRANSFER","Transfer Payments","06B","Social Services Clients","7053","Direct Payments","3551027","202002",22/05/2019 00:00:00,6634.92,"90005","Home Care Services DP","REDACTED DATA","REDACTED DATA","",,""
"London Borough of Redbridge","http://opendatacommunities.org/doc/london-borough-council/redbridge","6BADULTSOCIA","Adult Social Care","6CLONGT1864","Long-Term Support 18 - 64 Years","REV","Revenue","R4445","Physical Disabilities - Fairlop","09-INCOME","Income","09C","Customer and Client Receipts","8545","Direct Payments Income","3551027","202002",22/05/2019 00:00:00,0.04,"90005","Home Care Services DP","REDACTED DATA","REDACTED DATA","",,""
"London Borough of Redbridge","http://opendatacommunities.org/doc/london-borough-council/redbridge","6BADULTSOCIA","Adult Social Care","6CLONGT1864","Long-Term Support 18 - 64 Years","REV","Revenue","R4445","Physical Disabilities - Fairlop","09-INCOME","Income","09C","Customer and Client Receipts","8545","Direct Payments Income","3551027","202002",22/05/2019 00:00:00,-1028.76,"90005","Home Care Services DP","REDACTED DATA","REDACTED DATA","",,""
"London Borough of Redbridge","http://opendatacommunities.org/doc/london-borough-council/redbridge","6BADULTSOCIA","Adult Social Care","6CLONGT1864","Long-Term Support 18 - 64 Years","REV","Revenue","R4441","Older People - Seven Kings","05-THIRD","Third Party Payments","05F","Voluntary associations","6802","Residential Homes","91059735","202002",14/05/2019 00:00:00,5748.7,"64710","Residential Care Homes","REDACTED DATA","ALAN & MARINA STACK T/AS ROWALLAN HOUSE","",,""
"London Borough of Redbridge","http://opendatacommunities.org/doc/london-borough-council/redbridge","6BADULTSOCIA","Adult Social Care","6CLONGT1864","Long-Term Support 18 - 64 Years","REV","Revenue","R4441","Older People - Seven Kings","05-THIRD","Third Party Payments","05F","Voluntary associations","6802","Residential Homes","91059735","202002",14/05/2019 00:00:00,1147,"64710","Residential Care Homes","REDACTED DATA","ALAN & MARINA STACK T/AS ROWALLAN HOUSE","",,""
"London Borough of Redbridge","http://opendatacommunities.org/doc/london-borough-council/redbridge","6BADULTSOCIA","Adult Social Care","6CLONGT1864","Long-Term Support 18 - 64 Years","REV","Revenue","R4441","Older People - Seven Kings","09-INCOME","Income","09C","Customer and Client Receipts","8555","Accommodation Charges","91059735","202002",14/05/2019 00:00:00,-1069.9,"64710","Residential Care Homes","REDACTED DATA","ALAN & MARINA STACK T/AS ROWALLAN HOUSE","",,""
"London Borough of Redbridge","http://opendatacommunities.org/doc/london-borough-council/redbridge","6BADULTSOCIA","Adult Social Care","6CLONGT1864","Long-Term Support 18 - 64 Years","REV","Revenue","R4441","Older People - Seven Kings","09-INCOME","Income","09C","Customer and Client Receipts","8555","Accommodation Charges","91059735","202002",14/05/2019 00:00:00,-1147,"64710","Residential Care Homes","REDACTED DATA","ALAN & MARINA STACK T/AS ROWALLAN HOUSE","",,""
"London Borough of Redbridge","http://opendatacommunities.org/doc/london-borough-council/redbridge","6BADULTSOCIA","Adult Social Care","6COLDINCMENT","Older People (65 or over) incl. Older Mentally Ill","REV","Revenue","R4378","OP Residential","05-THIRD","Third Party Payments","05F","Voluntary associations","6802","Residential Homes","91059735","202002",14/05/2019 00:00:00,563.6,"64710","Residential Care Homes","REDACTED DATA","ALAN & MARINA STACK T/AS ROWALLAN HOUSE","",,""
"London Borough of Redbridge","http://opendatacommunities.org/doc/london-borough-council/redbridge","6BADULTSOCIA","Adult Social Care","6COLDINCMENT","Older People (65 or over) incl. Older Mentally Ill","REV","Revenue","R4378","OP Residential","05-THIRD","Third Party Payments","05F","Voluntary associations","6802","Residential Homes","91059735","202002",14/05/2019 00:00:00,563.6,"64710","Residential Care Homes","REDACTED DATA","ALAN & MARINA STACK T/AS ROWALLAN HOUSE","",,""
"London Borough of Redbridge","http://opendatacommunities.org/doc/london-borough-council/redbridge","6BADULTSOCIA","Adult Social Care","6COLDINCMENT","Older People (65 or over) incl. Older Mentally Ill","REV","Revenue","R4378","OP Residential","05-THIRD","Third Party Payments","05F","Voluntary associations","6802","Residential Homes","91059735","202002",14/05/2019 00:00:00,114.7,"64710","Residential Care Homes","REDACTED DATA","ALAN & MARINA STACK T/AS ROWALLAN HOUSE","",,""
"London Borough of Redbridge","http://opendatacommunities.org/doc/london-borough-council/redbridge","6BADULTSOCIA","Adult Social Care","6COLDINCMENT","Older People (65 or over) incl. Older Mentally Ill","REV","Revenue","R4378","OP Residential","05-THIRD","Third Party Payments","05F","Voluntary associations","6802","Residential Homes","91059735","202002",14/05/2019 00:00:00,114.7,"64710","Residential Care Homes","REDACTED DATA","ALAN & MARINA STACK T/AS ROWALLAN HOUSE","",,""
"London Borough of Redbridge","http://opendatacommunities.org/doc/london-borough-council/redbridge","6BADULTSOCIA","Adult Social Care","6COLDINCMENT","Older People (65 or over) incl. Older Mentally Ill","REV","Revenue","R4378","OP Residential","09-INCOME","Income","09C","Customer and Client Receipts","8555","Accommodation Charges","91059735","202002",14/05/2019 00:00:00,-114.7,"64710","Residential Care Homes","REDACTED DATA","ALAN & MARINA STACK T/AS ROWALLAN HOUSE","",,""
"London Borough of Redbridge","http://opendatacommunities.org/doc/london-borough-council/redbridge","6BADULTSOCIA","Adult Social Care","6COLDINCMENT","Older People (65 or over) incl. Older Mentally Ill","REV","Revenue","R4378","OP Residential","09-INCOME","Income","09C","Customer and Client Receipts","8555","Accommodation Charges","91059735","202002",14/05/2019 00:00:00,-114.7,"64710","Residential Care Homes","REDACTED DATA","ALAN & MARINA STACK T/AS ROWALLAN HOUSE","",,""
"London Borough of Redbridge","http://opendatacommunities.org/doc/london-borough-council/redbridge","6BADULTSOCIA","Adult Social Care","6COLDINCMENT","Older People (65 or over) incl. Older Mentally Ill","REV","Revenue","R4378","OP Residential","09-INCOME","Income","09C","Customer and Client Receipts","8555","Accommodation Charges","91059735","202002",14/05/2019 00:00:00,-106.99,"64710","Residential Care Homes","REDACTED DATA","ALAN & MARINA STACK T/AS ROWALLAN HOUSE","",,""
"London Borough of Redbridge","http://opendatacommunities.org/doc/london-borough-council/redbridge","6BADULTSOCIA","Adult Social Care","6COLDINCMENT","Older People (65 or over) incl. Older Mentally Ill","REV","Revenue","R4378","OP Residential","09-INCOME","Income","09C","Customer and Client Receipts","8555","Accommodation Charges","91059735","202002",14/05/2019 00:00:00,-106.99,"64710","Residential Care Homes","REDACTED DATA","ALAN & MARINA STACK T/AS ROWALLAN HOUSE","",,""
"London Borough of Redbridge","http://opendatacommunities.org/doc/london-borough-council/redbridge","6BADULTSOCIA","Adult Social Care","6COLDINCMENT","Older People (65 or over) incl. Older Mentally Ill","REV","Revenue","R4385","OP Nursing","05-THIRD","Third Party Payments","05H","Private contractors","6909","Nursing Homes","91059751","202002",14/05/2019 00:00:00,291.39,"53350","Nursing Homes","REDACTED DATA","CHURCHFIELDS NURSING HOME (YEW TREE CARE)","",,""
"London Borough of Redbridge","http://opendatacommunities.org/doc/london-borough-council/redbridge","6BADULTSOCIA","Adult Social Care","6COLDINCMENT","Older People (65 or over) incl. Older Mentally Ill","REV","Revenue","R4385","OP Nursing","05-THIRD","Third Party Payments","05H","Private contractors","6909","Nursing Homes","91059751","202002",14/05/2019 00:00:00,1772.06,"53350","Nursing Homes","REDACTED DATA","CHURCHFIELDS NURSING HOME (YEW TREE CARE)","",,""
"London Borough of Redbridge","http://opendatacommunities.org/doc/london-borough-council/redbridge","6BADULTSOCIA","Adult Social Care","6COLDINCMENT","Older People (65 or over) incl. Older Mentally Ill","REV","Revenue","R4385","OP Nursing","05-THIRD","Third Party Payments","05H","Private contractors","6909","Nursing Homes","91059751","202002",14/05/2019 00:00:00,84.99,"53350","Nursing Homes","REDACTED DATA","CHURCHFIELDS NURSING HOME (YEW TREE CARE)","",,""
"London Borough of Redbridge","http://opendatacommunities.org/doc/london-borough-council/redbridge","6BADULTSOCIA","Adult Social Care","6COLDINCMENT","Older People (65 or over) incl. Older Mentally Ill","REV","Revenue","R4385","OP Nursing","05-THIRD","Third Party Payments","05H","Private contractors","6909","Nursing Homes","91059751","202002",14/05/2019 00:00:00,516.85,"53350","Nursing Homes","REDACTED DATA","CHURCHFIELDS NURSING HOME (YEW TREE CARE)","",,""
"London Borough of Redbridge","http://opendatacommunities.org/doc/london-borough-council/redbridge","6BADULTSOCIA","Adult Social Care","6COLDINCMENT","Older People (65 or over) incl. Older Mentally Ill","REV","Revenue","R4385","OP Nursing","09-INCOME","Income","09C","Customer and Client Receipts","8557","Nursing Home Charges","91059751","202002",14/05/2019 00:00:00,-136.98,"53350","Nursing Homes","REDACTED DATA","CHURCHFIELDS NURSING HOME (YEW TREE CARE)","",,""
"London Borough of Redbridge","http://opendatacommunities.org/doc/london-borough-council/redbridge","6BADULTSOCIA","Adult Social Care","6COLDINCMENT","Older People (65 or over) incl. Older Mentally Ill","REV","Revenue","R4385","OP Nursing","09-INCOME","Income","09C","Customer and Client Receipts","8557","Nursing Home Charges","91059751","202002",14/05/2019 00:00:00,-84.99,"53350","Nursing Homes","REDACTED DATA","CHURCHFIELDS NURSING HOME (YEW TREE CARE)","",,""
"London Borough of Redbridge","http://opendatacommunities.org/doc/london-borough-council/redbridge","6BADULTSOCIA","Adult Social Care","6COLDINCMENT","Older People (65 or over) incl. Older Mentally Ill","REV","Revenue","R4385","OP Nursing","09-INCOME","Income","09C","Customer and Client Receipts","8557","Nursing Home Charges","91059751","202002",14/05/2019 00:00:00,-469.65,"53350","Nursing Homes","REDACTED DATA","CHURCHFIELDS NURSING HOME (YEW TREE CARE)","",,""
"London Borough of Redbridge","http://opendatacommunities.org/doc/london-borough-council/redbridge","6BADULTSOCIA","Adult Social Care","6COLDINCMENT","Older People (65 or over) incl. Older Mentally Ill","REV","Revenue","R4385","OP Nursing","09-INCOME","Income","09C","Customer and Client Receipts","8557","Nursing Home Charges","91059751","202002",14/05/2019 00:00:00,-291.39,"53350","Nursing Homes","REDACTED DATA","CHURCHFIELDS NURSING HOME (YEW TREE CARE)","",,""
"London Borough of Redbridge","http://opendatacommunities.org/doc/london-borough-council/redbridge","6BADULTSOCIA","Adult Social Care","6COTHADSERV","Other Adult Services","REV","Revenue","R4447","Older People - Wanstead & Woodford","05-THIRD","Third Party Payments","05H","Private contractors","6909","Nursing Homes","91059751","202002",14/05/2019 00:00:00,5271.9,"53350","Nursing Homes","REDACTED DATA","CHURCHFIELDS NURSING HOME (YEW TREE CARE)","",,""
"London Borough of Redbridge","http://opendatacommunities.org/doc/london-borough-council/redbridge","6BADULTSOCIA","Adult Social Care","6COTHADSERV","Other Adult Services","REV","Revenue","R4447","Older People - Wanstead & Woodford","05-THIRD","Third Party Payments","05H","Private contractors","6909","Nursing Homes","91059751","202002",14/05/2019 00:00:00,849.9,"53350","Nursing Homes","REDACTED DATA","CHURCHFIELDS NURSING HOME (YEW TREE CARE)","",,""
"London Borough of Redbridge","http://opendatacommunities.org/doc/london-borough-council/redbridge","6BADULTSOCIA","Adult Social Care","6COTHADSERV","Other Adult Services","REV","Revenue","R4447","Older People - Wanstead & Woodford","09-INCOME","Income","09C","Customer and Client Receipts","8557","Nursing Home Charges","91059751","202002",14/05/2019 00:00:00,-849.9,"53350","Nursing Homes","REDACTED DATA","CHURCHFIELDS NURSING HOME (YEW TREE CARE)","",,""
"London Borough of Redbridge","http://opendatacommunities.org/doc/london-borough-council/redbridge","6BADULTSOCIA","Adult Social Care","6COTHADSERV","Other Adult Services","REV","Revenue","R4447","Older People - Wanstead & Woodford","09-INCOME","Income","09C","Customer and Client Receipts","8557","Nursing Home Charges","91059751","202002",14/05/2019 00:00:00,-1412.3,"53350","Nursing Homes","REDACTED DATA","CHURCHFIELDS NURSING HOME (YEW TREE CARE)","",,""
"London Borough of Redbridge","http://opendatacommunities.org/doc/london-borough-council/redbridge","6BADULTSOCIA","Adult Social Care","6CADMENHLTH","Adults Under 65 with Mental Health Needs","REV","Revenue","R4190","MH - Residential Care","05-THIRD","Third Party Payments","05F","Voluntary associations","6802","Residential Homes","91059780","202002",14/05/2019 00:00:00,-2025,"64710","Residential Care Homes","REDACTED DATA","LEYTON HOUSE COMMUNITY CARE LTD","4199578","http://opencorporates.com/companies/gb/4199578",""
"London Borough of Redbridge","http://opendatacommunities.org/doc/london-borough-council/redbridge","6BADULTSOCIA","Adult Social Care","6CADMENHLTH","Adults Under 65 with Mental Health Needs","REV","Revenue","R4190","MH - Residential Care","05-THIRD","Third Party Payments","05F","Voluntary associations","6802","Residential Homes","91059780","202002",14/05/2019 00:00:00,675,"64710","Residential Care Homes","REDACTED DATA","LEYTON HOUSE COMMUNITY CARE LTD","4199578","http://opencorporates.com/companies/gb/4199578",""
"London Borough of Redbridge","http://opendatacommunities.org/doc/london-borough-council/redbridge","6BADULTSOCIA","Adult Social Care","6CADMENHLTH","Adults Under 65 with Mental Health Needs","REV","Revenue","R4190","MH - Residential Care","05-THIRD","Third Party Payments","05F","Voluntary associations","6802","Residential Homes","91059780","202002",14/05/2019 00:00:00,6885,"64710","Residential Care Homes","REDACTED DATA","LEYTON HOUSE COMMUNITY CARE LTD","4199578","http://opencorporates.com/companies/gb/4199578",""
"London Borough of Redbridge","http://opendatacommunities.org/doc/london-borough-council/redbridge","6BADULTSOCIA","Adult Social Care","6CADLEARNDIS","Adults Under 65 with Learning Disabilities","REV","Revenue","R4185","LD - Supported Living","06-TRANSFER","Transfer Payments","06B","Social Services Clients","7066","Supported Living","91060133","202002",17/05/2019 00:00:00,5531.44,"64710","Residential Care Homes","REDACTED DATA","UK CARE SERVICES (SUPPORTED LIVING) LTD","10645547","http://opencorporates.com/companies/gb/10645547",""
"London Borough of Redbridge","http://opendatacommunities.org/doc/london-borough-council/redbridge","3BLEACENTFND","LEA Centrally Held School Funds","3CFACILIMPRO","Facilitating School Improvement","REV","Revenue","R3241","Redbridge Independent Advisory Support Service","04-SUPPLIES","Supplies And Services","04D","Printing, stationery and general office expenses","5703","Reprographics","60404161","202002",20/05/2019 00:00:00,4602,"61893","Promotional Items","REDACTED DATA","PREMIER PRINT & PROMOTIONS LTD","2985837","http://opencorporates.com/companies/gb/2985837","623124187"
"London Borough of Redbridge","http://opendatacommunities.org/doc/london-borough-council/redbridge","6BADULTSOCIA","Adult Social Care","6CADLEARNDIS","Adults Under 65 with Learning Disabilities","REV","Revenue","R4388","LD Nursing","05-THIRD","Third Party Payments","05H","Private contractors","6909","Nursing Homes","91060152","202002",14/05/2019 00:00:00,-9112.74,"17020","Charities and Voluntary Organisations","REDACTED DATA","VIBRANCE","7094318","http://opencorporates.com/companies/gb/7094318",""
"London Borough of Redbridge","http://opendatacommunities.org/doc/london-borough-council/redbridge","6BADULTSOCIA","Adult Social Care","6CADLEARNDIS","Adults Under 65 with Learning Disabilities","REV","Revenue","R4388","LD Nursing","09-INCOME","Income","09C","Customer and Client Receipts","8557","Nursing Home Charges","91060152","202002",14/05/2019 00:00:00,854.1,"17020","Charities and Voluntary Organisations","REDACTED DATA","VIBRANCE","7094318","http://opencorporates.com/companies/gb/7094318",""
"London Borough of Redbridge","http://opendatacommunities.org/doc/london-borough-council/redbridge","6BADULTSOCIA","Adult Social Care","6CLONGT1864","Long-Term Support 18 - 64 Years","REV","Revenue","R4437","Learning Disabilities - Cranbrook & Loxford","05-THIRD","Third Party Payments","05H","Private contractors","6909","Nursing Homes","91060148","202002",14/05/2019 00:00:00,6075.16,"17020","Charities and Voluntary Organisations","REDACTED DATA","VIBRANCE","7094318","http://opencorporates.com/companies/gb/7094318",""
"London Borough of Redbridge","http://opendatacommunities.org/doc/london-borough-council/redbridge","6BADULTSOCIA","Adult Social Care","6CLONGT1864","Long-Term Support 18 - 64 Years","REV","Revenue","R4437","Learning Disabilities - Cranbrook & Loxford","09-INCOME","Income","09C","Customer and Client Receipts","8557","Nursing Home Charges","91060148","202002",14/05/2019 00:00:00,-569.4,"17020","Charities and Voluntary Organisations","REDACTED DATA","VIBRANCE","7094318","http://opencorporates.com/companies/gb/7094318",""
"London Borough of Redbridge","http://opendatacommunities.org/doc/london-borough-council/redbridge","6BADULTSOCIA","Adult Social Care","6CLONGT65","Long-Term Support 65+ Years","REV","Revenue","R4440","Learning Disabilities - Seven Kings","05-THIRD","Third Party Payments","05H","Private contractors","6909","Nursing Homes","91060152","202002",14/05/2019 00:00:00,15187.9,"17020","Charities and Voluntary Organisations","REDACTED DATA","VIBRANCE","7094318","http://opencorporates.com/companies/gb/7094318",""
"London Borough of Redbridge","http://opendatacommunities.org/doc/london-borough-council/redbridge","6BADULTSOCIA","Adult Social Care","6CLONGT65","Long-Term Support 65+ Years","REV","Revenue","R4440","Learning Disabilities - Seven Kings","09-INCOME","Income","09C","Customer and Client Receipts","8557","Nursing Home Charges","91060152","202002",14/05/2019 00:00:00,-1423.5,"17020","Charities and Voluntary Organisations","REDACTED DATA","VIBRANCE","7094318","http://opencorporates.com/companies/gb/7094318",""
"London Borough of Redbridge","http://opendatacommunities.org/doc/london-borough-council/redbridge","1BOTHEROPI&E","Other Operating Income & Expenditure","1CTRADSURDEF","Trading Account Surpluses & Deficits","REV","Revenue","R9001","Customer Contact Centre","04-SUPPLIES","Supplies And Services","04D","Printing, stationery and general office expenses","5710","Stationery","60401740","202002",31/03/2019 00:00:00,4586.4,"69240","Security Services","REDACTED DATA","CHARTER SECURITY PLC","1530957","http://opencorporates.com/companies/gb/1530957","342117968"
"London Borough of Redbridge","http://opendatacommunities.org/doc/london-borough-council/redbridge","6BSOCIALSERV","Social Services","6CCHILLOOKED","Children Looked After","REV","Revenue","R2158","CSW Service","06-TRANSFER","Transfer Payments","06B","Social Services Clients","7057","Section 17 Payments","60404754","202002",20/05/2019 00:00:00,5500,"74420","Supermarkets","REDACTED DATA","TESCO STORES LTD","519500","http://opencorporates.com/companies/gb/519500","220430231"
"London Borough of Redbridge","http://opendatacommunities.org/doc/london-borough-council/redbridge","3BNONSCHFUND","Non-School Funding","3CNONSCH","Non Schools","REV","Revenue","R3962","Early Years - 3 and 4 Year Olds","05-THIRD","Third Party Payments","05A","Independent units within the council","6517","Non-Maintained Schools","3552224","202002",28/05/2019 00:00:00,5499,"59760","Playgroups, Nurseries and Creches","REDACTED DATA","RIZWANA YASIN T/AS BE BABIES","8554690","http://opencorporates.com/companies/gb/8554690",""
"London Borough of Redbridge","http://opendatacommunities.org/doc/london-borough-council/redbridge","4BPUBLICTRAN","Public Transport","4CPARKING","Parking Services","REV","Revenue","R7037","Attendants Parking Enforcement","05-THIRD","Third Party Payments","05H","Private contractors","6911","Parking and Traffic Enforcement Contract","60402164","202001",23/04/2019 00:00:00,4576.31,"13750","Car Parking and Garaging","REDACTED DATA","APCOA PARKING (UK) LTD","2572947","http://opencorporates.com/companies/gb/2572947","674177607"
"London Borough of Redbridge","http://opendatacommunities.org/doc/london-borough-council/redbridge","3BINDSCHFUND","Individual School Funds","3CNONSCH","Non Schools","REV","Revenue","R2627","SEN Team","05-THIRD","Third Party Payments","05A","Independent units within the council","6513","Agency & Contracted Services","60403247","202002",07/05/2019 00:00:00,4572.5,"31230","Employment and Recruitment Agencies","REDACTED DATA","BALTIMORE CONSULTING LTD","8387222","http://opencorporates.com/companies/gb/8387222","156711312"
"London Borough of Redbridge","http://opendatacommunities.org/doc/london-borough-council/redbridge","4BPUBLICTRAN","Public Transport","4CPARKING","Parking Services","REV","Revenue","R7036","On Street Parking Works","05-THIRD","Third Party Payments","05H","Private contractors","6915","Contractor Payments","60403626","202002",08/05/2019 00:00:00,4555,"79650","Traffic Management Systems","REDACTED DATA","FLOWBIRD SMART CITY UK LTD","4869035","http://opencorporates.com/companies/gb/4869035","821077453"
"London Borough of Redbridge","http://opendatacommunities.org/doc/london-borough-council/redbridge","6BADULTSOCIA","Adult Social Care","6CADLEARNDIS","Adults Under 65 with Learning Disabilities","REV","Revenue","R4185","LD - Supported Living","06-TRANSFER","Transfer Payments","06B","Social Services Clients","7066","Supported Living","91056010","202002",01/05/2019 00:00:00,4189.29,"64710","Residential Care Homes","REDACTED DATA","MOVE AHEAD CARE LTD","9804563","http://opencorporates.com/companies/gb/9804563",""
"London Borough of Redbridge","http://opendatacommunities.org/doc/london-borough-council/redbridge","6BADULTSOCIA","Adult Social Care","6CADLEARNDIS","Adults Under 65 with Learning Disabilities","REV","Revenue","R4185","LD - Supported Living","06-TRANSFER","Transfer Payments","06B","Social Services Clients","7066","Supported Living","91056010","202002",01/05/2019 00:00:00,1275,"64710","Residential Care Homes","REDACTED DATA","MOVE AHEAD CARE LTD","9804563","http://opencorporates.com/companies/gb/9804563",""
"London Borough of Redbridge","http://opendatacommunities.org/doc/london-borough-council/redbridge","3BNONSCHFUND","Non-School Funding","6CCHILLOOKED","Children Looked After","REV","Revenue","R2238","Looked After Children Placements LA","05-THIRD","Third Party Payments","05H","Private contractors","6917","Fostering Costs - Agency","60402964","202002",01/04/2019 00:00:00,5464.2,"1880","Adoption and Fostering","REDACTED DATA","ANCHOR FOSTER CARE SERVICES LTD","4348277","http://opencorporates.com/companies/gb/4348277",""
"London Borough of Redbridge","http://opendatacommunities.org/doc/london-borough-council/redbridge","6BADULTSOCIA","Adult Social Care","6CADLEARNDIS","Adults Under 65 with Learning Disabilities","REV","Revenue","R4188","LD - Residential Care","05-THIRD","Third Party Payments","05F","Voluntary associations","6802","Residential Homes","91055915","202002",17/04/2019 00:00:00,1325.38,"17020","Charities and Voluntary Organisations","REDACTED DATA","CHOICE SUPPORT","IP25577R","http://opencorporates.com/companies/gb/IP25577R",""
"London Borough of Redbridge","http://opendatacommunities.org/doc/london-borough-council/redbridge","6BADULTSOCIA","Adult Social Care","6CADLEARNDIS","Adults Under 65 with Learning Disabilities","REV","Revenue","R4188","LD - Residential Care","05-THIRD","Third Party Payments","05F","Voluntary associations","6802","Residential Homes","91055915","202002",17/04/2019 00:00:00,8111.34,"17020","Charities and Voluntary Organisations","REDACTED DATA","CHOICE SUPPORT","IP25577R","http://opencorporates.com/companies/gb/IP25577R",""
"London Borough of Redbridge","http://opendatacommunities.org/doc/london-borough-council/redbridge","6BADULTSOCIA","Adult Social Care","6CADLEARNDIS","Adults Under 65 with Learning Disabilities","REV","Revenue","R4188","LD - Residential Care","05-THIRD","Third Party Payments","05F","Voluntary associations","6802","Residential Homes","91055916","202002",17/04/2019 00:00:00,-3976.14,"17020","Charities and Voluntary Organisations","REDACTED DATA","CHOICE SUPPORT","IP25577R","http://opencorporates.com/companies/gb/IP25577R",""
"London Borough of Redbridge","http://opendatacommunities.org/doc/london-borough-council/redbridge","6BADULTSOCIA","Adult Social Care","6CADLEARNDIS","Adults Under 65 with Learning Disabilities","REV","Revenue","R4188","LD - Residential Care","05-THIRD","Third Party Payments","05F","Voluntary associations","6802","Residential Homes","91055916","202002",17/04/2019 00:00:00,1325.38,"17020","Charities and Voluntary Organisations","REDACTED DATA","CHOICE SUPPORT","IP25577R","http://opencorporates.com/companies/gb/IP25577R",""
"London Borough of Redbridge","http://opendatacommunities.org/doc/london-borough-council/redbridge","6BADULTSOCIA","Adult Social Care","6CADLEARNDIS","Adults Under 65 with Learning Disabilities","REV","Revenue","R4188","LD - Residential Care","05-THIRD","Third Party Payments","05F","Voluntary associations","6802","Residential Homes","91055916","202002",17/04/2019 00:00:00,8111.34,"17020","Charities and Voluntary Organisations","REDACTED DATA","CHOICE SUPPORT","IP25577R","http://opencorporates.com/companies/gb/IP25577R",""
"London Borough of Redbridge","http://opendatacommunities.org/doc/london-borough-council/redbridge","6BADULTSOCIA","Adult Social Care","6CADLEARNDIS","Adults Under 65 with Learning Disabilities","REV","Revenue","R4188","LD - Residential Care","05-THIRD","Third Party Payments","05F","Voluntary associations","6802","Residential Homes","91055915","202002",17/04/2019 00:00:00,-3976.14,"17020","Charities and Voluntary Organisations","REDACTED DATA","CHOICE SUPPORT","IP25577R","http://opencorporates.com/companies/gb/IP25577R",""
"London Borough of Redbridge","http://opendatacommunities.org/doc/london-borough-council/redbridge","6BADULTSOCIA","Adult Social Care","6CADMENHLTH","Adults Under 65 with Mental Health Needs","REV","Revenue","R4190","MH - Residential Care","05-THIRD","Third Party Payments","05F","Voluntary associations","6802","Residential Homes","91055842","202002",17/04/2019 00:00:00,672.3,"64710","Residential Care Homes","REDACTED DATA","ASHWOOD HOUSE LIMITED","3581014","http://opencorporates.com/companies/gb/3581014",""
"London Borough of Redbridge","http://opendatacommunities.org/doc/london-borough-council/redbridge","6BADULTSOCIA","Adult Social Care","6CADMENHLTH","Adults Under 65 with Mental Health Needs","REV","Revenue","R4190","MH - Residential Care","05-THIRD","Third Party Payments","05F","Voluntary associations","6802","Residential Homes","91055842","202002",17/04/2019 00:00:00,672.3,"64710","Residential Care Homes","REDACTED DATA","ASHWOOD HOUSE LIMITED","3581014","http://opencorporates.com/companies/gb/3581014",""
"London Borough of Redbridge","http://opendatacommunities.org/doc/london-borough-council/redbridge","6BADULTSOCIA","Adult Social Care","6CADMENHLTH","Adults Under 65 with Mental Health Needs","REV","Revenue","R4190","MH - Residential Care","05-THIRD","Third Party Payments","05F","Voluntary associations","6802","Residential Homes","91055842","202002",17/04/2019 00:00:00,4114.5,"64710","Residential Care Homes","REDACTED DATA","ASHWOOD HOUSE LIMITED","3581014","http://opencorporates.com/companies/gb/3581014",""
"London Borough of Redbridge","http://opendatacommunities.org/doc/london-borough-council/redbridge","6BADULTSOCIA","Adult Social Care","6CLONGT1864","Long-Term Support 18 - 64 Years","REV","Revenue","R4441","Older People - Seven Kings","05-THIRD","Third Party Payments","05F","Voluntary associations","6802","Residential Homes","91059862","202002",14/05/2019 00:00:00,821.24,"64760","Rest and Retirement Homes","REDACTED DATA","EASTWOOD LODGE","",,""
"London Borough of Redbridge","http://opendatacommunities.org/doc/london-borough-council/redbridge","6BADULTSOCIA","Adult Social Care","6CLONGT1864","Long-Term Support 18 - 64 Years","REV","Revenue","R4441","Older People - Seven Kings","05-THIRD","Third Party Payments","05F","Voluntary associations","6802","Residential Homes","91059862","202002",14/05/2019 00:00:00,1806.74,"64760","Rest and Retirement Homes","REDACTED DATA","EASTWOOD LODGE","",,""
"London Borough of Redbridge","http://opendatacommunities.org/doc/london-borough-council/redbridge","6BADULTSOCIA","Adult Social Care","6CLONGT1864","Long-Term Support 18 - 64 Years","REV","Revenue","R4441","Older People - Seven Kings","05-THIRD","Third Party Payments","05F","Voluntary associations","6802","Residential Homes","91059862","202002",14/05/2019 00:00:00,2576.46,"64760","Rest and Retirement Homes","REDACTED DATA","EASTWOOD LODGE","",,""
"London Borough of Redbridge","http://opendatacommunities.org/doc/london-borough-council/redbridge","6BADULTSOCIA","Adult Social Care","6CLONGT1864","Long-Term Support 18 - 64 Years","REV","Revenue","R4441","Older People - Seven Kings","05-THIRD","Third Party Payments","05F","Voluntary associations","6802","Residential Homes","91059862","202002",14/05/2019 00:00:00,2299.48,"64760","Rest and Retirement Homes","REDACTED DATA","EASTWOOD LODGE","",,""
"London Borough of Redbridge","http://opendatacommunities.org/doc/london-borough-council/redbridge","6BADULTSOCIA","Adult Social Care","6CLONGT1864","Long-Term Support 18 - 64 Years","REV","Revenue","R4441","Older People - Seven Kings","05-THIRD","Third Party Payments","05F","Voluntary associations","6802","Residential Homes","91059862","202002",14/05/2019 00:00:00,821.25,"64760","Rest and Retirement Homes","REDACTED DATA","EASTWOOD LODGE","",,""
"London Borough of Redbridge","http://opendatacommunities.org/doc/london-borough-council/redbridge","6BADULTSOCIA","Adult Social Care","6CLONGT1864","Long-Term Support 18 - 64 Years","REV","Revenue","R4441","Older People - Seven Kings","09-INCOME","Income","09C","Customer and Client Receipts","8555","Accommodation Charges","91059862","202002",14/05/2019 00:00:00,-1020.62,"64760","Rest and Retirement Homes","REDACTED DATA","EASTWOOD LODGE","",,""
"London Borough of Redbridge","http://opendatacommunities.org/doc/london-borough-council/redbridge","6BADULTSOCIA","Adult Social Care","6CLONGT1864","Long-Term Support 18 - 64 Years","REV","Revenue","R4441","Older People - Seven Kings","09-INCOME","Income","09C","Customer and Client Receipts","8555","Accommodation Charges","91059862","202002",14/05/2019 00:00:00,-586.87,"64760","Rest and Retirement Homes","REDACTED DATA","EASTWOOD LODGE","",,""
"London Borough of Redbridge","http://opendatacommunities.org/doc/london-borough-council/redbridge","6BADULTSOCIA","Adult Social Care","6CLONGT1864","Long-Term Support 18 - 64 Years","REV","Revenue","R4441","Older People - Seven Kings","09-INCOME","Income","09C","Customer and Client Receipts","8555","Accommodation Charges","91059862","202002",14/05/2019 00:00:00,-196.66,"64760","Rest and Retirement Homes","REDACTED DATA","EASTWOOD LODGE","",,""
"London Borough of Redbridge","http://opendatacommunities.org/doc/london-borough-council/redbridge","6BADULTSOCIA","Adult Social Care","6CLONGT1864","Long-Term Support 18 - 64 Years","REV","Revenue","R4441","Older People - Seven Kings","09-INCOME","Income","09C","Customer and Client Receipts","8555","Accommodation Charges","91059862","202002",14/05/2019 00:00:00,-746.92,"64760","Rest and Retirement Homes","REDACTED DATA","EASTWOOD LODGE","",,""
"London Borough of Redbridge","http://opendatacommunities.org/doc/london-borough-council/redbridge","6BADULTSOCIA","Adult Social Care","6CLONGT1864","Long-Term Support 18 - 64 Years","REV","Revenue","R4441","Older People - Seven Kings","09-INCOME","Income","09C","Customer and Client Receipts","8555","Accommodation Charges","91059862","202002",14/05/2019 00:00:00,-321.87,"64760","Rest and Retirement Homes","REDACTED DATA","EASTWOOD LODGE","",,""
"London Borough of Redbridge","http://opendatacommunities.org/doc/london-borough-council/redbridge","3BNONSCHFUND","Non-School Funding","6CCHILLOOKED","Children Looked After","REV","Revenue","R2238","Looked After Children Placements LA","05-THIRD","Third Party Payments","05H","Private contractors","6917","Fostering Costs - Agency","60404183","202002",20/05/2019 00:00:00,5449.95,"1880","Adoption and Fostering","REDACTED DATA","SELECT FOSTERCARE SERVICES LTD","1656801796","http://opencorporates.com/companies/gb/1656801796",""
"London Borough of Redbridge","http://opendatacommunities.org/doc/london-borough-council/redbridge","6BADULTSOCIA","Adult Social Care","6CADLEARNDIS","Adults Under 65 with Learning Disabilities","REV","Revenue","R4188","LD - Residential Care","05-THIRD","Third Party Payments","05F","Voluntary associations","6802","Residential Homes","91059981","202002",14/05/2019 00:00:00,-8781.24,"17020","Charities and Voluntary Organisations","REDACTED DATA","NORWOOD SCHOOLS LTD","516901","http://opencorporates.com/companies/gb/516901","629720917"
"London Borough of Redbridge","http://opendatacommunities.org/doc/london-borough-council/redbridge","6BADULTSOCIA","Adult Social Care","6CADLEARNDIS","Adults Under 65 with Learning Disabilities","REV","Revenue","R4188","LD - Residential Care","09-INCOME","Income","09C","Customer and Client Receipts","8555","Accommodation Charges","91059981","202002",14/05/2019 00:00:00,621.3,"17020","Charities and Voluntary Organisations","REDACTED DATA","NORWOOD SCHOOLS LTD","516901","http://opencorporates.com/companies/gb/516901","629720917"
"London Borough of Redbridge","http://opendatacommunities.org/doc/london-borough-council/redbridge","6BADULTSOCIA","Adult Social Care","6CLONGT1864","Long-Term Support 18 - 64 Years","REV","Revenue","R4437","Learning Disabilities - Cranbrook & Loxford","05-THIRD","Third Party Payments","05F","Voluntary associations","6802","Residential Homes","91059981","202002",14/05/2019 00:00:00,14635.4,"17020","Charities and Voluntary Organisations","REDACTED DATA","NORWOOD SCHOOLS LTD","516901","http://opencorporates.com/companies/gb/516901","629720917"
"London Borough of Redbridge","http://opendatacommunities.org/doc/london-borough-council/redbridge","6BADULTSOCIA","Adult Social Care","6CLONGT1864","Long-Term Support 18 - 64 Years","REV","Revenue","R4437","Learning Disabilities - Cranbrook & Loxford","09-INCOME","Income","09C","Customer and Client Receipts","8555","Accommodation Charges","91059981","202002",14/05/2019 00:00:00,-1035.5,"17020","Charities and Voluntary Organisations","REDACTED DATA","NORWOOD SCHOOLS LTD","516901","http://opencorporates.com/companies/gb/516901","629720917"
"London Borough of Redbridge","http://opendatacommunities.org/doc/london-borough-council/redbridge","1BOTHEROPI&E","Other Operating Income & Expenditure","1CTRADSURDEF","Trading Account Surpluses & Deficits","REV","Revenue","R9557","CLM Utilities","02-PREMISES","Premises","02B","Energy costs","4002","Gas","80033377","202002",13/05/2019 00:00:00,4527.7,"39564","Gas Companies","REDACTED DATA","KENT COUNTY COUNCIL (GAS & ELECTRIC)","",,"204269191"
"London Borough of Redbridge","http://opendatacommunities.org/doc/london-borough-council/redbridge","6BADULTSOCIA","Adult Social Care","6CADLEARNDIS","Adults Under 65 with Learning Disabilities","REV","Revenue","R4188","LD - Residential Care","05-THIRD","Third Party Payments","05F","Voluntary associations","6802","Residential Homes","91060156","202002",14/05/2019 00:00:00,-9094.2,"17020","Charities and Voluntary Organisations","REDACTED DATA","VIBRANCE","7094318","http://opencorporates.com/companies/gb/7094318",""
"London Borough of Redbridge","http://opendatacommunities.org/doc/london-borough-council/redbridge","6BADULTSOCIA","Adult Social Care","6CADLEARNDIS","Adults Under 65 with Learning Disabilities","REV","Revenue","R4188","LD - Residential Care","09-INCOME","Income","09C","Customer and Client Receipts","8555","Accommodation Charges","91060156","202002",14/05/2019 00:00:00,947.28,"17020","Charities and Voluntary Organisations","REDACTED DATA","VIBRANCE","7094318","http://opencorporates.com/companies/gb/7094318",""
"London Borough of Redbridge","http://opendatacommunities.org/doc/london-borough-council/redbridge","6BADULTSOCIA","Adult Social Care","6COTHADSERV","Other Adult Services","REV","Revenue","R4447","Older People - Wanstead & Woodford","05-THIRD","Third Party Payments","05F","Voluntary associations","6802","Residential Homes","91060156","202002",14/05/2019 00:00:00,15157,"17020","Charities and Voluntary Organisations","REDACTED DATA","VIBRANCE","7094318","http://opencorporates.com/companies/gb/7094318",""
"London Borough of Redbridge","http://opendatacommunities.org/doc/london-borough-council/redbridge","6BADULTSOCIA","Adult Social Care","6COTHADSERV","Other Adult Services","REV","Revenue","R4447","Older People - Wanstead & Woodford","09-INCOME","Income","09C","Customer and Client Receipts","8555","Accommodation Charges","91060156","202002",14/05/2019 00:00:00,-1578.8,"17020","Charities and Voluntary Organisations","REDACTED DATA","VIBRANCE","7094318","http://opencorporates.com/companies/gb/7094318",""
"London Borough of Redbridge","http://opendatacommunities.org/doc/london-borough-council/redbridge","6BADULTSOCIA","Adult Social Care","6COLDINCMENT","Older People (65 or over) incl. Older Mentally Ill","REV","Revenue","R4378","OP Residential","05-THIRD","Third Party Payments","05F","Voluntary associations","6802","Residential Homes","91059880","202002",14/05/2019 00:00:00,-9118.8,"64710","Residential Care Homes","REDACTED DATA","GREENMANTLE CARE HOME","",,""
"London Borough of Redbridge","http://opendatacommunities.org/doc/london-borough-council/redbridge","6BADULTSOCIA","Adult Social Care","6COLDINCMENT","Older People (65 or over) incl. Older Mentally Ill","REV","Revenue","R4378","OP Residential","09-INCOME","Income","09C","Customer and Client Receipts","8555","Accommodation Charges","91059880","202002",14/05/2019 00:00:00,980.64,"64710","Residential Care Homes","REDACTED DATA","GREENMANTLE CARE HOME","",,""
"London Borough of Redbridge","http://opendatacommunities.org/doc/london-borough-council/redbridge","6BADULTSOCIA","Adult Social Care","6COTHADSERV","Other Adult Services","REV","Revenue","R4447","Older People - Wanstead & Woodford","05-THIRD","Third Party Payments","05F","Voluntary associations","6802","Residential Homes","91059880","202002",14/05/2019 00:00:00,15198,"64710","Residential Care Homes","REDACTED DATA","GREENMANTLE CARE HOME","",,""
"London Borough of Redbridge","http://opendatacommunities.org/doc/london-borough-council/redbridge","6BADULTSOCIA","Adult Social Care","6COTHADSERV","Other Adult Services","REV","Revenue","R4447","Older People - Wanstead & Woodford","09-INCOME","Income","09C","Customer and Client Receipts","8555","Accommodation Charges","91059880","202002",14/05/2019 00:00:00,-1634.4,"64710","Residential Care Homes","REDACTED DATA","GREENMANTLE CARE HOME","",,""
"London Borough of Redbridge","http://opendatacommunities.org/doc/london-borough-council/redbridge","6BADULTSOCIA","Adult Social Care","6CADMENHLTH","Adults Under 65 with Mental Health Needs","REV","Revenue","R4219","MH - Supported Living","06-TRANSFER","Transfer Payments","06B","Social Services Clients","7066","Supported Living","91059846","202002",14/05/2019 00:00:00,5418.6,"64710","Residential Care Homes","REDACTED DATA","CLEARWATER CARE (HACKNEY) LTD","5084728","http://opencorporates.com/companies/gb/5084728",""
"London Borough of Redbridge","http://opendatacommunities.org/doc/london-borough-council/redbridge","9BNONBVO","Outside the BVACOP Objective Structure","9CNONBVO","Outside the BVACOP Objective Structure","CAP","Capital","C4202","Little Heath Feasibility","99-NONBV","Capital, Balance Sheet and Control","50B","Capital - Contracted Works","9055","External - Consultants Fees","60402784","202002",30/04/2019 00:00:00,4503.07,"21557","Construction Management","REDACTED DATA","AIRY MILLER PARTNERSHIP LLP","OC334222","http://opencorporates.com/companies/gb/OC334222","644915324"
"London Borough of Redbridge","http://opendatacommunities.org/doc/london-borough-council/redbridge","2BDEVCON","Development Control","","","REV","Revenue","R6510","Development Management","04-SUPPLIES","Supplies And Services","04H","Grants and subscriptions","5954","Professional Fees","60403446","202002",10/05/2019 00:00:00,4500,"12100","Business and Management Consultants","REDACTED DATA","MONDREM LTD","10304589","http://opencorporates.com/companies/gb/10304589","246832882"
"London Borough of Redbridge","http://opendatacommunities.org/doc/london-borough-council/redbridge","3BLEACENTFND","LEA Centrally Held School Funds","3CSCHSTRATMG","Schools Strategic Management","REV","Revenue","R3013","Schools Causing Concern (DSG)","04-SUPPLIES","Supplies And Services","04E","Services","7480","Payments To Schools","60403967","202002",10/05/2019 00:00:00,5400,"67981","Schools - Local Authority","REDACTED DATA","WILLIAM TORBITT PRIMARY SCHOOL","",,""
"London Borough of Redbridge","http://opendatacommunities.org/doc/london-borough-council/redbridge","6BADULTSOCIA","Adult Social Care","6CADLEARNDIS","Adults Under 65 with Learning Disabilities","REV","Revenue","R4188","LD - Residential Care","05-THIRD","Third Party Payments","05F","Voluntary associations","6802","Residential Homes","91059820","202002",14/05/2019 00:00:00,-7167.24,"64710","Residential Care Homes","REDACTED DATA","ALPAM HOMES","",,""
"London Borough of Redbridge","http://opendatacommunities.org/doc/london-borough-council/redbridge","6BADULTSOCIA","Adult Social Care","6CADLEARNDIS","Adults Under 65 with Learning Disabilities","REV","Revenue","R4188","LD - Residential Care","09-INCOME","Income","09C","Customer and Client Receipts","8555","Accommodation Charges","91059820","202002",14/05/2019 00:00:00,621.3,"64710","Residential Care Homes","REDACTED DATA","ALPAM HOMES","",,""
"London Borough of Redbridge","http://opendatacommunities.org/doc/london-borough-council/redbridge","6BADULTSOCIA","Adult Social Care","6CLONGT65","Long-Term Support 65+ Years","REV","Revenue","R4440","Learning Disabilities - Seven Kings","05-THIRD","Third Party Payments","05F","Voluntary associations","6802","Residential Homes","91059820","202002",14/05/2019 00:00:00,11945.4,"64710","Residential Care Homes","REDACTED DATA","ALPAM HOMES","",,""
"London Borough of Redbridge","http://opendatacommunities.org/doc/london-borough-council/redbridge","6BADULTSOCIA","Adult Social Care","6CADLEARNDIS","Adults Under 65 with Learning Disabilities","REV","Revenue","R4188","LD - Residential Care","05-THIRD","Third Party Payments","05F","Voluntary associations","6802","Residential Homes","91059978","202002",14/05/2019 00:00:00,-8949.66,"17020","Charities and Voluntary Organisations","REDACTED DATA","NORWOOD SCHOOLS LTD","516901","http://opencorporates.com/companies/gb/516901","629720917"
"London Borough of Redbridge","http://opendatacommunities.org/doc/london-borough-council/redbridge","6BADULTSOCIA","Adult Social Care","6CADLEARNDIS","Adults Under 65 with Learning Disabilities","REV","Revenue","R4188","LD - Residential Care","09-INCOME","Income","09C","Customer and Client Receipts","8555","Accommodation Charges","91059978","202002",14/05/2019 00:00:00,854.1,"17020","Charities and Voluntary Organisations","REDACTED DATA","NORWOOD SCHOOLS LTD","516901","http://opencorporates.com/companies/gb/516901","629720917"
"London Borough of Redbridge","http://opendatacommunities.org/doc/london-borough-council/redbridge","6BADULTSOCIA","Adult Social Care","6CLONGT1864","Long-Term Support 18 - 64 Years","REV","Revenue","R4437","Learning Disabilities - Cranbrook & Loxford","05-THIRD","Third Party Payments","05F","Voluntary associations","6802","Residential Homes","91059978","202002",14/05/2019 00:00:00,14916.1,"17020","Charities and Voluntary Organisations","REDACTED DATA","NORWOOD SCHOOLS LTD","516901","http://opencorporates.com/companies/gb/516901","629720917"
"London Borough of Redbridge","http://opendatacommunities.org/doc/london-borough-council/redbridge","6BADULTSOCIA","Adult Social Care","6CLONGT1864","Long-Term Support 18 - 64 Years","REV","Revenue","R4437","Learning Disabilities - Cranbrook & Loxford","09-INCOME","Income","09C","Customer and Client Receipts","8555","Accommodation Charges","91059978","202002",14/05/2019 00:00:00,-1423.5,"17020","Charities and Voluntary Organisations","REDACTED DATA","NORWOOD SCHOOLS LTD","516901","http://opencorporates.com/companies/gb/516901","629720917"
"London Borough of Redbridge","http://opendatacommunities.org/doc/london-borough-council/redbridge","6BADULTSOCIA","Adult Social Care","6CLONGT65","Long-Term Support 65+ Years","REV","Revenue","R4446","Learning Disabilities - Wanstead and Woodford","06-TRANSFER","Transfer Payments","06B","Social Services Clients","7053","Direct Payments","3551445","202002",22/05/2019 00:00:00,5396.52,"90005","Home Care Services DP","REDACTED DATA","REDACTED DATA","",,""
